SERVICE_CODE,ORGANISATION_UNIT,EXPENDITURE_CATEGORY,EXPENDITURE_DESCRIPTION,EXPENDITURE_CODE,NARRATIVE,DATE,TRANSATION_CODE,NET_AMOUNT,SUPPLIER_CODE,SUPPLIER_NAME,FROM_DATE,TO_DATE,FINANCIAL_PERIOD_YEAR
,LEE VALLEY MARINA SPRINGFIELD,EMPLOYEES,CRB CHECKS,1330,ADMIN FEE,10/11/2021 00:00,253897,18,DD0119,DUE DILIGENCE CHECKING LIMITED,27/9/2021 00:00:00,31/10/2021 00:00:00,P07-2022
,LEE VALLEY MARINA SPRINGFIELD,EMPLOYEES,CRB CHECKS,1330,DBS CHECK,10/11/2021 00:00,253897,23,DD0119,DUE DILIGENCE CHECKING LIMITED,27/9/2021 00:00:00,31/10/2021 00:00:00,P07-2022
,LEE VALLEY MARINA STANSTEAD,EMPLOYEES,CRB CHECKS,1330,DBS CHECKS,10/11/2021 00:00,253897,46,DD0119,DUE DILIGENCE CHECKING LIMITED,27/9/2021 00:00:00,31/10/2021 00:00:00,P07-2022
,LEE VALLEY MARINA STANSTEAD,EMPLOYEES,CRB CHECKS,1330,ADMIN FEE,10/11/2021 00:00,253897,36,DD0119,DUE DILIGENCE CHECKING LIMITED,27/9/2021 00:00:00,31/10/2021 00:00:00,P07-2022
,LEE VALLEY CAMPSITE,EMPLOYEES,CRB CHECKS,1330,ADMIN FEE,10/11/2021 00:00,253897,18,DD0119,DUE DILIGENCE CHECKING LIMITED,27/9/2021 00:00:00,31/10/2021 00:00:00,P07-2022
,LEE VALLEY CAMPSITE,EMPLOYEES,CRB CHECKS,1330,DBS CHECK,10/11/2021 00:00,253897,23,DD0119,DUE DILIGENCE CHECKING LIMITED,27/9/2021 00:00:00,31/10/2021 00:00:00,P07-2022
,LEE VALLEY CARAVAN PARK,EMPLOYEES,CRB CHECKS,1330,DBS CHECK,10/11/2021 00:00,253897,23,DD0119,DUE DILIGENCE CHECKING LIMITED,27/9/2021 00:00:00,31/10/2021 00:00:00,P07-2022
,LEE VALLEY CARAVAN PARK,EMPLOYEES,CRB CHECKS,1330,ADMIN FEE,10/11/2021 00:00,253897,18,DD0119,DUE DILIGENCE CHECKING LIMITED,27/9/2021 00:00:00,31/10/2021 00:00:00,P07-2022
P&V,YOUTH AND SCHOOLS,EMPLOYEES,CRB CHECKS,1330,DBS CHECK,10/11/2021 00:00,253897,40,DD0119,DUE DILIGENCE CHECKING LIMITED,27/9/2021 00:00:00,31/10/2021 00:00:00,P07-2022
P&V,YOUTH AND SCHOOLS,EMPLOYEES,CRB CHECKS,1330,ADMIN FEE,10/11/2021 00:00,253897,18,DD0119,DUE DILIGENCE CHECKING LIMITED,27/9/2021 00:00:00,31/10/2021 00:00:00,P07-2022
P&V,YOUTH AND SCHOOLS,EMPLOYEES,CRB CHECKS,1330,P114528-SERVICE-DBS check- Jon Butler,25/10/2021 00:00:00,254048,18,DD0119,DUE DILIGENCE CHECKING LIMITED,27/9/2021 00:00:00,31/10/2021 00:00:00,P07-2022
P&V,EVENTS MANAGEMENT (PR),EMPLOYEES,CRB CHECKS,1330,DBS CHECK,10/11/2021 00:00,253897,40,DD0119,DUE DILIGENCE CHECKING LIMITED,27/9/2021 00:00:00,31/10/2021 00:00:00,P07-2022
P&V,EVENTS MANAGEMENT (PR),EMPLOYEES,CRB CHECKS,1330,ADMIN FEE,10/11/2021 00:00,253897,18,DD0119,DUE DILIGENCE CHECKING LIMITED,27/9/2021 00:00:00,31/10/2021 00:00:00,P07-2022
,LV HOCKEY AND TENNIS CENTRE,EMPLOYEES,CRB CHECKS,1330,DBS CHECKS,10/11/2021 00:00,253897,80,DD0119,DUE DILIGENCE CHECKING LIMITED,27/9/2021 00:00:00,31/10/2021 00:00:00,P07-2022
,LV HOCKEY AND TENNIS CENTRE,EMPLOYEES,CRB CHECKS,1330,ADMIN FEE,10/11/2021 00:00,253897,36,DD0119,DUE DILIGENCE CHECKING LIMITED,27/9/2021 00:00:00,31/10/2021 00:00:00,P07-2022
,LEE VALLEY RIDING CENTRE,EMPLOYEES,CRB CHECKS,1330,ADMIN FEE,10/11/2021 00:00,253897,22,DD0119,DUE DILIGENCE CHECKING LIMITED,27/9/2021 00:00:00,31/10/2021 00:00:00,P07-2022
,LEE VALLEY RIDING CENTRE,EMPLOYEES,CRB CHECKS,1330,DBS CHECKS,10/11/2021 00:00,253897,86,DD0119,DUE DILIGENCE CHECKING LIMITED,27/9/2021 00:00:00,31/10/2021 00:00:00,P07-2022
,LEE VALLEY WHITE WATER CENTRE,EMPLOYEES,CRB CHECKS,1330,DBS CHECKS,10/11/2021 00:00,253897,86,DD0119,DUE DILIGENCE CHECKING LIMITED,27/9/2021 00:00:00,31/10/2021 00:00:00,P07-2022
,LEE VALLEY WHITE WATER CENTRE,EMPLOYEES,CRB CHECKS,1330,ADMIN FEE,10/11/2021 00:00,253897,54,DD0119,DUE DILIGENCE CHECKING LIMITED,27/9/2021 00:00:00,31/10/2021 00:00:00,P07-2022
R&B,CORPORATE TRAINING,EMPLOYEES,APPRENTICE LEVY,1390,PAYE,27/10/2021 00:00:00,254253,1837,HM0368,HMRC,27/9/2021 00:00:00,31/10/2021 00:00:00,P07-2022
CEO,LVLC SERVICE CHARGE,PREMISES RELATED EXPENDITURE,SCHEDULED GROUND MAINTENANCE,2111,GLENDALE GROUNDS MANAGEMENT LI,10/05/2021 00:00,253806,2299.79,GL0214,GLENDALE GROUNDS MANAGEMENT LIMITED,27/9/2021 00:00:00,31/10/2021 00:00:00,P07-2022
CEO,LVLC SERVICE CHARGE,PREMISES RELATED EXPENDITURE,SCHEDULED GROUND MAINTENANCE,2111,GLENDALE GROUNDS MANAGEMENT LI,10/05/2021 00:00,253806,101.36,GL0214,GLENDALE GROUNDS MANAGEMENT LIMITED,27/9/2021 00:00:00,31/10/2021 00:00:00,P07-2022
CEO,LVLC SERVICE CHARGE,PREMISES RELATED EXPENDITURE,SCHEDULED GROUND MAINTENANCE,2111,GLENDALE GROUNDS MANAGEMENT LI,10/05/2021 00:00,253807,280.91,GL0214,GLENDALE GROUNDS MANAGEMENT LIMITED,27/9/2021 00:00:00,31/10/2021 00:00:00,P07-2022
P&V,MYDDELTON HOUSE,PREMISES RELATED EXPENDITURE,CONTRACT CLEANING,2120,P114599-SERVICE-Window Cleaning,14/10/2021 00:00:00,254218,745,PH0424,PHOENIX WINDOW CLEANING LTD,27/9/2021 00:00:00,31/10/2021 00:00:00,P07-2022
P&V,MYDDELTON HOUSE,PREMISES RELATED EXPENDITURE,CONTRACT CLEANING,2120,P114600-SERVICE-Gulley Clean,14/10/2021 00:00:00,254219,565,PH0424,PHOENIX WINDOW CLEANING LTD,27/9/2021 00:00:00,31/10/2021 00:00:00,P07-2022
P&V,MYDDELTON HOUSE,PREMISES RELATED EXPENDITURE,CONTRACT CLEANING,2120,P112094-SERVICE-Myddelton House Cleaning Contract,25/10/2021 00:00:00,254567,3055.52,BR0632,BRITANNIA SERVICES GROUP LTD,27/9/2021 00:00:00,31/10/2021 00:00:00,P07-2022
,LEE VALLEY CAMPSITE,PREMISES RELATED EXPENDITURE,CONTRACT CLEANING,2120,P114477-SERVICE-Monthly Cleaning Sept 21,14/10/2021 00:00:00,254073,1878.5,LI0305,LIMPIAR CLEANING,27/9/2021 00:00:00,31/10/2021 00:00:00,P07-2022
,LEE VALLEY CARAVAN PARK,PREMISES RELATED EXPENDITURE,CONTRACT CLEANING,2120,P114894-SERVICE-Monthly Cleaning,31/10/2021 00:00:00,254071,3376,LI0305,LIMPIAR CLEANING,27/9/2021 00:00:00,31/10/2021 00:00:00,P07-2022
P&V,NORTH AREA RANGERS,PREMISES RELATED EXPENDITURE,CONTRACT CLEANING,2120,GLENDALE GROUNDS MANAGEMENT LI,10/05/2021 00:00,253806,509.09,GL0214,GLENDALE GROUNDS MANAGEMENT LIMITED,27/9/2021 00:00:00,31/10/2021 00:00:00,P07-2022
P&V,GUNPOWDER PARK,PREMISES RELATED EXPENDITURE,CONTRACT CLEANING,2120,GLENDALE GROUNDS MANAGEMENT LI,10/05/2021 00:00,253806,509.09,GL0214,GLENDALE GROUNDS MANAGEMENT LIMITED,27/9/2021 00:00:00,31/10/2021 00:00:00,P07-2022
P&V,RIVER LEE COUNTRY PARK,PREMISES RELATED EXPENDITURE,CONTRACT CLEANING,2120,GLENDALE GROUNDS MANAGEMENT LI,10/05/2021 00:00,253806,1018.19,GL0214,GLENDALE GROUNDS MANAGEMENT LIMITED,27/9/2021 00:00:00,31/10/2021 00:00:00,P07-2022
,LEE VALLEY VELOPARK,PREMISES RELATED EXPENDITURE,CONTRACT CLEANING,2120,P114250-SERVICE-Contract Cleaning,10/06/2021 00:00,253110,613.44,CA0498,CASNA GROUP,27/9/2021 00:00:00,31/10/2021 00:00:00,P07-2022
,LEE VALLEY VELOPARK,PREMISES RELATED EXPENDITURE,CONTRACT CLEANING,2120,P114367-SERVICE-Contract Cleaning,10/11/2021 00:00,253478,531,CA0498,CASNA GROUP,27/9/2021 00:00:00,31/10/2021 00:00:00,P07-2022
,LEE VALLEY VELOPARK,PREMISES RELATED EXPENDITURE,CONTRACT CLEANING,2120,P114376-SERVICE-Contract Cleaning,10/11/2021 00:00,253560,637.2,CA0498,CASNA GROUP,27/9/2021 00:00:00,31/10/2021 00:00:00,P07-2022
,LEE VALLEY VELOPARK,PREMISES RELATED EXPENDITURE,CONTRACT CLEANING,2120,P114642-SERVICE-Contract Cleaning,25/10/2021 00:00:00,254189,619.5,CA0498,CASNA GROUP,27/9/2021 00:00:00,31/10/2021 00:00:00,P07-2022
,LEE VALLEY VELOPARK,PREMISES RELATED EXPENDITURE,CONTRACT CLEANING,2120,P114641-SERVICE-Contract Cleaning,25/10/2021 00:00:00,254190,1037.25,CA0498,CASNA GROUP,27/9/2021 00:00:00,31/10/2021 00:00:00,P07-2022
,LEE VALLEY VELOPARK,PREMISES RELATED EXPENDITURE,CONTRACT CLEANING,2120,P114749-SERVICE-Contract Cleaning,26/10/2021 00:00:00,254555,1035.27,CA0498,CASNA GROUP,27/9/2021 00:00:00,31/10/2021 00:00:00,P07-2022
,LEE VALLEY VELOPARK,PREMISES RELATED EXPENDITURE,CONTRACT CLEANING,2120,P114384-SERVICE-Window Cleaning,25/10/2021 00:00:00,254561,713.13,ELI0362,ELITE SUPPORT SERVICES (LONDON) LIMITED,27/9/2021 00:00:00,31/10/2021 00:00:00,P07-2022
,LV LEISURE CENTRE CAMPSITE,PREMISES RELATED EXPENDITURE,CONTRACT CLEANING,2120,P114513-SERVICE-Sanitary hygiene,10/12/2021 00:00,252871,142.29,PE0015,PHS GROUP PLC,27/9/2021 00:00:00,31/10/2021 00:00:00,P07-2022
,LV LEISURE CENTRE CAMPSITE,PREMISES RELATED EXPENDITURE,CONTRACT CLEANING,2120,P114511-SERVICE-Site cleaning,14/10/2021 00:00:00,254072,1995.5,LI0305,LIMPIAR CLEANING,27/9/2021 00:00:00,31/10/2021 00:00:00,P07-2022
,LEE VALLEY RIDING CENTRE,PREMISES RELATED EXPENDITURE,CLEANING CONTRACT,2121,P113893-SERVICE-centre cleaning august 21 - dec 21,10/07/2021 00:00,253770,1082.01,MA0015,MAYFAIR CLEANING COMPANY LIMITED,27/9/2021 00:00:00,31/10/2021 00:00:00,P07-2022
,LEE VALLEY WHITE WATER CENTRE,PREMISES RELATED EXPENDITURE,CLEANING CONTRACT,2121,P114618-SERVICE-Contract Cleaning - Oct to Mar,19/10/2021 00:00:00,254188,568.14,CA0498,CASNA GROUP,27/9/2021 00:00:00,31/10/2021 00:00:00,P07-2022
,LEE VALLEY WHITE WATER CENTRE,PREMISES RELATED EXPENDITURE,CLEANING CONTRACT,2121,P113926-SERVICE-Contract Cleaners for Aug and Sept.,19/10/2021 00:00:00,254191,1144.64,CA0498,CASNA GROUP,27/9/2021 00:00:00,31/10/2021 00:00:00,P07-2022
,LEE VALLEY WHITE WATER CENTRE,PREMISES RELATED EXPENDITURE,CLEANING CONTRACT,2121,P114618-SERVICE-Contract Cleaning - Oct to Mar,25/10/2021 00:00:00,254554,902.34,CA0498,CASNA GROUP,27/9/2021 00:00:00,31/10/2021 00:00:00,P07-2022
,LEE VALLEY WHITE WATER CENTRE,PREMISES RELATED EXPENDITURE,CLEANING CONTRACT,2121,P114618-SERVICE-Contract Cleaning - Oct to Mar,31/10/2021 00:00:00,255062,852.21,CA0498,CASNA GROUP,27/9/2021 00:00:00,31/10/2021 00:00:00,P07-2022
,LEE VALLEY WHITE WATER CENTRE,PREMISES RELATED EXPENDITURE,CLEANING CONTRACT,2121,P114618-SERVICE-Contract Cleaning - Oct to Mar,31/10/2021 00:00:00,255127,651.69,CA0498,CASNA GROUP,27/9/2021 00:00:00,31/10/2021 00:00:00,P07-2022
,LEE VALLEY MARINA STANSTEAD,PREMISES RELATED EXPENDITURE,GM MAIN CONTRACT SCHEDULED,2141,GLENDALE GROUNDS MANAGEMENT LI,10/05/2021 00:00,253806,353.97,GL0214,GLENDALE GROUNDS MANAGEMENT LIMITED,27/9/2021 00:00:00,31/10/2021 00:00:00,P07-2022
,LEE VALLEY MARINA STANSTEAD,PREMISES RELATED EXPENDITURE,GM MAIN CONTRACT SCHEDULED,2141,GLENDALE GROUNDS MANAGEMENT LI,10/05/2021 00:00,253807,234.77,GL0214,GLENDALE GROUNDS MANAGEMENT LIMITED,27/9/2021 00:00:00,31/10/2021 00:00:00,P07-2022
,LEE VALLEY WATERWORKS CENTRE,PREMISES RELATED EXPENDITURE,GM MAIN CONTRACT SCHEDULED,2141,GLENDALE GROUNDS MANAGEMENT LI,10/05/2021 00:00,253806,403.44,GL0214,GLENDALE GROUNDS MANAGEMENT LIMITED,27/9/2021 00:00:00,31/10/2021 00:00:00,P07-2022
,LEE VALLEY WATERWORKS CENTRE,PREMISES RELATED EXPENDITURE,GM MAIN CONTRACT SCHEDULED,2141,GLENDALE GROUNDS MANAGEMENT LI,10/05/2021 00:00,253806,174.98,GL0214,GLENDALE GROUNDS MANAGEMENT LIMITED,27/9/2021 00:00:00,31/10/2021 00:00:00,P07-2022
,LEE VALLEY WATERWORKS CENTRE,PREMISES RELATED EXPENDITURE,GM MAIN CONTRACT SCHEDULED,2141,GLENDALE GROUNDS MANAGEMENT LI,10/05/2021 00:00,253807,236.23,GL0214,GLENDALE GROUNDS MANAGEMENT LIMITED,27/9/2021 00:00:00,31/10/2021 00:00:00,P07-2022
,LEE VALLEY FARM HAYES HILL,PREMISES RELATED EXPENDITURE,GM MAIN CONTRACT SCHEDULED,2141,GLENDALE GROUNDS MANAGEMENT LI,10/05/2021 00:00,253806,188.49,GL0214,GLENDALE GROUNDS MANAGEMENT LIMITED,27/9/2021 00:00:00,31/10/2021 00:00:00,P07-2022
,LEE VALLEY FARM HAYES HILL,PREMISES RELATED EXPENDITURE,GM MAIN CONTRACT SCHEDULED,2141,GLENDALE GROUNDS MANAGEMENT LI,10/05/2021 00:00,253807,97.61,GL0214,GLENDALE GROUNDS MANAGEMENT LIMITED,27/9/2021 00:00:00,31/10/2021 00:00:00,P07-2022
P&V,EAST INDIA DOCK AND BOW CREEK,PREMISES RELATED EXPENDITURE,GM MAIN CONTRACT SCHEDULED,2141,GLENDALE GROUNDS MANAGEMENT LI,10/05/2021 00:00,253806,716.43,GL0214,GLENDALE GROUNDS MANAGEMENT LIMITED,27/9/2021 00:00:00,31/10/2021 00:00:00,P07-2022
P&V,EAST INDIA DOCK AND BOW CREEK,PREMISES RELATED EXPENDITURE,GM MAIN CONTRACT SCHEDULED,2141,GLENDALE GROUNDS MANAGEMENT LI,10/05/2021 00:00,253806,874.91,GL0214,GLENDALE GROUNDS MANAGEMENT LIMITED,27/9/2021 00:00:00,31/10/2021 00:00:00,P07-2022
P&V,EAST INDIA DOCK AND BOW CREEK,PREMISES RELATED EXPENDITURE,GM MAIN CONTRACT SCHEDULED,2141,GLENDALE GROUNDS MANAGEMENT LI,10/05/2021 00:00,253807,685.52,GL0214,GLENDALE GROUNDS MANAGEMENT LIMITED,27/9/2021 00:00:00,31/10/2021 00:00:00,P07-2022
P&V,NORTH AREA RANGERS,PREMISES RELATED EXPENDITURE,GM MAIN CONTRACT SCHEDULED,2141,GLENDALE GROUNDS MANAGEMENT LI,10/05/2021 00:00,253806,5126.83,GL0214,GLENDALE GROUNDS MANAGEMENT LIMITED,27/9/2021 00:00:00,31/10/2021 00:00:00,P07-2022
R&B,HUMAN RESOURCES,EMPLOYEES,APPOINTMENT EXPENSES,1301,P114681-SERVICE-PLACEMENT FEE B OLADUNJOYE,25/10/2021 00:00:00,254470,2371,HA0019,HAYS ACCOUNTANCY PERSONNEL,27/9/2021 00:00:00,31/10/2021 00:00:00,P07-2022
R&B,INFORMATION TECHNOLOGY,EMPLOYEES,APPOINTMENT EXPENSES,1301,P114514-SERVICE-IT VACANCY ADVERT COSTS,18/10/2021 00:00:00,254393,365,SA0133,SOWERBY ADVERTISING AND COMMUNICATIONS,27/9/2021 00:00:00,31/10/2021 00:00:00,P07-2022
R&B,CORPORATE TRAINING,EMPLOYEES,TRAINING EXPENSES,1305,P114301-SERVICE-EQUALITY AND INCLUSION TRAINING SEPT 21,10/04/2021 00:00,253596,2800,KL0167,KLC EMPLOYMENT LAW CONSULTANTS,27/9/2021 00:00:00,31/10/2021 00:00:00,P07-2022
R&B,CORPORATE TRAINING,EMPLOYEES,TRAINING EXPENSES,1305,P114478-SERVICE-C KHOURI PADDLESPORT LEADER ASSESSM 12 OCT 21,10/07/2021 00:00,254076,139,DO0315,DORSET COUNCIL OUTDOOR EDUCATION CENTRE,27/9/2021 00:00:00,31/10/2021 00:00:00,P07-2022
R&B,CORPORATE TRAINING,EMPLOYEES,TRAINING EXPENSES,1305,P114550-SERVICE-K STRANGE FAW 26-28 OCT 21,18/10/2021 00:00:00,254379,379,BR0069,BRITISH RED CROSS SOCIETY,27/9/2021 00:00:00,31/10/2021 00:00:00,P07-2022
R&B,CORPORATE TRAINING,EMPLOYEES,TRAINING EXPENSES,1305,P114677-SERVICE-D AVERY COURSE FEES POST GRAD,26/10/2021 00:00:00,254469,3120,BI0637,BIRKBECK UNIVERSITY OF LONDON,27/9/2021 00:00:00,31/10/2021 00:00:00,P07-2022
CEO,PROPERTY,EMPLOYEES,TRAINING EXPENSES,1305,P114448-SERVICE-Current Property Issues Conference,10/07/2021 00:00,253615,134,PR0031,PROFESSIONAL CONFERENCES,27/9/2021 00:00:00,31/10/2021 00:00:00,P07-2022
CEO,PROPERTY,EMPLOYEES,TRAINING EXPENSES,1305,P114496-SERVICE-PRO CONFERENCES,10/11/2021 00:00,254126,134,PR0031,PROFESSIONAL CONFERENCES,27/9/2021 00:00:00,31/10/2021 00:00:00,P07-2022
R&B,INFORMATION TECHNOLOGY,EMPLOYEES,TRAINING EXPENSES,1305,P114319-SERVICE-ArcGIS Pro 2 � Essential Workflows,10/06/2021 00:00,253645,800,ES0361,ESRI (UK) LTD,27/9/2021 00:00:00,31/10/2021 00:00:00,P07-2022
P&V,LEE VALLEY FARM HOLYFIELDHALL,EMPLOYEES,TRAINING EXPENSES,1305,P114572-SERVICE-Pesticide Training for Richard Waddington,18/10/2021 00:00:00,254214,140,SA0137,SAFFRON WALDEN AGRICULTURAL TRAINING GROUP,27/9/2021 00:00:00,31/10/2021 00:00:00,P07-2022
R&B,NON DISTRIBUTED COSTS,EMPLOYEES,SUPERANNUATION ADDED YEARS,1310,LONDON PENSIONS FUND AUTHORITY,10/04/2021 00:00,253791,6696.34,LO0031,LONDON PENSIONS FUND AUTHORITY,27/9/2021 00:00:00,31/10/2021 00:00:00,P07-2022
P&V,NORTH AREA RANGERS,PREMISES RELATED EXPENDITURE,GM MAIN CONTRACT SCHEDULED,2141,GLENDALE GROUNDS MANAGEMENT LI,10/05/2021 00:00,253807,1782.84,GL0214,GLENDALE GROUNDS MANAGEMENT LIMITED,27/9/2021 00:00:00,31/10/2021 00:00:00,P07-2022
P&V,SOUTH AREA RANGERS,PREMISES RELATED EXPENDITURE,GM MAIN CONTRACT SCHEDULED,2141,GLENDALE GROUNDS MANAGEMENT LI,10/05/2021 00:00,253806,349.96,GL0214,GLENDALE GROUNDS MANAGEMENT LIMITED,27/9/2021 00:00:00,31/10/2021 00:00:00,P07-2022
P&V,SOUTH AREA RANGERS,PREMISES RELATED EXPENDITURE,GM MAIN CONTRACT SCHEDULED,2141,GLENDALE GROUNDS MANAGEMENT LI,10/05/2021 00:00,253806,9985.29,GL0214,GLENDALE GROUNDS MANAGEMENT LIMITED,27/9/2021 00:00:00,31/10/2021 00:00:00,P07-2022
P&V,SOUTH AREA RANGERS,PREMISES RELATED EXPENDITURE,GM MAIN CONTRACT SCHEDULED,2141,GLENDALE GROUNDS MANAGEMENT LI,10/05/2021 00:00,253807,2636.56,GL0214,GLENDALE GROUNDS MANAGEMENT LIMITED,27/9/2021 00:00:00,31/10/2021 00:00:00,P07-2022
P&V,ABBEY GARDENS,PREMISES RELATED EXPENDITURE,GM MAIN CONTRACT SCHEDULED,2141,GLENDALE GROUNDS MANAGEMENT LI,10/05/2021 00:00,253806,2663.46,GL0214,GLENDALE GROUNDS MANAGEMENT LIMITED,27/9/2021 00:00:00,31/10/2021 00:00:00,P07-2022
P&V,ABBEY GARDENS,PREMISES RELATED EXPENDITURE,GM MAIN CONTRACT SCHEDULED,2141,GLENDALE GROUNDS MANAGEMENT LI,10/05/2021 00:00,253807,514.1,GL0214,GLENDALE GROUNDS MANAGEMENT LIMITED,27/9/2021 00:00:00,31/10/2021 00:00:00,P07-2022
P&V,GUNPOWDER PARK,PREMISES RELATED EXPENDITURE,GM MAIN CONTRACT SCHEDULED,2141,GLENDALE GROUNDS MANAGEMENT LI,10/05/2021 00:00,253806,3028.86,GL0214,GLENDALE GROUNDS MANAGEMENT LIMITED,27/9/2021 00:00:00,31/10/2021 00:00:00,P07-2022
P&V,GUNPOWDER PARK,PREMISES RELATED EXPENDITURE,GM MAIN CONTRACT SCHEDULED,2141,GLENDALE GROUNDS MANAGEMENT LI,10/05/2021 00:00,253807,1083.94,GL0214,GLENDALE GROUNDS MANAGEMENT LIMITED,27/9/2021 00:00:00,31/10/2021 00:00:00,P07-2022
P&V,RIVER LEE COUNTRY PARK,PREMISES RELATED EXPENDITURE,GM MAIN CONTRACT SCHEDULED,2141,GLENDALE GROUNDS MANAGEMENT LI,10/05/2021 00:00,253806,2099.79,GL0214,GLENDALE GROUNDS MANAGEMENT LIMITED,27/9/2021 00:00:00,31/10/2021 00:00:00,P07-2022
P&V,RIVER LEE COUNTRY PARK,PREMISES RELATED EXPENDITURE,GM MAIN CONTRACT SCHEDULED,2141,GLENDALE GROUNDS MANAGEMENT LI,10/05/2021 00:00,253806,18151.82,GL0214,GLENDALE GROUNDS MANAGEMENT LIMITED,27/9/2021 00:00:00,31/10/2021 00:00:00,P07-2022
P&V,RIVER LEE COUNTRY PARK,PREMISES RELATED EXPENDITURE,GM MAIN CONTRACT SCHEDULED,2141,GLENDALE GROUNDS MANAGEMENT LI,10/05/2021 00:00,253807,7667.47,GL0214,GLENDALE GROUNDS MANAGEMENT LIMITED,27/9/2021 00:00:00,31/10/2021 00:00:00,P07-2022
,LEE VALLEY VELOPARK,PREMISES RELATED EXPENDITURE,GM MAIN CONTRACT SCHEDULED,2141,GLENDALE GROUNDS MANAGEMENT LI,10/05/2021 00:00,253806,1692.19,GL0214,GLENDALE GROUNDS MANAGEMENT LIMITED,27/9/2021 00:00:00,31/10/2021 00:00:00,P07-2022
,LEE VALLEY VELOPARK,PREMISES RELATED EXPENDITURE,GM MAIN CONTRACT SCHEDULED,2141,GLENDALE GROUNDS MANAGEMENT LI,10/05/2021 00:00,253807,256.6,GL0214,GLENDALE GROUNDS MANAGEMENT LIMITED,27/9/2021 00:00:00,31/10/2021 00:00:00,P07-2022
,LV HOCKEY AND TENNIS CENTRE,PREMISES RELATED EXPENDITURE,GM MAIN CONTRACT SCHEDULED,2141,GLENDALE GROUNDS MANAGEMENT LI,10/05/2021 00:00,253806,2067.88,GL0214,GLENDALE GROUNDS MANAGEMENT LIMITED,27/9/2021 00:00:00,31/10/2021 00:00:00,P07-2022
,LV HOCKEY AND TENNIS CENTRE,PREMISES RELATED EXPENDITURE,GM MAIN CONTRACT SCHEDULED,2141,GLENDALE GROUNDS MANAGEMENT LI,10/05/2021 00:00,253807,224.16,GL0214,GLENDALE GROUNDS MANAGEMENT LIMITED,27/9/2021 00:00:00,31/10/2021 00:00:00,P07-2022
P&V,THREE MILLS,PREMISES RELATED EXPENDITURE,GM MAIN CONTRACT SCHEDULED,2141,GLENDALE GROUNDS MANAGEMENT LI,10/05/2021 00:00,253806,1201.76,GL0214,GLENDALE GROUNDS MANAGEMENT LIMITED,27/9/2021 00:00:00,31/10/2021 00:00:00,P07-2022
P&V,THREE MILLS,PREMISES RELATED EXPENDITURE,GM MAIN CONTRACT SCHEDULED,2141,GLENDALE GROUNDS MANAGEMENT LI,10/05/2021 00:00,253807,199.35,GL0214,GLENDALE GROUNDS MANAGEMENT LIMITED,27/9/2021 00:00:00,31/10/2021 00:00:00,P07-2022
,LEE VALLEY RIDING CENTRE,PREMISES RELATED EXPENDITURE,GM MAIN CONTRACT SCHEDULED,2141,GLENDALE GROUNDS MANAGEMENT LI,10/05/2021 00:00,253806,443.4,GL0214,GLENDALE GROUNDS MANAGEMENT LIMITED,27/9/2021 00:00:00,31/10/2021 00:00:00,P07-2022
,LEE VALLEY RIDING CENTRE,PREMISES RELATED EXPENDITURE,GM MAIN CONTRACT SCHEDULED,2141,GLENDALE GROUNDS MANAGEMENT LI,10/05/2021 00:00,253807,140.35,GL0214,GLENDALE GROUNDS MANAGEMENT LIMITED,27/9/2021 00:00:00,31/10/2021 00:00:00,P07-2022
,LEE VALLEY ICE CENTRE,PREMISES RELATED EXPENDITURE,GM MAIN CONTRACT SCHEDULED,2141,GLENDALE GROUNDS MANAGEMENT LI,10/05/2021 00:00,253806,309.88,GL0214,GLENDALE GROUNDS MANAGEMENT LIMITED,27/9/2021 00:00:00,31/10/2021 00:00:00,P07-2022
,LEE VALLEY ICE CENTRE,PREMISES RELATED EXPENDITURE,GM MAIN CONTRACT SCHEDULED,2141,GLENDALE GROUNDS MANAGEMENT LI,10/05/2021 00:00,253807,50.45,GL0214,GLENDALE GROUNDS MANAGEMENT LIMITED,27/9/2021 00:00:00,31/10/2021 00:00:00,P07-2022
P&V,FORMER LV LIDO SITE,PREMISES RELATED EXPENDITURE,GM MAIN CONTRACT SCHEDULED,2141,GLENDALE GROUNDS MANAGEMENT LI,10/05/2021 00:00,253806,954.78,GL0214,GLENDALE GROUNDS MANAGEMENT LIMITED,27/9/2021 00:00:00,31/10/2021 00:00:00,P07-2022
P&V,FORMER LV LIDO SITE,PREMISES RELATED EXPENDITURE,GM MAIN CONTRACT SCHEDULED,2141,GLENDALE GROUNDS MANAGEMENT LI,10/05/2021 00:00,253807,301.05,GL0214,GLENDALE GROUNDS MANAGEMENT LIMITED,27/9/2021 00:00:00,31/10/2021 00:00:00,P07-2022
,LEE VALLEY ATHLETICS CENTRE,PREMISES RELATED EXPENDITURE,GM MAIN CONTRACT SCHEDULED,2141,GLENDALE GROUNDS MANAGEMENT LI,10/05/2021 00:00,253806,467.68,GL0214,GLENDALE GROUNDS MANAGEMENT LIMITED,27/9/2021 00:00:00,31/10/2021 00:00:00,P07-2022
,LEE VALLEY ATHLETICS CENTRE,PREMISES RELATED EXPENDITURE,GM MAIN CONTRACT SCHEDULED,2141,GLENDALE GROUNDS MANAGEMENT LI,10/05/2021 00:00,253807,291.47,GL0214,GLENDALE GROUNDS MANAGEMENT LIMITED,27/9/2021 00:00:00,31/10/2021 00:00:00,P07-2022
,LEE VALLEY WHITE WATER CENTRE,PREMISES RELATED EXPENDITURE,GM MAIN CONTRACT SCHEDULED,2141,GLENDALE GROUNDS MANAGEMENT LI,10/05/2021 00:00,253806,1658.49,GL0214,GLENDALE GROUNDS MANAGEMENT LIMITED,27/9/2021 00:00:00,31/10/2021 00:00:00,P07-2022
,LEE VALLEY WHITE WATER CENTRE,PREMISES RELATED EXPENDITURE,GM MAIN CONTRACT SCHEDULED,2141,GLENDALE GROUNDS MANAGEMENT LI,10/05/2021 00:00,253807,898.27,GL0214,GLENDALE GROUNDS MANAGEMENT LIMITED,27/9/2021 00:00:00,31/10/2021 00:00:00,P07-2022
,LEE VALLEY WATERWORKS CENTRE,PREMISES RELATED EXPENDITURE,GM MAIN CONTRACT UNSCHEDULED,2142,P114183-SERVICE-Tree works at Waterwroks,10/12/2021 00:00,253830,450,PA0222,PARKIN & PARKER TREE SPECIALISTS,27/9/2021 00:00:00,31/10/2021 00:00:00,P07-2022
,LEE VALLEY WATERWORKS CENTRE,PREMISES RELATED EXPENDITURE,GM HORTICULTURE SCHEDULED,2143,GLENDALE GROUNDS MANAGEMENT LI,10/05/2021 00:00,253806,155.61,GL0214,GLENDALE GROUNDS MANAGEMENT LIMITED,27/9/2021 00:00:00,31/10/2021 00:00:00,P07-2022
P&V,NORTH AREA RANGERS,PREMISES RELATED EXPENDITURE,GM HORTICULTURE SCHEDULED,2143,GLENDALE GROUNDS MANAGEMENT LI,10/05/2021 00:00,253806,218.65,GL0214,GLENDALE GROUNDS MANAGEMENT LIMITED,27/9/2021 00:00:00,31/10/2021 00:00:00,P07-2022
P&V,SOUTH AREA RANGERS,PREMISES RELATED EXPENDITURE,GM HORTICULTURE SCHEDULED,2143,GLENDALE GROUNDS MANAGEMENT LI,10/05/2021 00:00,253806,126.5,GL0214,GLENDALE GROUNDS MANAGEMENT LIMITED,27/9/2021 00:00:00,31/10/2021 00:00:00,P07-2022
P&V,ABBEY GARDENS,PREMISES RELATED EXPENDITURE,GM HORTICULTURE SCHEDULED,2143,GLENDALE GROUNDS MANAGEMENT LI,10/05/2021 00:00,253806,1819.81,GL0214,GLENDALE GROUNDS MANAGEMENT LIMITED,27/9/2021 00:00:00,31/10/2021 00:00:00,P07-2022
P&V,GUNPOWDER PARK,PREMISES RELATED EXPENDITURE,GM HORTICULTURE SCHEDULED,2143,GLENDALE GROUNDS MANAGEMENT LI,10/05/2021 00:00,253806,238.2,GL0214,GLENDALE GROUNDS MANAGEMENT LIMITED,27/9/2021 00:00:00,31/10/2021 00:00:00,P07-2022
P&V,RIVER LEE COUNTRY PARK,PREMISES RELATED EXPENDITURE,GM HORTICULTURE SCHEDULED,2143,GLENDALE GROUNDS MANAGEMENT LI,10/05/2021 00:00,253806,122.16,GL0214,GLENDALE GROUNDS MANAGEMENT LIMITED,27/9/2021 00:00:00,31/10/2021 00:00:00,P07-2022
,LEE VALLEY VELOPARK,PREMISES RELATED EXPENDITURE,GM HORTICULTURE SCHEDULED,2143,GLENDALE GROUNDS MANAGEMENT LI,10/05/2021 00:00,253806,39.32,GL0214,GLENDALE GROUNDS MANAGEMENT LIMITED,27/9/2021 00:00:00,31/10/2021 00:00:00,P07-2022
,LV HOCKEY AND TENNIS CENTRE,PREMISES RELATED EXPENDITURE,GM HORTICULTURE SCHEDULED,2143,GLENDALE GROUNDS MANAGEMENT LI,10/05/2021 00:00,253806,1056.86,GL0214,GLENDALE GROUNDS MANAGEMENT LIMITED,27/9/2021 00:00:00,31/10/2021 00:00:00,P07-2022
P&V,THREE MILLS,PREMISES RELATED EXPENDITURE,GM HORTICULTURE SCHEDULED,2143,GLENDALE GROUNDS MANAGEMENT LI,10/05/2021 00:00,253806,40,GL0214,GLENDALE GROUNDS MANAGEMENT LIMITED,27/9/2021 00:00:00,31/10/2021 00:00:00,P07-2022
,LEE VALLEY RIDING CENTRE,PREMISES RELATED EXPENDITURE,GM HORTICULTURE SCHEDULED,2143,GLENDALE GROUNDS MANAGEMENT LI,10/05/2021 00:00,253806,12.38,GL0214,GLENDALE GROUNDS MANAGEMENT LIMITED,27/9/2021 00:00:00,31/10/2021 00:00:00,P07-2022
,LEE VALLEY WHITE WATER CENTRE,PREMISES RELATED EXPENDITURE,GM HORTICULTURE SCHEDULED,2143,GLENDALE GROUNDS MANAGEMENT LI,10/05/2021 00:00,253806,5.73,GL0214,GLENDALE GROUNDS MANAGEMENT LIMITED,27/9/2021 00:00:00,31/10/2021 00:00:00,P07-2022
P&V,NORTH AREA RANGERS,PREMISES RELATED EXPENDITURE,GM ARBORICULTURE UNSCHEDULED,2146,P113551-SERVICE-Tree works at Old Mill & Meadows,30/9/2021 00:00:00,253158,125,VE0004,PRINCIPAL TREES LTD,27/9/2021 00:00:00,31/10/2021 00:00:00,P07-2022
P&V,NORTH AREA RANGERS,PREMISES RELATED EXPENDITURE,GM ARBORICULTURE UNSCHEDULED,2146,P113841-SERVICE-Tree Works at Disabled Site Dobbs Weir,18/10/2021 00:00:00,253307,520,VE0004,PRINCIPAL TREES LTD,27/9/2021 00:00:00,31/10/2021 00:00:00,P07-2022
P&V,GUNPOWDER PARK,PREMISES RELATED EXPENDITURE,GM ARBORICULTURE UNSCHEDULED,2146,P114444-SERVICE-Tree Works at Knights Pits,18/10/2021 00:00:00,254154,350,PA0222,PARKIN & PARKER TREE SPECIALISTS,27/9/2021 00:00:00,31/10/2021 00:00:00,P07-2022
P&V,GUNPOWDER PARK,PREMISES RELATED EXPENDITURE,GM ARBORICULTURE UNSCHEDULED,2146,P114436-SERVICE-Tree Works - Black Ditch Gunpowder Park,18/10/2021 00:00:00,254155,350,PA0222,PARKIN & PARKER TREE SPECIALISTS,27/9/2021 00:00:00,31/10/2021 00:00:00,P07-2022
P&V,NORTH AREA RANGERS,PREMISES RELATED EXPENDITURE,GM NON MAIN CONT UNSCHEDULED,2147,"P113018-SERVICE-Cut, Collect and Dispose Ragwort at Ryegate F",31/10/2021 00:00:00,254740,2250,BU0088,BURNELL CONTRACTING,27/9/2021 00:00:00,31/10/2021 00:00:00,P07-2022
P&V,SOUTH AREA RANGERS,PREMISES RELATED EXPENDITURE,GM NON MAIN CONT UNSCHEDULED,2147,P112766-SERVICE-Clear Vegetation from Temple Mill Lane,25/10/2021 00:00:00,254670,382.43,GL0214,GLENDALE GROUNDS MANAGEMENT LIMITED,27/9/2021 00:00:00,31/10/2021 00:00:00,P07-2022
P&V,GUNPOWDER PARK,PREMISES RELATED EXPENDITURE,GM NON MAIN CONT UNSCHEDULED,2147,P114222-SERVICE-Install Steps at Knights Pits,31/10/2021 00:00:00,255016,600,JO0019,R G JOYCE,27/9/2021 00:00:00,31/10/2021 00:00:00,P07-2022
P&V,EAST INDIA DOCK AND BOW CREEK,PREMISES RELATED EXPENDITURE,HABITAT MANAGEMENT WORKS,2149,P113886-SERVICE-Clear Vegetation - Bow Creek,10/12/2021 00:00,253760,480,JO0019,R G JOYCE,27/9/2021 00:00:00,31/10/2021 00:00:00,P07-2022
P&V,EAST INDIA DOCK AND BOW CREEK,PREMISES RELATED EXPENDITURE,HABITAT MANAGEMENT WORKS,2149,P113886-SERVICE-Clear Vegetation - East India Dock Basin,10/12/2021 00:00,253760,350,JO0019,R G JOYCE,27/9/2021 00:00:00,31/10/2021 00:00:00,P07-2022
P&V,NORTH AREA RANGERS,PREMISES RELATED EXPENDITURE,HABITAT MANAGEMENT WORKS,2149,P111636-SERVICE-Remove Stumps and Soil at Glen Faba,31/10/2021 00:00:00,254740,730,BU0088,BURNELL CONTRACTING,27/9/2021 00:00:00,31/10/2021 00:00:00,P07-2022
P&V,SOUTH AREA RANGERS,PREMISES RELATED EXPENDITURE,HABITAT MANAGEMENT WORKS,2149,P114017-SERVICE-RORO Green Waste Skip,10/11/2021 00:00,253489,420,MC0331,MCGRATH BROS WASTE CONTROL LIMITED,27/9/2021 00:00:00,31/10/2021 00:00:00,P07-2022
P&V,SOUTH AREA RANGERS,PREMISES RELATED EXPENDITURE,HABITAT MANAGEMENT WORKS,2149,P112317-SERVICE-Hogweed at Middlesex Filter Beds,10/04/2021 00:00,253606,240,GO0044,S.H.GOSS & CO LTD,27/9/2021 00:00:00,31/10/2021 00:00:00,P07-2022
P&V,SOUTH AREA RANGERS,PREMISES RELATED EXPENDITURE,HABITAT MANAGEMENT WORKS,2149,P114080-SERVICE-Fallen poplar by gate cut and stack,10/11/2021 00:00,253828,125,PA0222,PARKIN & PARKER TREE SPECIALISTS,27/9/2021 00:00:00,31/10/2021 00:00:00,P07-2022
P&V,SOUTH AREA RANGERS,PREMISES RELATED EXPENDITURE,HABITAT MANAGEMENT WORKS,2149,P114080-SERVICE-Large split limb cut up bed 2,10/11/2021 00:00,253828,100,PA0222,PARKIN & PARKER TREE SPECIALISTS,27/9/2021 00:00:00,31/10/2021 00:00:00,P07-2022
P&V,SOUTH AREA RANGERS,PREMISES RELATED EXPENDITURE,HABITAT MANAGEMENT WORKS,2149,P114080-SERVICE-Hanging limb over path,10/11/2021 00:00,253828,75,PA0222,PARKIN & PARKER TREE SPECIALISTS,27/9/2021 00:00:00,31/10/2021 00:00:00,P07-2022
P&V,SOUTH AREA RANGERS,PREMISES RELATED EXPENDITURE,HABITAT MANAGEMENT WORKS,2149,P114080-SERVICE-Bed 3 clear self sown trees and roses bramble,10/11/2021 00:00,253828,550,PA0222,PARKIN & PARKER TREE SPECIALISTS,27/9/2021 00:00:00,31/10/2021 00:00:00,P07-2022
P&V,SOUTH AREA RANGERS,PREMISES RELATED EXPENDITURE,HABITAT MANAGEMENT WORKS,2149,P114087-SERVICE-Waterworks Field Meadow cuts,18/10/2021 00:00:00,254381,1440,BU0090,BUSH WHEELER SERVICES LTD,27/9/2021 00:00:00,31/10/2021 00:00:00,P07-2022
P&V,SOUTH AREA RANGERS,PREMISES RELATED EXPENDITURE,HABITAT MANAGEMENT WORKS,2149,P114479-SERVICE-1 x 20 yard roro green waste skip,26/10/2021 00:00:00,254480,420,MC0331,MCGRATH BROS WASTE CONTROL LIMITED,27/9/2021 00:00:00,31/10/2021 00:00:00,P07-2022
P&V,GUNPOWDER PARK,PREMISES RELATED EXPENDITURE,HABITAT MANAGEMENT WORKS,2149,P112356-SERVICE-Japanese Knotweed at Rammey Marsh,19/10/2021 00:00:00,253256,225,GO0044,S.H.GOSS & CO LTD,27/9/2021 00:00:00,31/10/2021 00:00:00,P07-2022
P&V,GUNPOWDER PARK,PREMISES RELATED EXPENDITURE,HABITAT MANAGEMENT WORKS,2149,P114086-SERVICE-Rammey Marsh Meadow cuts,18/10/2021 00:00:00,254382,1280,BU0090,BUSH WHEELER SERVICES LTD,27/9/2021 00:00:00,31/10/2021 00:00:00,P07-2022
P&V,THREE MILLS,PREMISES RELATED EXPENDITURE,HABITAT MANAGEMENT WORKS,2149,P113887-SERVICE-Clear Vegetation at Three Mills,10/12/2021 00:00,253761,150,JO0019,R G JOYCE,27/9/2021 00:00:00,31/10/2021 00:00:00,P07-2022
,LEE VALLEY MARINA SPRINGFIELD,PREMISES RELATED EXPENDITURE,GENERAL WASTE,2211,P114534-SERVICE-Site general waste & Recyling Sep & Oct 2021,10/11/2021 00:00,253852,1071.07,CL0037,VEOLIA ES (UK) LTD,27/9/2021 00:00:00,31/10/2021 00:00:00,P07-2022
,LEE VALLEY MARINA SPRINGFIELD,PREMISES RELATED EXPENDITURE,GENERAL WASTE,2211,P114608-SERVICE-8 yard skip on 15-10-2021,25/10/2021 00:00:00,254466,230.9,OD0010,O'DONOVAN (WASTE DISPOSAL) LTD,27/9/2021 00:00:00,31/10/2021 00:00:00,P07-2022
,LEE VALLEY MARINA STANSTEAD,PREMISES RELATED EXPENDITURE,GENERAL WASTE,2211,P112012-SERVICE-Annual waste removal RH &SA moorings,10/12/2021 00:00,253856,597.75,CL0037,VEOLIA ES (UK) LTD,27/9/2021 00:00:00,31/10/2021 00:00:00,P07-2022
,LEE VALLEY MARINA STANSTEAD,PREMISES RELATED EXPENDITURE,GENERAL WASTE,2211,P112012-SERVICE-Annual waste removal RH &SA moorings,10/12/2021 00:00,253857,196.8,CL0037,VEOLIA ES (UK) LTD,27/9/2021 00:00:00,31/10/2021 00:00:00,P07-2022
,LEE VALLEY MARINA STANSTEAD,PREMISES RELATED EXPENDITURE,GENERAL WASTE,2211,P112012-SERVICE-Annual waste removal RH &SA moorings,10/11/2021 00:00,253862,43.05,CL0037,VEOLIA ES (UK) LTD,27/9/2021 00:00:00,31/10/2021 00:00:00,P07-2022
,LEE VALLEY CAMPSITE,PREMISES RELATED EXPENDITURE,GENERAL WASTE,2211,P114605-SERVICE-September skip empty,14/10/2021 00:00:00,253859,967.58,CL0037,VEOLIA ES (UK) LTD,27/9/2021 00:00:00,31/10/2021 00:00:00,P07-2022
,LEE VALLEY CAMPSITE,PREMISES RELATED EXPENDITURE,GENERAL WASTE,2211,P114605-SERVICE-12 yd removed,14/10/2021 00:00:00,253861,371.52,CL0037,VEOLIA ES (UK) LTD,27/9/2021 00:00:00,31/10/2021 00:00:00,P07-2022
,LEE VALLEY CARAVAN PARK,PREMISES RELATED EXPENDITURE,GENERAL WASTE,2211,P114840-SERVICE-Veolia - Skips Empting,27/10/2021 00:00:00,253860,1881.21,CL0037,VEOLIA ES (UK) LTD,27/9/2021 00:00:00,31/10/2021 00:00:00,P07-2022
P&V,NORTH AREA RANGERS,PREMISES RELATED EXPENDITURE,GENERAL WASTE,2211,P111553-SERVICE-Litter Pick at Wharf Road Area,25/10/2021 00:00:00,254472,300,JO0019,R G JOYCE,27/9/2021 00:00:00,31/10/2021 00:00:00,P07-2022
P&V,SOUTH AREA RANGERS,PREMISES RELATED EXPENDITURE,GENERAL WASTE,2211,P113375-SERVICE-Skip at WaterWorks Centre,10/12/2021 00:00,253837,270,GB0239,GBN SERVICES LTD,27/9/2021 00:00:00,31/10/2021 00:00:00,P07-2022
P&V,RIVER LEE COUNTRY PARK,PREMISES RELATED EXPENDITURE,GENERAL WASTE,2211,CAPSER,10/06/2021 00:00,253758,-500,MO0041,CAPSER,27/9/2021 00:00:00,31/10/2021 00:00:00,P07-2022
P&V,RIVER LEE COUNTRY PARK,PREMISES RELATED EXPENDITURE,GENERAL WASTE,2211,CAPSER,10/06/2021 00:00,253758,400,MO0041,CAPSER,27/9/2021 00:00:00,31/10/2021 00:00:00,P07-2022
P&V,RIVER LEE COUNTRY PARK,PREMISES RELATED EXPENDITURE,GENERAL WASTE,2211,CAPSER,10/06/2021 00:00,253758,100,MO0041,CAPSER,27/9/2021 00:00:00,31/10/2021 00:00:00,P07-2022
P&V,RIVER LEE COUNTRY PARK,PREMISES RELATED EXPENDITURE,GENERAL WASTE,2211,P111564-SERVICE-Grand Weir Hide Remove & Make Safe,10/06/2021 00:00,253758,500,MO0041,CAPSER,27/9/2021 00:00:00,31/10/2021 00:00:00,P07-2022
P&V,RIVER LEE COUNTRY PARK,PREMISES RELATED EXPENDITURE,GENERAL WASTE,2211,P114286-SERVICE-12yd General Rubbish Skip at Holyfield Hall F,10/11/2021 00:00,253836,270,GB0239,GBN SERVICES LTD,27/9/2021 00:00:00,31/10/2021 00:00:00,P07-2022
P&V,RIVER LEE COUNTRY PARK,PREMISES RELATED EXPENDITURE,GENERAL WASTE,2211,P114286-SERVICE-12yd General Rubbish Skip at Holyfield Hall F,31/10/2021 00:00:00,254727,270,GB0239,GBN SERVICES LTD,27/9/2021 00:00:00,31/10/2021 00:00:00,P07-2022
P&V,ALMOST WILD CAMPSITE,PREMISES RELATED EXPENDITURE,GENERAL WASTE,2211,P114360-SERVICE-Empty 2 toilets,30/9/2021 00:00:00,252551,250,CO0550,CONVERT WATER LTD,27/9/2021 00:00:00,31/10/2021 00:00:00,P07-2022
P&V,ALMOST WILD CAMPSITE,PREMISES RELATED EXPENDITURE,GENERAL WASTE,2211,P114363-SERVICE-Empty 2 toilets,30/9/2021 00:00:00,253544,250,CO0550,CONVERT WATER LTD,27/9/2021 00:00:00,31/10/2021 00:00:00,P07-2022
P&V,ALMOST WILD CAMPSITE,PREMISES RELATED EXPENDITURE,GENERAL WASTE,2211,P114712-SERVICE-Empty 2 toilets,25/10/2021 00:00:00,254440,250,CO0550,CONVERT WATER LTD,27/9/2021 00:00:00,31/10/2021 00:00:00,P07-2022
,LEE VALLEY VELOPARK,PREMISES RELATED EXPENDITURE,GENERAL WASTE,2211,P114518-SERVICE-Secure Waste Disposal,10/11/2021 00:00,253812,285.27,PE0015,PHS GROUP PLC,27/9/2021 00:00:00,31/10/2021 00:00:00,P07-2022
,LEE VALLEY VELOPARK,PREMISES RELATED EXPENDITURE,GENERAL WASTE,2211,P114522-SERVICE-Waste Disposal,10/11/2021 00:00,253853,539.53,CL0037,VEOLIA ES (UK) LTD,27/9/2021 00:00:00,31/10/2021 00:00:00,P07-2022
,LV HOCKEY AND TENNIS CENTRE,PREMISES RELATED EXPENDITURE,GENERAL WASTE,2211,P113890-SERVICE-waste removal and duty of care,10/07/2021 00:00,253854,143.24,CL0037,VEOLIA ES (UK) LTD,27/9/2021 00:00:00,31/10/2021 00:00:00,P07-2022
,LEE VALLEY RIDING CENTRE,PREMISES RELATED EXPENDITURE,GENERAL WASTE,2211,P112045-SERVICE-Recycling waste & compactor,10/07/2021 00:00,254064,1110.76,BY0049,BYWATERS (LEYTON) LTD,27/9/2021 00:00:00,31/10/2021 00:00:00,P07-2022
,LEE VALLEY RIDING CENTRE,PREMISES RELATED EXPENDITURE,GENERAL WASTE,2211,P112045-SERVICE-Recycling waste & compactor,10/07/2021 00:00,254065,960.41,BY0049,BYWATERS (LEYTON) LTD,27/9/2021 00:00:00,31/10/2021 00:00:00,P07-2022
,LV LEISURE CENTRE CAMPSITE,PREMISES RELATED EXPENDITURE,GENERAL WASTE,2211,P114507-SERVICE-refuse collection and skip,14/10/2021 00:00:00,253858,1173.05,CL0037,VEOLIA ES (UK) LTD,27/9/2021 00:00:00,31/10/2021 00:00:00,P07-2022
,LV LEISURE CENTRE CAMPSITE,PREMISES RELATED EXPENDITURE,GENERAL WASTE,2211,P114508-SERVICE-Recycling empty,10/12/2021 00:00,254066,79.56,BY0049,BYWATERS (LEYTON) LTD,27/9/2021 00:00:00,31/10/2021 00:00:00,P07-2022
,LV LEISURE CENTRE CAMPSITE,PREMISES RELATED EXPENDITURE,GENERAL WASTE,2211,P114510-SERVICE-Recycling,14/10/2021 00:00:00,254067,267.98,BY0049,BYWATERS (LEYTON) LTD,27/9/2021 00:00:00,31/10/2021 00:00:00,P07-2022
,LEE VALLEY WHITE WATER CENTRE,PREMISES RELATED EXPENDITURE,GENERAL WASTE,2211,P112021-SERVICE-Refuse Collections April 21 to March 22,10/11/2021 00:00,254063,1620.1,BY0049,BYWATERS (LEYTON) LTD,27/9/2021 00:00:00,31/10/2021 00:00:00,P07-2022
,LEE VALLEY WHITE WATER CENTRE,PREMISES RELATED EXPENDITURE,GENERAL WASTE,2211,P112021-SERVICE-Refuse Collections April 21 to March 22,19/10/2021 00:00:00,254423,414.62,BY0049,BYWATERS (LEYTON) LTD,27/9/2021 00:00:00,31/10/2021 00:00:00,P07-2022
,LEE VALLEY ICE CENTRE,PREMISES RELATED EXPENDITURE,HAZARDOUS WASTE DISPOSAL,2212,P112958-SERVICE-Sanitary 25/4/21-24/5/21,10/04/2021 00:00,249426,32.17,PE0015,PHS GROUP PLC,27/9/2021 00:00:00,31/10/2021 00:00:00,P07-2022
,LEE VALLEY ICE CENTRE,PREMISES RELATED EXPENDITURE,HAZARDOUS WASTE DISPOSAL,2212,P112958-SERVICE-Sanitary 25/4/21-24/5/21,10/04/2021 00:00,250721,32.17,PE0015,PHS GROUP PLC,27/9/2021 00:00:00,31/10/2021 00:00:00,P07-2022
,LEE VALLEY ICE CENTRE,PREMISES RELATED EXPENDITURE,HAZARDOUS WASTE DISPOSAL,2212,P112958-SERVICE-Sanitary 25/4/21-24/5/21,10/04/2021 00:00,251960,32.17,PE0015,PHS GROUP PLC,27/9/2021 00:00:00,31/10/2021 00:00:00,P07-2022
,LEE VALLEY ICE CENTRE,PREMISES RELATED EXPENDITURE,HAZARDOUS WASTE DISPOSAL,2212,P112958-SERVICE-Sanitary 25/4/21-24/5/21,10/04/2021 00:00,253484,32.17,PE0015,PHS GROUP PLC,27/9/2021 00:00:00,31/10/2021 00:00:00,P07-2022
,LEE VALLEY ICE CENTRE,PREMISES RELATED EXPENDITURE,HAZARDOUS WASTE DISPOSAL,2212,P112958-SERVICE-Sanitary 25/4/21-24/5/21,10/04/2021 00:00,253485,-32.17,PE0015,PHS GROUP PLC,27/9/2021 00:00:00,31/10/2021 00:00:00,P07-2022
,LEE VALLEY ICE CENTRE,PREMISES RELATED EXPENDITURE,HAZARDOUS WASTE DISPOSAL,2212,P112958-SERVICE-Sanitary 25/4/21-24/5/21,10/04/2021 00:00,253486,-32.17,PE0015,PHS GROUP PLC,27/9/2021 00:00:00,31/10/2021 00:00:00,P07-2022
,LEE VALLEY ICE CENTRE,PREMISES RELATED EXPENDITURE,HAZARDOUS WASTE DISPOSAL,2212,P112958-SERVICE-Sanitary 25/4/21-24/5/21,10/04/2021 00:00,253487,-32.17,PE0015,PHS GROUP PLC,27/9/2021 00:00:00,31/10/2021 00:00:00,P07-2022
,LEE VALLEY ICE CENTRE,PREMISES RELATED EXPENDITURE,HAZARDOUS WASTE DISPOSAL,2212,P112958-SERVICE-Sanitary 25/4/21-24/5/21,10/04/2021 00:00,253488,-32.17,PE0015,PHS GROUP PLC,27/9/2021 00:00:00,31/10/2021 00:00:00,P07-2022
P&V,MYDDELTON HOUSE,PREMISES RELATED EXPENDITURE,RECYCLING,2214,P113574-SERVICE-Recycling,30/9/2021 00:00:00,253616,-15.2,CA0341,F & R CAWLEY LTD,27/9/2021 00:00:00,31/10/2021 00:00:00,P07-2022
P&V,MYDDELTON HOUSE,PREMISES RELATED EXPENDITURE,RECYCLING,2214,P113574-SERVICE-Recycling,30/9/2021 00:00:00,253617,-15.2,CA0341,F & R CAWLEY LTD,27/9/2021 00:00:00,31/10/2021 00:00:00,P07-2022
P&V,MYDDELTON HOUSE,PREMISES RELATED EXPENDITURE,RECYCLING,2214,P111711-SERVICE-Recycling,30/9/2021 00:00:00,253618,-15.2,CA0341,F & R CAWLEY LTD,27/9/2021 00:00:00,31/10/2021 00:00:00,P07-2022
P&V,MYDDELTON HOUSE,PREMISES RELATED EXPENDITURE,RECYCLING,2214,P111711-SERVICE-Recycling,30/9/2021 00:00:00,253619,-15.2,CA0341,F & R CAWLEY LTD,27/9/2021 00:00:00,31/10/2021 00:00:00,P07-2022
P&V,MYDDELTON HOUSE,PREMISES RELATED EXPENDITURE,RECYCLING,2214,P113574-SERVICE-Recycling,10/11/2021 00:00,254131,95.92,CA0341,F & R CAWLEY LTD,27/9/2021 00:00:00,31/10/2021 00:00:00,P07-2022
P&V,MYDDELTON HOUSE,PREMISES RELATED EXPENDITURE,BUILDING SERVICE AGREEMENTS,2220,P114366-SERVICE-Sanitary Services,30/9/2021 00:00:00,253588,165.32,PE0015,PHS GROUP PLC,27/9/2021 00:00:00,31/10/2021 00:00:00,P07-2022
P&V,MYDDELTON HOUSE,PREMISES RELATED EXPENDITURE,BUILDING SERVICE AGREEMENTS,2220,P112762-SERVICE-Sanitary Services,30/9/2021 00:00:00,253589,22.52,PE0015,PHS GROUP PLC,27/9/2021 00:00:00,31/10/2021 00:00:00,P07-2022
P&V,MYDDELTON HOUSE,PREMISES RELATED EXPENDITURE,BUILDING SERVICE AGREEMENTS,2220,P112933-SERVICE-Myddelton House Fixed Wiring Testing & All Ou,10/04/2021 00:00,253794,3400,RE0094,REACT 2 IT (BUILDING & REFURBISHMENT) LTD,27/9/2021 00:00:00,31/10/2021 00:00:00,P07-2022
P&V,MYDDELTON HOUSE,PREMISES RELATED EXPENDITURE,BUILDING SERVICE AGREEMENTS,2220,P112762-SERVICE-Sanitary Services,18/10/2021 00:00:00,254164,14.64,PE0015,PHS GROUP PLC,27/9/2021 00:00:00,31/10/2021 00:00:00,P07-2022
P&V,MYDDELTON HOUSE,PREMISES RELATED EXPENDITURE,BUILDING SERVICE AGREEMENTS,2220,P114662-SERVICE-Legionella Water Testing Annual Contract,25/10/2021 00:00:00,254509,660,JA0177,JASUN ENVIROCARE PLC,27/9/2021 00:00:00,31/10/2021 00:00:00,P07-2022
P&V,MYDDELTON HOUSE,PREMISES RELATED EXPENDITURE,BUILDING SERVICE AGREEMENTS,2220,P112762-SERVICE-Sanitary Services,26/10/2021 00:00:00,254695,53.44,PE0015,PHS GROUP PLC,27/9/2021 00:00:00,31/10/2021 00:00:00,P07-2022
P&V,MYDDELTON HOUSE,PREMISES RELATED EXPENDITURE,BUILDING SERVICE AGREEMENTS,2220,P112762-SERVICE-Sanitary Services,31/10/2021 00:00:00,254958,22.52,PE0015,PHS GROUP PLC,27/9/2021 00:00:00,31/10/2021 00:00:00,P07-2022
P&V,MYDDELTON HOUSE,PREMISES RELATED EXPENDITURE,BUILDING SERVICE AGREEMENTS,2220,P114366-SERVICE-Sanitary Services,31/10/2021 00:00:00,254959,165.32,PE0015,PHS GROUP PLC,27/9/2021 00:00:00,31/10/2021 00:00:00,P07-2022
P&V,MYDDELTON HOUSE,PREMISES RELATED EXPENDITURE,BUILDING SERVICE AGREEMENTS,2220,P111582-SERVICE-Sanitary Services,31/10/2021 00:00:00,254961,8.25,PE0015,PHS GROUP PLC,27/9/2021 00:00:00,31/10/2021 00:00:00,P07-2022
P&V,NORTH AREA RANGERS,PREMISES RELATED EXPENDITURE,BUILDING SERVICE AGREEMENTS,2220,P111201-SERVICE-Sanitary Disposal - Old Mill & Meadows Toilet,25/10/2021 00:00:00,254696,17.58,PE0015,PHS GROUP PLC,27/9/2021 00:00:00,31/10/2021 00:00:00,P07-2022
P&V,GUNPOWDER PARK,PREMISES RELATED EXPENDITURE,BUILDING SERVICE AGREEMENTS,2220,P111199-SERVICE-Sanitary Disposal - Gunpowder Park Office Toi,30/9/2021 00:00:00,253590,2.7,PE0015,PHS GROUP PLC,27/9/2021 00:00:00,31/10/2021 00:00:00,P07-2022
P&V,GUNPOWDER PARK,PREMISES RELATED EXPENDITURE,BUILDING SERVICE AGREEMENTS,2220,P111200-SERVICE-Sanitary Disposal - Gunpowder Park - Public T,18/10/2021 00:00:00,254250,14.3,PE0015,PHS GROUP PLC,27/9/2021 00:00:00,31/10/2021 00:00:00,P07-2022
P&V,GUNPOWDER PARK,PREMISES RELATED EXPENDITURE,BUILDING SERVICE AGREEMENTS,2220,P111199-SERVICE-Sanitary Disposal - Gunpowder Park Office Toi,31/10/2021 00:00:00,254957,2.7,PE0015,PHS GROUP PLC,27/9/2021 00:00:00,31/10/2021 00:00:00,P07-2022
P&V,RIVER LEE COUNTRY PARK,PREMISES RELATED EXPENDITURE,BUILDING SERVICE AGREEMENTS,2220,P112774-SERVICE-Sharps Container - Ranger Farm Office,30/9/2021 00:00:00,253587,5.72,PE0015,PHS GROUP PLC,27/9/2021 00:00:00,31/10/2021 00:00:00,P07-2022
P&V,RIVER LEE COUNTRY PARK,PREMISES RELATED EXPENDITURE,BUILDING SERVICE AGREEMENTS,2220,P111202-SERVICE-Sanitary Disposal - Fishers Green Toilets,18/10/2021 00:00:00,254249,11.59,PE0015,PHS GROUP PLC,27/9/2021 00:00:00,31/10/2021 00:00:00,P07-2022
P&V,RIVER LEE COUNTRY PARK,PREMISES RELATED EXPENDITURE,BUILDING SERVICE AGREEMENTS,2220,P112774-SERVICE-Sharps Container - Ranger Farm Office,31/10/2021 00:00:00,254960,5.72,PE0015,PHS GROUP PLC,27/9/2021 00:00:00,31/10/2021 00:00:00,P07-2022
,LEE VALLEY VELOPARK,PREMISES RELATED EXPENDITURE,BUILDING SERVICE AGREEMENTS,2220,P114242-SERVICE-Fire Alarm Service,29/9/2021 00:00:00,252902,683,AD0015,ADT FIRE & SECURITY PLC,27/9/2021 00:00:00,31/10/2021 00:00:00,P07-2022
,LEE VALLEY VELOPARK,PREMISES RELATED EXPENDITURE,BUILDING SERVICE AGREEMENTS,2220,P114261-SERVICE-Pad Bolt and Battery,29/9/2021 00:00:00,253222,14.54,SC0057,SCREWFIX DIRECT LTD,27/9/2021 00:00:00,31/10/2021 00:00:00,P07-2022
,LEE VALLEY VELOPARK,PREMISES RELATED EXPENDITURE,BUILDING SERVICE AGREEMENTS,2220,P111429-SERVICE-BMS Contract VP,30/9/2021 00:00:00,253554,590,IN0197,INTEGRATED BUILDING MANAGEMENT SYSTEMS LTD,27/9/2021 00:00:00,31/10/2021 00:00:00,P07-2022
,LEE VALLEY VELOPARK,PREMISES RELATED EXPENDITURE,BUILDING SERVICE AGREEMENTS,2220,P114382-SERVICE-Vending Service Agreement,10/11/2021 00:00,253633,483,TA0272,TASTEBUDS VENDING LI MITED,27/9/2021 00:00:00,31/10/2021 00:00:00,P07-2022
,LEE VALLEY VELOPARK,PREMISES RELATED EXPENDITURE,BUILDING SERVICE AGREEMENTS,2220,TASTEBUDS VENDING LI MITED,10/11/2021 00:00,253633,-483,TA0272,TASTEBUDS VENDING LI MITED,27/9/2021 00:00:00,31/10/2021 00:00:00,P07-2022
,LEE VALLEY VELOPARK,PREMISES RELATED EXPENDITURE,BUILDING SERVICE AGREEMENTS,2220,TASTEBUDS VENDING LI MITED,10/11/2021 00:00,253633,468,TA0272,TASTEBUDS VENDING LI MITED,27/9/2021 00:00:00,31/10/2021 00:00:00,P07-2022
,LEE VALLEY VELOPARK,PREMISES RELATED EXPENDITURE,BUILDING SERVICE AGREEMENTS,2220,TASTEBUDS VENDING LI MITED,10/11/2021 00:00,253633,15,TA0272,TASTEBUDS VENDING LI MITED,27/9/2021 00:00:00,31/10/2021 00:00:00,P07-2022
,LEE VALLEY VELOPARK,PREMISES RELATED EXPENDITURE,BUILDING SERVICE AGREEMENTS,2220,P114647-SERVICE-Lift Maintenance,25/10/2021 00:00:00,254236,656.51,GU0210,GUIDELINE LIFT SERVICES LTD,27/9/2021 00:00:00,31/10/2021 00:00:00,P07-2022
,LEE VALLEY VELOPARK,PREMISES RELATED EXPENDITURE,BUILDING SERVICE AGREEMENTS,2220,P110516-SERVICE-Service Contract Renewal 2021-2022,25/10/2021 00:00:00,254527,730,GO0211,GOODWATER LTD,27/9/2021 00:00:00,31/10/2021 00:00:00,P07-2022
,LEE VALLEY VELOPARK,PREMISES RELATED EXPENDITURE,BUILDING SERVICE AGREEMENTS,2220,P111429-SERVICE-BMS Contract VP,31/10/2021 00:00:00,254542,590,IN0197,INTEGRATED BUILDING MANAGEMENT SYSTEMS LTD,27/9/2021 00:00:00,31/10/2021 00:00:00,P07-2022
,LV HOCKEY AND TENNIS CENTRE,PREMISES RELATED EXPENDITURE,BUILDING SERVICE AGREEMENTS,2220,P111429-SERVICE-BMS Contract HTC,30/9/2021 00:00:00,253555,590,IN0197,INTEGRATED BUILDING MANAGEMENT SYSTEMS LTD,27/9/2021 00:00:00,31/10/2021 00:00:00,P07-2022
,LV HOCKEY AND TENNIS CENTRE,PREMISES RELATED EXPENDITURE,BUILDING SERVICE AGREEMENTS,2220,P114651-SERVICE-Lift Maintenance,18/10/2021 00:00:00,254237,90.04,GU0210,GUIDELINE LIFT SERVICES LTD,27/9/2021 00:00:00,31/10/2021 00:00:00,P07-2022
,LV LEISURE CENTRE CAMPSITE,PREMISES RELATED EXPENDITURE,BUILDING SERVICE AGREEMENTS,2220,P114612-SERVICE-Alarm repair,25/10/2021 00:00:00,254557,115,RV0035,RVTV SECURITY GROUP LTD,27/9/2021 00:00:00,31/10/2021 00:00:00,P07-2022
,LEE VALLEY WHITE WATER CENTRE,PREMISES RELATED EXPENDITURE,BUILDING SERVICE AGREEMENTS,2220,P111254-SERVICE-Hygiene Services April 2021 to 2022,10/05/2021 00:00,253586,168.6,PE0015,PHS GROUP PLC,27/9/2021 00:00:00,31/10/2021 00:00:00,P07-2022
,LEE VALLEY WHITE WATER CENTRE,PREMISES RELATED EXPENDITURE,BUILDING SERVICE AGREEMENTS,2220,P114397-SERVICE-Docket LE626940,10/05/2021 00:00,253601,160,AD0015,ADT FIRE & SECURITY PLC,27/9/2021 00:00:00,31/10/2021 00:00:00,P07-2022
,LEE VALLEY WHITE WATER CENTRE,PREMISES RELATED EXPENDITURE,BUILDING SERVICE AGREEMENTS,2220,P111113-SERVICE-Pressurisation maintenace,10/05/2021 00:00,253767,1461.39,GI0137,R & P GIBBS LIMITED,27/9/2021 00:00:00,31/10/2021 00:00:00,P07-2022
,LEE VALLEY WHITE WATER CENTRE,PREMISES RELATED EXPENDITURE,BUILDING SERVICE AGREEMENTS,2220,P113215-SERVICE-PPM Renewal - 10.04.21  09.04.22,10/11/2021 00:00,254124,485,TO0224,TOTAL CONTROL SERVICES LIMITED,27/9/2021 00:00:00,31/10/2021 00:00:00,P07-2022
,LEE VALLEY WHITE WATER CENTRE,PREMISES RELATED EXPENDITURE,BUILDING SERVICE AGREEMENTS,2220,P111254-SERVICE-Hygiene Services April 2021 to 2022,31/10/2021 00:00:00,254962,168.6,PE0015,PHS GROUP PLC,27/9/2021 00:00:00,31/10/2021 00:00:00,P07-2022
,LEE VALLEY CARAVAN PARK,PREMISES RELATED EXPENDITURE,ENGINEERING SERVICE AGREEMENTS,2221,P114314-SERVICE-New intercom on barrier,31/10/2021 00:00:00,254481,1040,AU0245,AUTO-MATE SYSTEMS LIMITED,27/9/2021 00:00:00,31/10/2021 00:00:00,P07-2022
,LV LEISURE CENTRE CAMPSITE,PREMISES RELATED EXPENDITURE,ENGINEERING SERVICE AGREEMENTS,2221,P114832-SERVICE-Sanitary bin empty,31/10/2021 00:00:00,254163,142.29,PE0015,PHS GROUP PLC,27/9/2021 00:00:00,31/10/2021 00:00:00,P07-2022
P&V,MYDDELTON HOUSE,PREMISES RELATED EXPENDITURE,BUILDING REPAIRS & MAINTENANCE,2222,P114033-SERVICE-Remedial works to repair the defective System,10/11/2021 00:00,253850,253,BA0062,BACON LIGHTNING PROTECTION & MAINTENANCE LTD,27/9/2021 00:00:00,31/10/2021 00:00:00,P07-2022
CEO,RESIDENTIAL ACCOMMODATION,PREMISES RELATED EXPENDITURE,BUILDING REPAIRS & MAINTENANCE,2222,P114137-SERVICE-Cut Grass at Holyfield Hall Farmhouse,10/07/2021 00:00,253580,570,KE0023,KENDALL & SONS LIMITED,27/9/2021 00:00:00,31/10/2021 00:00:00,P07-2022
CEO,RESIDENTIAL ACCOMMODATION,PREMISES RELATED EXPENDITURE,BUILDING REPAIRS & MAINTENANCE,2222,P114098-SERVICE-Tree Works Connaught Close,10/11/2021 00:00,253829,550,PA0222,PARKIN & PARKER TREE SPECIALISTS,27/9/2021 00:00:00,31/10/2021 00:00:00,P07-2022
CEO,RESIDENTIAL ACCOMMODATION,PREMISES RELATED EXPENDITURE,BUILDING REPAIRS & MAINTENANCE,2222,P114587-SERVICE-Cut Grass Marshgate Cottage,19/10/2021 00:00:00,254401,220,KE0023,KENDALL & SONS LIMITED,27/9/2021 00:00:00,31/10/2021 00:00:00,P07-2022
CEO,RESIDENTIAL ACCOMMODATION,PREMISES RELATED EXPENDITURE,BUILDING REPAIRS & MAINTENANCE,2222,P114596-SERVICE-Waste Removal Holyfield Hall Farmhouse,25/10/2021 00:00:00,254491,435,TA0339,TANKER & DRAIN SOLUTIONS LTD,27/9/2021 00:00:00,31/10/2021 00:00:00,P07-2022
CEO,RESIDENTIAL ACCOMMODATION,PREMISES RELATED EXPENDITURE,BUILDING REPAIRS & MAINTENANCE,2222,P114728-SERVICE-Boiler Service - Holyfield Hall,25/10/2021 00:00:00,254655,70,MY0475,MY GAS HEATING CO LTD,27/9/2021 00:00:00,31/10/2021 00:00:00,P07-2022
CEO,RESIDENTIAL ACCOMMODATION,PREMISES RELATED EXPENDITURE,BUILDING REPAIRS & MAINTENANCE,2222,P114727-SERVICE-Supply at Fit PRV and Service Boiler - 1 Gate,25/10/2021 00:00:00,254656,240,MY0475,MY GAS HEATING CO LTD,27/9/2021 00:00:00,31/10/2021 00:00:00,P07-2022
CEO,RESIDENTIAL ACCOMMODATION,PREMISES RELATED EXPENDITURE,BUILDING REPAIRS & MAINTENANCE,2222,P114777-SERVICE-2 Bungalow - Electrical Safety Certificate,26/10/2021 00:00:00,254676,264,WA0315,PAUL WALLACE ESTATE AGENTS,27/9/2021 00:00:00,31/10/2021 00:00:00,P07-2022
CEO,COMMERCIAL ACCOMMODATION,PREMISES RELATED EXPENDITURE,BUILDING REPAIRS & MAINTENANCE,2222,P111994-SERVICE-2 x Stop blocks concrete Wharf road,10/05/2021 00:00,253766,60,NA0171,NAIVETTE SERVICES LTD,27/9/2021 00:00:00,31/10/2021 00:00:00,P07-2022
CEO,COMMERCIAL ACCOMMODATION,PREMISES RELATED EXPENDITURE,BUILDING REPAIRS & MAINTENANCE,2222,P111994-SERVICE-2 x Stop blocks concrete Wharf road,31/10/2021 00:00:00,254980,62,NA0171,NAIVETTE SERVICES LTD,27/9/2021 00:00:00,31/10/2021 00:00:00,P07-2022
,LEE VALLEY MARINA SPRINGFIELD,PREMISES RELATED EXPENDITURE,BUILDING REPAIRS & MAINTENANCE,2222,P114283-SERVICE-Fire extinguisher replacement Quote No 12479,18/10/2021 00:00:00,254172,97.74,TJ0009,T.J.FIRE & SECURITY,27/9/2021 00:00:00,31/10/2021 00:00:00,P07-2022
,LEE VALLEY MARINA SPRINGFIELD,PREMISES RELATED EXPENDITURE,BUILDING REPAIRS & MAINTENANCE,2222,P114860-SERVICE-To replace 6 LED Bulkhead in W.C,31/10/2021 00:00:00,254982,360,BR0018,BRADSHAW ELECTRICAL LIMITED,27/9/2021 00:00:00,31/10/2021 00:00:00,P07-2022
,LEE VALLEY MARINA STANSTEAD,PREMISES RELATED EXPENDITURE,BUILDING REPAIRS & MAINTENANCE,2222,P114311-SERVICE-works to secuirty system,10/04/2021 00:00,252512,32.5,CH0088,CHUBB FIRE & SECURITY,27/9/2021 00:00:00,31/10/2021 00:00:00,P07-2022
,LEE VALLEY MARINA STANSTEAD,PREMISES RELATED EXPENDITURE,BUILDING REPAIRS & MAINTENANCE,2222,P114312-SERVICE-emergency lighting test,10/04/2021 00:00,253122,285,BR0018,BRADSHAW ELECTRICAL LIMITED,27/9/2021 00:00:00,31/10/2021 00:00:00,P07-2022
,LEE VALLEY MARINA STANSTEAD,PREMISES RELATED EXPENDITURE,BUILDING REPAIRS & MAINTENANCE,2222,P114313-SERVICE-testing to sockets and distribution,10/04/2021 00:00,253126,1440,BR0018,BRADSHAW ELECTRICAL LIMITED,27/9/2021 00:00:00,31/10/2021 00:00:00,P07-2022
,LEE VALLEY MARINA STANSTEAD,PREMISES RELATED EXPENDITURE,BUILDING REPAIRS & MAINTENANCE,2222,P114309-SERVICE-works to electric pods,27/10/2021 00:00:00,254471,1990,BR0018,BRADSHAW ELECTRICAL LIMITED,27/9/2021 00:00:00,31/10/2021 00:00:00,P07-2022
,LEE VALLEY MARINA STANSTEAD,PREMISES RELATED EXPENDITURE,BUILDING REPAIRS & MAINTENANCE,2222,P114308-SERVICE-emergency lighting works,27/10/2021 00:00:00,254556,155,BR0018,BRADSHAW ELECTRICAL LIMITED,27/9/2021 00:00:00,31/10/2021 00:00:00,P07-2022
P&V,LEE VALLEY FARM HOLYFIELDHALL,PREMISES RELATED EXPENDITURE,BUILDING REPAIRS & MAINTENANCE,2222,P111466-SERVICE-Building Repairs,25/10/2021 00:00:00,254378,44.09,JE0011,SAINT-GOBAIN BUILDING DISTRIBUTION,27/9/2021 00:00:00,31/10/2021 00:00:00,P07-2022
,LEE VALLEY CAMPSITE,PREMISES RELATED EXPENDITURE,BUILDING REPAIRS & MAINTENANCE,2222,P114839-SERVICE-Empty septic tank,31/10/2021 00:00:00,254662,330,CO0550,CONVERT WATER LTD,27/9/2021 00:00:00,31/10/2021 00:00:00,P07-2022
,LEE VALLEY CARAVAN PARK,PREMISES RELATED EXPENDITURE,BUILDING REPAIRS & MAINTENANCE,2222,"P113443-SERVICE-Timber, Ply, Top soil and Post Creat",31/10/2021 00:00:00,253831,135,LE0012,LEASIDE TIMBER & BUILDERS MERCHANTS LTD,27/9/2021 00:00:00,31/10/2021 00:00:00,P07-2022
P&V,NORTH AREA RANGERS,PREMISES RELATED EXPENDITURE,BUILDING REPAIRS & MAINTENANCE,2222,P114230-SERVICE-Water Leak Toilets at Old Mill & Meadows,30/9/2021 00:00:00,253579,398,KE0023,KENDALL & SONS LIMITED,27/9/2021 00:00:00,31/10/2021 00:00:00,P07-2022
P&V,NORTH AREA RANGERS,PREMISES RELATED EXPENDITURE,BUILDING REPAIRS & MAINTENANCE,2222,KENDALL & SONS LIMITED,30/9/2021 00:00:00,253579,110,KE0023,KENDALL & SONS LIMITED,27/9/2021 00:00:00,31/10/2021 00:00:00,P07-2022
P&V,NORTH AREA RANGERS,PREMISES RELATED EXPENDITURE,BUILDING REPAIRS & MAINTENANCE,2222,KENDALL & SONS LIMITED,30/9/2021 00:00:00,253579,-398,KE0023,KENDALL & SONS LIMITED,27/9/2021 00:00:00,31/10/2021 00:00:00,P07-2022
P&V,NORTH AREA RANGERS,PREMISES RELATED EXPENDITURE,BUILDING REPAIRS & MAINTENANCE,2222,KENDALL & SONS LIMITED,30/9/2021 00:00:00,253579,288,KE0023,KENDALL & SONS LIMITED,27/9/2021 00:00:00,31/10/2021 00:00:00,P07-2022
P&V,GUNPOWDER PARK,PREMISES RELATED EXPENDITURE,BUILDING REPAIRS & MAINTENANCE,2222,REACT 2 IT (BUILDING & REFURBI,10/04/2021 00:00,253793,84,RE0094,REACT 2 IT (BUILDING & REFURBISHMENT) LTD,27/9/2021 00:00:00,31/10/2021 00:00:00,P07-2022
P&V,GUNPOWDER PARK,PREMISES RELATED EXPENDITURE,BUILDING REPAIRS & MAINTENANCE,2222,P114310-SERVICE-Repairs Toilet at  Gunpowder Park,10/04/2021 00:00,253793,85,RE0094,REACT 2 IT (BUILDING & REFURBISHMENT) LTD,27/9/2021 00:00:00,31/10/2021 00:00:00,P07-2022
P&V,GUNPOWDER PARK,PREMISES RELATED EXPENDITURE,BUILDING REPAIRS & MAINTENANCE,2222,REACT 2 IT (BUILDING & REFURBI,10/04/2021 00:00,253793,1,RE0094,REACT 2 IT (BUILDING & REFURBISHMENT) LTD,27/9/2021 00:00:00,31/10/2021 00:00:00,P07-2022
P&V,GUNPOWDER PARK,PREMISES RELATED EXPENDITURE,BUILDING REPAIRS & MAINTENANCE,2222,REACT 2 IT (BUILDING & REFURBI,10/04/2021 00:00,253793,-85,RE0094,REACT 2 IT (BUILDING & REFURBISHMENT) LTD,27/9/2021 00:00:00,31/10/2021 00:00:00,P07-2022
P&V,GUNPOWDER PARK,PREMISES RELATED EXPENDITURE,BUILDING REPAIRS & MAINTENANCE,2222,P112372-SERVICE-Water Treatment Wash Basin at Gun Powder Park,19/10/2021 00:00:00,254435,250.01,CO0199,ENGIE FM LIMITED,27/9/2021 00:00:00,31/10/2021 00:00:00,P07-2022
P&V,RIVER LEE COUNTRY PARK,PREMISES RELATED EXPENDITURE,BUILDING REPAIRS & MAINTENANCE,2222,P114751-SERVICE-Outside Lighting - WDC,25/10/2021 00:00:00,254533,80,BR0018,BRADSHAW ELECTRICAL LIMITED,27/9/2021 00:00:00,31/10/2021 00:00:00,P07-2022
,LEE VALLEY VELOPARK,PREMISES RELATED EXPENDITURE,BUILDING REPAIRS & MAINTENANCE,2222,P114243-SERVICE-2457H 2-art Epoxy Adhesive 2x 15ml,29/9/2021 00:00:00,252917,8.8,SC0057,SCREWFIX DIRECT LTD,27/9/2021 00:00:00,31/10/2021 00:00:00,P07-2022
,LEE VALLEY VELOPARK,PREMISES RELATED EXPENDITURE,BUILDING REPAIRS & MAINTENANCE,2222,P114245-SERVICE-78150 Push Fit Air Admittance Valve,29/9/2021 00:00:00,252918,40.18,SC0057,SCREWFIX DIRECT LTD,27/9/2021 00:00:00,31/10/2021 00:00:00,P07-2022
,LEE VALLEY VELOPARK,PREMISES RELATED EXPENDITURE,BUILDING REPAIRS & MAINTENANCE,2222,P114369-SERVICE-Security Maintenance,10/11/2021 00:00,253521,560,JC0161,JCR SECURITY LIMITED,27/9/2021 00:00:00,31/10/2021 00:00:00,P07-2022
,LEE VALLEY VELOPARK,PREMISES RELATED EXPENDITURE,BUILDING REPAIRS & MAINTENANCE,2222,P113432-SERVICE-Replacement Control Modules,30/9/2021 00:00:00,253553,4454.1,IN0197,INTEGRATED BUILDING MANAGEMENT SYSTEMS LTD,27/9/2021 00:00:00,31/10/2021 00:00:00,P07-2022
,LEE VALLEY VELOPARK,PREMISES RELATED EXPENDITURE,BUILDING REPAIRS & MAINTENANCE,2222,P113199-SERVICE-HydroClenz Cartridges,10/11/2021 00:00,254121,858.9,GE0447,GEOQUIP WATER SOLUTIONS LTD,27/9/2021 00:00:00,31/10/2021 00:00:00,P07-2022
,LEE VALLEY VELOPARK,PREMISES RELATED EXPENDITURE,BUILDING REPAIRS & MAINTENANCE,2222,P114267-SERVICE-DHW Pump Repairs,18/10/2021 00:00:00,254391,993,GI0137,R & P GIBBS LIMITED,27/9/2021 00:00:00,31/10/2021 00:00:00,P07-2022
,LEE VALLEY VELOPARK,PREMISES RELATED EXPENDITURE,BUILDING REPAIRS & MAINTENANCE,2222,P114162-SERVICE-Site Visit and Repairs,18/10/2021 00:00:00,254404,375,AD0015,ADT FIRE & SECURITY PLC,27/9/2021 00:00:00,31/10/2021 00:00:00,P07-2022
,LEE VALLEY VELOPARK,PREMISES RELATED EXPENDITURE,BUILDING REPAIRS & MAINTENANCE,2222,P114557-SERVICE-DIsabled Lift Repair,25/10/2021 00:00:00,254433,197,GU0210,GUIDELINE LIFT SERVICES LTD,27/9/2021 00:00:00,31/10/2021 00:00:00,P07-2022
,LEE VALLEY VELOPARK,PREMISES RELATED EXPENDITURE,BUILDING REPAIRS & MAINTENANCE,2222,P112841-SERVICE-Remedial work on PAVA,25/10/2021 00:00:00,254458,943,BP0447,BPC ENERGY LIMITED,27/9/2021 00:00:00,31/10/2021 00:00:00,P07-2022
,LV HOCKEY AND TENNIS CENTRE,PREMISES RELATED EXPENDITURE,BUILDING REPAIRS & MAINTENANCE,2222,P113685-SERVICE-x 2 annual door servicing for auto doors,30/9/2021 00:00:00,252906,170,SU0398,SUPREME DOOR SPRING CO,27/9/2021 00:00:00,31/10/2021 00:00:00,P07-2022
,LV HOCKEY AND TENNIS CENTRE,PREMISES RELATED EXPENDITURE,BUILDING REPAIRS & MAINTENANCE,2222,P114129-SERVICE-LOLER MAXI SKY,10/07/2021 00:00,253323,72,AR0335,ARJO UK LTD (FRMLY ARJOHUNTLEIGH UK),27/9/2021 00:00:00,31/10/2021 00:00:00,P07-2022
,LV HOCKEY AND TENNIS CENTRE,PREMISES RELATED EXPENDITURE,BUILDING REPAIRS & MAINTENANCE,2222,P114129-SERVICE-ANNUAL MAXI SKY 600,10/07/2021 00:00,253323,75.96,AR0335,ARJO UK LTD (FRMLY ARJOHUNTLEIGH UK),27/9/2021 00:00:00,31/10/2021 00:00:00,P07-2022
,LV HOCKEY AND TENNIS CENTRE,PREMISES RELATED EXPENDITURE,BUILDING REPAIRS & MAINTENANCE,2222,P113749-SERVICE-remote control unit with 2 handsets,30/9/2021 00:00:00,253564,280,AB0475,ABBEY ROLLER SHUTTERS & SECURITY PRODUCTS LTD,27/9/2021 00:00:00,31/10/2021 00:00:00,P07-2022
,LV HOCKEY AND TENNIS CENTRE,PREMISES RELATED EXPENDITURE,BUILDING REPAIRS & MAINTENANCE,2222,P113749-SERVICE-supply and install,30/9/2021 00:00:00,253564,120,AB0475,ABBEY ROLLER SHUTTERS & SECURITY PRODUCTS LTD,27/9/2021 00:00:00,31/10/2021 00:00:00,P07-2022
,LV HOCKEY AND TENNIS CENTRE,PREMISES RELATED EXPENDITURE,BUILDING REPAIRS & MAINTENANCE,2222,P113749-SERVICE-4 additional handsets,30/9/2021 00:00:00,253564,90,AB0475,ABBEY ROLLER SHUTTERS & SECURITY PRODUCTS LTD,27/9/2021 00:00:00,31/10/2021 00:00:00,P07-2022
,LV HOCKEY AND TENNIS CENTRE,PREMISES RELATED EXPENDITURE,BUILDING REPAIRS & MAINTENANCE,2222,P114531-SERVICE-relocate rollers and advertising panels,18/10/2021 00:00:00,254241,480,RE0094,REACT 2 IT (BUILDING & REFURBISHMENT) LTD,27/9/2021 00:00:00,31/10/2021 00:00:00,P07-2022
,LV HOCKEY AND TENNIS CENTRE,PREMISES RELATED EXPENDITURE,BUILDING REPAIRS & MAINTENANCE,2222,P114686-SERVICE-annual pressurisation system maintenance,26/10/2021 00:00:00,254416,1137.11,GI0137,R & P GIBBS LIMITED,27/9/2021 00:00:00,31/10/2021 00:00:00,P07-2022
,LV HOCKEY AND TENNIS CENTRE,PREMISES RELATED EXPENDITURE,BUILDING REPAIRS & MAINTENANCE,2222,P114788-SERVICE-all 6 courts cleaned,27/10/2021 00:00:00,254558,3560,PR0467,PREMIER SPORTS SURFACES LTD,27/9/2021 00:00:00,31/10/2021 00:00:00,P07-2022
,LV HOCKEY AND TENNIS CENTRE,PREMISES RELATED EXPENDITURE,BUILDING REPAIRS & MAINTENANCE,2222,P114577-SERVICE-x2 visits for window cleaning,26/10/2021 00:00:00,254560,725,ELI0362,ELITE SUPPORT SERVICES (LONDON) LIMITED,27/9/2021 00:00:00,31/10/2021 00:00:00,P07-2022
,LV HOCKEY AND TENNIS CENTRE,PREMISES RELATED EXPENDITURE,BUILDING REPAIRS & MAINTENANCE,2222,P114634-SERVICE-fire and security service and call points,31/10/2021 00:00:00,254985,331,CL0488,CLYMAC LIMITED,27/9/2021 00:00:00,31/10/2021 00:00:00,P07-2022
,LEE VALLEY RIDING CENTRE,PREMISES RELATED EXPENDITURE,BUILDING REPAIRS & MAINTENANCE,2222,P114551-SERVICE-electric gates maintenance contract visits,13/10/2021 00:00:00,251093,530,EA0001,EAGLE AUTOMATION SYSTEMS LTD,27/9/2021 00:00:00,31/10/2021 00:00:00,P07-2022
,LEE VALLEY RIDING CENTRE,PREMISES RELATED EXPENDITURE,BUILDING REPAIRS & MAINTENANCE,2222,P114092-SERVICE-valve repairs on roof tank,30/9/2021 00:00:00,253584,200,MI0477,MICHAEL WARD PLUMBING SERVICES,27/9/2021 00:00:00,31/10/2021 00:00:00,P07-2022
,LEE VALLEY RIDING CENTRE,PREMISES RELATED EXPENDITURE,BUILDING REPAIRS & MAINTENANCE,2222,P112358-SERVICE-soap and sanitary dispensers and bins,30/9/2021 00:00:00,253585,91.17,PE0015,PHS GROUP PLC,27/9/2021 00:00:00,31/10/2021 00:00:00,P07-2022
,LEE VALLEY RIDING CENTRE,PREMISES RELATED EXPENDITURE,BUILDING REPAIRS & MAINTENANCE,2222,P114794-SERVICE-maintenance of intruder alarm,27/10/2021 00:00:00,254128,82.13,AD0015,ADT FIRE & SECURITY PLC,27/9/2021 00:00:00,31/10/2021 00:00:00,P07-2022
,LEE VALLEY RIDING CENTRE,PREMISES RELATED EXPENDITURE,BUILDING REPAIRS & MAINTENANCE,2222,P114794-SERVICE-red care oct - dec,27/10/2021 00:00:00,254128,171.32,AD0015,ADT FIRE & SECURITY PLC,27/9/2021 00:00:00,31/10/2021 00:00:00,P07-2022
,LEE VALLEY RIDING CENTRE,PREMISES RELATED EXPENDITURE,BUILDING REPAIRS & MAINTENANCE,2222,"P114796-SERVICE-cctv blank screens, call out and reinstate",27/10/2021 00:00:00,254260,160,CA0334,CAM-TECH SECURITY SYSTEMS LTD,27/9/2021 00:00:00,31/10/2021 00:00:00,P07-2022
,LEE VALLEY RIDING CENTRE,PREMISES RELATED EXPENDITURE,BUILDING REPAIRS & MAINTENANCE,2222,P112358-SERVICE-soap and sanitary dispensers and bins,26/10/2021 00:00:00,254698,261.19,PE0015,PHS GROUP PLC,27/9/2021 00:00:00,31/10/2021 00:00:00,P07-2022
,LEE VALLEY RIDING CENTRE,PREMISES RELATED EXPENDITURE,BUILDING REPAIRS & MAINTENANCE,2222,P112358-SERVICE-soap and sanitary dispensers and bins,31/10/2021 00:00:00,254963,91.17,PE0015,PHS GROUP PLC,27/9/2021 00:00:00,31/10/2021 00:00:00,P07-2022
,LEE VALLEY RIDING CENTRE,PREMISES RELATED EXPENDITURE,BUILDING REPAIRS & MAINTENANCE,2222,P114866-SERVICE-fix lighting in car park,31/10/2021 00:00:00,254983,80,BR0018,BRADSHAW ELECTRICAL LIMITED,27/9/2021 00:00:00,31/10/2021 00:00:00,P07-2022
P&V,FORMER LV LIDO SITE,PREMISES RELATED EXPENDITURE,BUILDING REPAIRS & MAINTENANCE,2222,P114280-SERVICE-Electrical Testing at Broxbourne Riverside,10/12/2021 00:00,254047,520,BR0018,BRADSHAW ELECTRICAL LIMITED,27/9/2021 00:00:00,31/10/2021 00:00:00,P07-2022
,LV LEISURE CENTRE CAMPSITE,PREMISES RELATED EXPENDITURE,BUILDING REPAIRS & MAINTENANCE,2222,P114820-SERVICE-Greenkeepers emergency light,31/10/2021 00:00:00,254534,90,BR0018,BRADSHAW ELECTRICAL LIMITED,27/9/2021 00:00:00,31/10/2021 00:00:00,P07-2022
,LEE VALLEY ATHLETICS CENTRE,PREMISES RELATED EXPENDITURE,BUILDING REPAIRS & MAINTENANCE,2222,P114339-SERVICE-INV 28569 CALL OUT TO MEETING ROOM LIGHTS,30/9/2021 00:00:00,253506,50,BR0018,BRADSHAW ELECTRICAL LIMITED,27/9/2021 00:00:00,31/10/2021 00:00:00,P07-2022
,LEE VALLEY ATHLETICS CENTRE,PREMISES RELATED EXPENDITURE,BUILDING REPAIRS & MAINTENANCE,2222,P111745-SERVICE-LVAC MODIFY 4 TRACK &  WATERJUMP STEEPLECHASE,25/10/2021 00:00:00,254492,420,PR0133,PROATHLETICS,27/9/2021 00:00:00,31/10/2021 00:00:00,P07-2022
,LEE VALLEY ATHLETICS CENTRE,PREMISES RELATED EXPENDITURE,BUILDING REPAIRS & MAINTENANCE,2222,P114706-SERVICE-LVAC REPAIRS,25/10/2021 00:00:00,254525,608,ST0667,JULIAN STARKEY,27/9/2021 00:00:00,31/10/2021 00:00:00,P07-2022
,LEE VALLEY ATHLETICS CENTRE,PREMISES RELATED EXPENDITURE,BUILDING REPAIRS & MAINTENANCE,2222,P114735-SERVICE-LVAC CALL OUT FIX GYM DOOR INV 4858,25/10/2021 00:00:00,254658,580,SU0398,SUPREME DOOR SPRING CO,27/9/2021 00:00:00,31/10/2021 00:00:00,P07-2022
,LEE VALLEY WHITE WATER CENTRE,PREMISES RELATED EXPENDITURE,BUILDING REPAIRS & MAINTENANCE,2222,P113809-SERVICE-Replacement smoke detector,25/10/2021 00:00:00,251887,176.78,AD0015,ADT FIRE & SECURITY PLC,27/9/2021 00:00:00,31/10/2021 00:00:00,P07-2022
,LEE VALLEY WHITE WATER CENTRE,PREMISES RELATED EXPENDITURE,BUILDING REPAIRS & MAINTENANCE,2222,P114396-SERVICE-Docket LE627041,10/05/2021 00:00,253602,248,AD0015,ADT FIRE & SECURITY PLC,27/9/2021 00:00:00,31/10/2021 00:00:00,P07-2022
,LEE VALLEY WHITE WATER CENTRE,PREMISES RELATED EXPENDITURE,BUILDING REPAIRS & MAINTENANCE,2222,P112870-SERVICE-Hot water system and alter pipe work to washi,19/10/2021 00:00:00,254415,1320,GI0137,R & P GIBBS LIMITED,27/9/2021 00:00:00,31/10/2021 00:00:00,P07-2022
,LEE VALLEY WHITE WATER CENTRE,PREMISES RELATED EXPENDITURE,BUILDING REPAIRS & MAINTENANCE,2222,P114824-SERVICE-Basin Hot Water Issues,31/10/2021 00:00:00,254802,975,GI0137,R & P GIBBS LIMITED,27/9/2021 00:00:00,31/10/2021 00:00:00,P07-2022
,LEE VALLEY WHITE WATER CENTRE,PREMISES RELATED EXPENDITURE,BUILDING REPAIRS & MAINTENANCE,2222,P114825-SERVICE-Call out for water leaking from GSHP auto fil,31/10/2021 00:00:00,254803,123.57,GI0137,R & P GIBBS LIMITED,27/9/2021 00:00:00,31/10/2021 00:00:00,P07-2022
CEO,LVLC SERVICE CHARGE,PREMISES RELATED EXPENDITURE,BUILDING REPAIRS & MAINTENANCE,2222,KENDALL & SONS LIMITED,10/07/2021 00:00,253578,150,KE0023,KENDALL & SONS LIMITED,27/9/2021 00:00:00,31/10/2021 00:00:00,P07-2022
CEO,LVLC SERVICE CHARGE,PREMISES RELATED EXPENDITURE,BUILDING REPAIRS & MAINTENANCE,2222,KENDALL & SONS LIMITED,10/07/2021 00:00,253578,40,KE0023,KENDALL & SONS LIMITED,27/9/2021 00:00:00,31/10/2021 00:00:00,P07-2022
CEO,LVLC SERVICE CHARGE,PREMISES RELATED EXPENDITURE,BUILDING REPAIRS & MAINTENANCE,2222,KENDALL & SONS LIMITED,10/07/2021 00:00,253578,-190,KE0023,KENDALL & SONS LIMITED,27/9/2021 00:00:00,31/10/2021 00:00:00,P07-2022
CEO,LVLC SERVICE CHARGE,PREMISES RELATED EXPENDITURE,BUILDING REPAIRS & MAINTENANCE,2222,P114140-SERVICE-Picketts Lock Bollards,10/07/2021 00:00,253578,190,KE0023,KENDALL & SONS LIMITED,27/9/2021 00:00:00,31/10/2021 00:00:00,P07-2022
CEO,LVLC SERVICE CHARGE,PREMISES RELATED EXPENDITURE,BUILDING REPAIRS & MAINTENANCE,2222,KENDALL & SONS LIMITED,10/07/2021 00:00,253581,209,KE0023,KENDALL & SONS LIMITED,27/9/2021 00:00:00,31/10/2021 00:00:00,P07-2022
CEO,LVLC SERVICE CHARGE,PREMISES RELATED EXPENDITURE,BUILDING REPAIRS & MAINTENANCE,2222,KENDALL & SONS LIMITED,10/07/2021 00:00,253581,80,KE0023,KENDALL & SONS LIMITED,27/9/2021 00:00:00,31/10/2021 00:00:00,P07-2022
CEO,LVLC SERVICE CHARGE,PREMISES RELATED EXPENDITURE,BUILDING REPAIRS & MAINTENANCE,2222,KENDALL & SONS LIMITED,10/07/2021 00:00,253581,-289,KE0023,KENDALL & SONS LIMITED,27/9/2021 00:00:00,31/10/2021 00:00:00,P07-2022
CEO,LVLC SERVICE CHARGE,PREMISES RELATED EXPENDITURE,BUILDING REPAIRS & MAINTENANCE,2222,P114138-SERVICE-Work on Kerbs at Picketts Lock Cinema,10/07/2021 00:00,253581,289,KE0023,KENDALL & SONS LIMITED,27/9/2021 00:00:00,31/10/2021 00:00:00,P07-2022
CEO,LVLC SERVICE CHARGE,PREMISES RELATED EXPENDITURE,BUILDING REPAIRS & MAINTENANCE,2222,P114139-SERVICE-Clear Out Drain Gulleys at Picketts Lock Cine,10/07/2021 00:00,253582,978,KE0023,KENDALL & SONS LIMITED,27/9/2021 00:00:00,31/10/2021 00:00:00,P07-2022
CEO,LVLC SERVICE CHARGE,PREMISES RELATED EXPENDITURE,BUILDING REPAIRS & MAINTENANCE,2222,KENDALL & SONS LIMITED,10/07/2021 00:00,253582,768,KE0023,KENDALL & SONS LIMITED,27/9/2021 00:00:00,31/10/2021 00:00:00,P07-2022
CEO,LVLC SERVICE CHARGE,PREMISES RELATED EXPENDITURE,BUILDING REPAIRS & MAINTENANCE,2222,KENDALL & SONS LIMITED,10/07/2021 00:00,253582,210,KE0023,KENDALL & SONS LIMITED,27/9/2021 00:00:00,31/10/2021 00:00:00,P07-2022
CEO,LVLC SERVICE CHARGE,PREMISES RELATED EXPENDITURE,BUILDING REPAIRS & MAINTENANCE,2222,KENDALL & SONS LIMITED,10/07/2021 00:00,253582,-978,KE0023,KENDALL & SONS LIMITED,27/9/2021 00:00:00,31/10/2021 00:00:00,P07-2022
,LEE VALLEY ATHLETICS CENTRE,PREMISES RELATED EXPENDITURE,ENGINEERING SERVICES CONTRACT,2223,P111584-SERVICE-LVAC ANNUAL CONTRACT,30/9/2021 00:00:00,253600,1860,DA0075,D.A.T.A. CLEANING SERVICES,27/9/2021 00:00:00,31/10/2021 00:00:00,P07-2022
,LEE VALLEY ATHLETICS CENTRE,PREMISES RELATED EXPENDITURE,ENGINEERING SERVICES CONTRACT,2223,P114130-SERVICE-LVAC ANNUAL MAINT SEPT 21 - MAR 22,19/10/2021 00:00:00,253883,425,SP0290,SPEEDY ASSET SERVICES LIMITED,27/9/2021 00:00:00,31/10/2021 00:00:00,P07-2022
,LEE VALLEY ATHLETICS CENTRE,PREMISES RELATED EXPENDITURE,ENGINEERING SERVICES CONTRACT,2223,P111604-SERVICE-LVAC ANNUAL REFUSE COLLECTION 21/22,14/10/2021 00:00:00,253896,613.8,SI0659,SIMPLY WASTE SOLUTIONS,27/9/2021 00:00:00,31/10/2021 00:00:00,P07-2022
,LEE VALLEY ATHLETICS CENTRE,PREMISES RELATED EXPENDITURE,ENGINEERING SERVICES CONTRACT,2223,P111755-SERVICE-LVAC ANNUAL MAINTENANCE 21/22,25/10/2021 00:00:00,254505,1415,KE0163,KERSHAW MECHANICAL SERVICES LTD,27/9/2021 00:00:00,31/10/2021 00:00:00,P07-2022
,LEE VALLEY ATHLETICS CENTRE,PREMISES RELATED EXPENDITURE,ENGINEERING SERVICES CONTRACT,2223,P111584-SERVICE-LVAC ANNUAL CONTRACT,31/10/2021 00:00:00,254807,1860,DA0075,D.A.T.A. CLEANING SERVICES,27/9/2021 00:00:00,31/10/2021 00:00:00,P07-2022
,LEE VALLEY WHITE WATER CENTRE,PREMISES RELATED EXPENDITURE,ENGINEERING SERVICES CONTRACT,2223,P112007-SERVICE-To provide the services of an authorised pers,10/04/2021 00:00,251401,1530,AM0309,AMP 5 LIMITED,27/9/2021 00:00:00,31/10/2021 00:00:00,P07-2022
,LEE VALLEY WHITE WATER CENTRE,PREMISES RELATED EXPENDITURE,ENGINEERING SERVICES CONTRACT,2223,P114435-SERVICE-Parts for service on 16th September,10/11/2021 00:00,253892,2949.99,BR0378,BROADWATER TECHNOLOGIES LTD,27/9/2021 00:00:00,31/10/2021 00:00:00,P07-2022
,LEE VALLEY WHITE WATER CENTRE,PREMISES RELATED EXPENDITURE,ENGINEERING SERVICES CONTRACT,2223,P113708-SERVICE-Repair work to filter,10/11/2021 00:00,254036,499,BR0378,BROADWATER TECHNOLOGIES LTD,27/9/2021 00:00:00,31/10/2021 00:00:00,P07-2022
,LEE VALLEY WHITE WATER CENTRE,PREMISES RELATED EXPENDITURE,ENGINEERING SERVICES CONTRACT,2223,P112007-SERVICE-To provide the services of an authorised pers,18/10/2021 00:00:00,254156,1530,AM0309,AMP 5 LIMITED,27/9/2021 00:00:00,31/10/2021 00:00:00,P07-2022
,LEE VALLEY WHITE WATER CENTRE,PREMISES RELATED EXPENDITURE,ENGINEERING SERVICES CONTRACT,2223,P114434-SERVICE-Possible Electrical Issue with the foul water,18/10/2021 00:00:00,254215,150,GI0137,R & P GIBBS LIMITED,27/9/2021 00:00:00,31/10/2021 00:00:00,P07-2022
,LEE VALLEY WHITE WATER CENTRE,PREMISES RELATED EXPENDITURE,ENGINEERING SERVICES CONTRACT,2223,"P114401-SERVICE-Annual Service on AC Units to the Pavilion, C",31/10/2021 00:00:00,254808,576,GI0137,R & P GIBBS LIMITED,27/9/2021 00:00:00,31/10/2021 00:00:00,P07-2022
P&V,NORTH AREA RANGERS,SUPPLIES AND SERVICES,FENCES/GATES ETC.,2231,P114714-SERVICE-167x 1.8 x 75mm All Round Stakes,25/10/2021 00:00:00,253911,576.15,JW0004,J & W FENCING LIMITED,27/9/2021 00:00:00,31/10/2021 00:00:00,P07-2022
P&V,NORTH AREA RANGERS,SUPPLIES AND SERVICES,FENCES/GATES ETC.,2231,P114714-SERVICE-1x 5pk Sand Paper,25/10/2021 00:00:00,253911,1.95,JW0004,J & W FENCING LIMITED,27/9/2021 00:00:00,31/10/2021 00:00:00,P07-2022
P&V,NORTH AREA RANGERS,SUPPLIES AND SERVICES,FENCES/GATES ETC.,2231,P114714-SERVICE-25x Sand Paper Sheets,25/10/2021 00:00:00,253911,7.5,JW0004,J & W FENCING LIMITED,27/9/2021 00:00:00,31/10/2021 00:00:00,P07-2022
P&V,NORTH AREA RANGERS,SUPPLIES AND SERVICES,FENCES/GATES ETC.,2231,P113462-SERVICE-Install Gate - Sandpiper Hide at Stanstead In,25/10/2021 00:00:00,254474,390,JO0019,R G JOYCE,27/9/2021 00:00:00,31/10/2021 00:00:00,P07-2022
P&V,SOUTH AREA RANGERS,SUPPLIES AND SERVICES,FENCES/GATES ETC.,2231,P113326-SERVICE-1x Myti Fence Wire Strainer - 4846,18/10/2021 00:00:00,254258,-14,FA0099,FARM & COUNTRY SUPPLIES LTD,27/9/2021 00:00:00,31/10/2021 00:00:00,P07-2022
P&V,SOUTH AREA RANGERS,SUPPLIES AND SERVICES,FENCES/GATES ETC.,2231,"P113326-SERVICE-20x 6ft x 3-4"" Peeled Round Post Pointed - 38",18/10/2021 00:00:00,254258,-100.5,FA0099,FARM & COUNTRY SUPPLIES LTD,27/9/2021 00:00:00,31/10/2021 00:00:00,P07-2022
P&V,SOUTH AREA RANGERS,SUPPLIES AND SERVICES,FENCES/GATES ETC.,2231,"P113326-SERVICE-5x 8ft x 6"" Machined Round Strainer Pointed -",18/10/2021 00:00:00,254258,-101.25,FA0099,FARM & COUNTRY SUPPLIES LTD,27/9/2021 00:00:00,31/10/2021 00:00:00,P07-2022
P&V,SOUTH AREA RANGERS,SUPPLIES AND SERVICES,FENCES/GATES ETC.,2231,"P113326-SERVICE-20x 6ft x 3-4"" Peeled Round Post Pointed - 38",18/10/2021 00:00:00,254421,100.5,FA0099,FARM & COUNTRY SUPPLIES LTD,27/9/2021 00:00:00,31/10/2021 00:00:00,P07-2022
P&V,SOUTH AREA RANGERS,SUPPLIES AND SERVICES,FENCES/GATES ETC.,2231,P113326-SERVICE-1x Myti Fence Wire Strainer - 4846,18/10/2021 00:00:00,254421,14,FA0099,FARM & COUNTRY SUPPLIES LTD,27/9/2021 00:00:00,31/10/2021 00:00:00,P07-2022
P&V,SOUTH AREA RANGERS,SUPPLIES AND SERVICES,FENCES/GATES ETC.,2231,"P113326-SERVICE-5x 8ft x 6"" Machined Round Strainer Pointed -",18/10/2021 00:00:00,254421,101.25,FA0099,FARM & COUNTRY SUPPLIES LTD,27/9/2021 00:00:00,31/10/2021 00:00:00,P07-2022
P&V,GUNPOWDER PARK,SUPPLIES AND SERVICES,FENCES/GATES ETC.,2231,P114698-SERVICE-6x 8x8' 6-7 Peeled Strainer,31/10/2021 00:00:00,254800,143.88,FA0099,FARM & COUNTRY SUPPLIES LTD,27/9/2021 00:00:00,31/10/2021 00:00:00,P07-2022
P&V,GUNPOWDER PARK,SUPPLIES AND SERVICES,FENCES/GATES ETC.,2231,P114698-SERVICE-1x 50cm C8/80/15,31/10/2021 00:00:00,254800,61.79,FA0099,FARM & COUNTRY SUPPLIES LTD,27/9/2021 00:00:00,31/10/2021 00:00:00,P07-2022
P&V,GUNPOWDER PARK,SUPPLIES AND SERVICES,FENCES/GATES ETC.,2231,P114698-SERVICE-1x Roll HT Barbed Wire,31/10/2021 00:00:00,254800,35.66,FA0099,FARM & COUNTRY SUPPLIES LTD,27/9/2021 00:00:00,31/10/2021 00:00:00,P07-2022
P&V,RIVER LEE COUNTRY PARK,SUPPLIES AND SERVICES,FENCES/GATES ETC.,2231,P114468-SERVICE-10 x Post Timber - 2.4 x 2 x 2,18/10/2021 00:00:00,253910,40,JW0004,J & W FENCING LIMITED,27/9/2021 00:00:00,31/10/2021 00:00:00,P07-2022
P&V,RIVER LEE COUNTRY PARK,SUPPLIES AND SERVICES,FENCES/GATES ETC.,2231,P114050-SERVICE-Delivery,31/10/2021 00:00:00,254777,246,ST0041,BROXAP LTD,27/9/2021 00:00:00,31/10/2021 00:00:00,P07-2022
P&V,RIVER LEE COUNTRY PARK,SUPPLIES AND SERVICES,FENCES/GATES ETC.,2231,P114050-SERVICE-3x Penwortham Benches in Hardwood,31/10/2021 00:00:00,254777,2046,ST0041,BROXAP LTD,27/9/2021 00:00:00,31/10/2021 00:00:00,P07-2022
CEO,COMMERCIAL ACCOMMODATION,PREMISES RELATED EXPENDITURE,EAST HALE ALLOTMENTS,2261,P112083-SERVICE-Allotment Bins,10/11/2021 00:00,253855,129.87,CL0037,VEOLIA ES (UK) LTD,27/9/2021 00:00:00,31/10/2021 00:00:00,P07-2022
P&V,MYDDELTON HOUSE,PREMISES RELATED EXPENDITURE,ENERGY COSTS (ELECTRICITY),2332,KENT COUNTY COUNCIL (KCS),31/10/2021 00:00:00,255020,178.48,KE0007,KENT COUNTY COUNCIL (KCS),27/9/2021 00:00:00,31/10/2021 00:00:00,P07-2022
P&V,MYDDELTON HOUSE,PREMISES RELATED EXPENDITURE,ENERGY COSTS (ELECTRICITY),2332,KENT COUNTY COUNCIL (KCS),31/10/2021 00:00:00,255021,1110.46,KE0007,KENT COUNTY COUNCIL (KCS),27/9/2021 00:00:00,31/10/2021 00:00:00,P07-2022
P&V,MYDDELTON HOUSE,PREMISES RELATED EXPENDITURE,ENERGY COSTS (ELECTRICITY),2332,KENT COUNTY COUNCIL (KCS),31/10/2021 00:00:00,255075,21.18,KE0007,KENT COUNTY COUNCIL (KCS),27/9/2021 00:00:00,31/10/2021 00:00:00,P07-2022
CEO,COMMERCIAL ACCOMMODATION,PREMISES RELATED EXPENDITURE,ENERGY COSTS (ELECTRICITY),2332,E-ON NEXT ENERGY LTD,10/07/2021 00:00,253302,142.24,EO0398,E-ON NEXT ENERGY LTD,27/9/2021 00:00:00,31/10/2021 00:00:00,P07-2022
CEO,COMMERCIAL ACCOMMODATION,PREMISES RELATED EXPENDITURE,ENERGY COSTS (ELECTRICITY),2332,E-ON NEXT ENERGY LTD,10/12/2021 00:00,254141,68.66,EO0398,E-ON NEXT ENERGY LTD,27/9/2021 00:00:00,31/10/2021 00:00:00,P07-2022
CEO,COMMERCIAL ACCOMMODATION,PREMISES RELATED EXPENDITURE,ENERGY COSTS (ELECTRICITY),2332,E-ON NEXT ENERGY LTD,19/10/2021 00:00:00,254409,212.99,EO0398,E-ON NEXT ENERGY LTD,27/9/2021 00:00:00,31/10/2021 00:00:00,P07-2022
CEO,COMMERCIAL ACCOMMODATION,PREMISES RELATED EXPENDITURE,ENERGY COSTS (ELECTRICITY),2332,E-ON NEXT ENERGY LTD,19/10/2021 00:00:00,254410,12.05,EO0398,E-ON NEXT ENERGY LTD,27/9/2021 00:00:00,31/10/2021 00:00:00,P07-2022
,LEE VALLEY CAMPSITE,PREMISES RELATED EXPENDITURE,ENERGY COSTS (ELECTRICITY),2332,KENT COUNTY COUNCIL (KCS),10/04/2021 00:00,253515,568.58,KE0007,KENT COUNTY COUNCIL (KCS),27/9/2021 00:00:00,31/10/2021 00:00:00,P07-2022
,LEE VALLEY CARAVAN PARK,PREMISES RELATED EXPENDITURE,ENERGY COSTS (ELECTRICITY),2332,KENT COUNTY COUNCIL (KCS),31/10/2021 00:00:00,254720,5751.95,KE0007,KENT COUNTY COUNCIL (KCS),27/9/2021 00:00:00,31/10/2021 00:00:00,P07-2022
P&V,RYE HOUSE GATEHOUSE,PREMISES RELATED EXPENDITURE,ENERGY COSTS (ELECTRICITY),2332,KENT COUNTY COUNCIL (KCS),31/10/2021 00:00:00,255013,11.18,KE0007,KENT COUNTY COUNCIL (KCS),27/9/2021 00:00:00,31/10/2021 00:00:00,P07-2022
P&V,SOUTH AREA RANGERS,PREMISES RELATED EXPENDITURE,ENERGY COSTS (ELECTRICITY),2332,KENT COUNTY COUNCIL (KCS),31/10/2021 00:00:00,254816,42.12,KE0007,KENT COUNTY COUNCIL (KCS),27/9/2021 00:00:00,31/10/2021 00:00:00,P07-2022
P&V,ABBEY GARDENS,PREMISES RELATED EXPENDITURE,ENERGY COSTS (ELECTRICITY),2332,KENT COUNTY COUNCIL (KCS),10/11/2021 00:00,254075,437.35,KE0007,KENT COUNTY COUNCIL (KCS),27/9/2021 00:00:00,31/10/2021 00:00:00,P07-2022
P&V,ABBEY GARDENS,PREMISES RELATED EXPENDITURE,ENERGY COSTS (ELECTRICITY),2332,KENT COUNTY COUNCIL (KCS),31/10/2021 00:00:00,254821,142.67,KE0007,KENT COUNTY COUNCIL (KCS),27/9/2021 00:00:00,31/10/2021 00:00:00,P07-2022
P&V,GUNPOWDER PARK,PREMISES RELATED EXPENDITURE,ENERGY COSTS (ELECTRICITY),2332,KENT COUNTY COUNCIL (KCS),31/10/2021 00:00:00,254820,256.08,KE0007,KENT COUNTY COUNCIL (KCS),27/9/2021 00:00:00,31/10/2021 00:00:00,P07-2022
P&V,RIVER LEE COUNTRY PARK,PREMISES RELATED EXPENDITURE,ENERGY COSTS (ELECTRICITY),2332,KENT COUNTY COUNCIL (KCS),31/10/2021 00:00:00,254822,11.03,KE0007,KENT COUNTY COUNCIL (KCS),27/9/2021 00:00:00,31/10/2021 00:00:00,P07-2022
P&V,CAR PARK INCOME,PREMISES RELATED EXPENDITURE,ENERGY COSTS (ELECTRICITY),2332,NPOWER LIMITED,31/10/2021 00:00:00,254787,28.13,NP0123,NPOWER LIMITED,27/9/2021 00:00:00,31/10/2021 00:00:00,P07-2022
P&V,CAR PARK INCOME,PREMISES RELATED EXPENDITURE,ENERGY COSTS (ELECTRICITY),2332,NPOWER LIMITED,31/10/2021 00:00:00,254788,24.52,NP0123,NPOWER LIMITED,27/9/2021 00:00:00,31/10/2021 00:00:00,P07-2022
P&V,CAR PARK INCOME,PREMISES RELATED EXPENDITURE,ENERGY COSTS (ELECTRICITY),2332,NPOWER LIMITED,31/10/2021 00:00:00,254789,23.93,NP0123,NPOWER LIMITED,27/9/2021 00:00:00,31/10/2021 00:00:00,P07-2022
P&V,CAR PARK INCOME,PREMISES RELATED EXPENDITURE,ENERGY COSTS (ELECTRICITY),2332,NPOWER LIMITED,31/10/2021 00:00:00,254790,26.76,NP0123,NPOWER LIMITED,27/9/2021 00:00:00,31/10/2021 00:00:00,P07-2022
,LEE VALLEY VELOPARK,PREMISES RELATED EXPENDITURE,ENERGY COSTS (ELECTRICITY),2332,KENT COUNTY COUNCIL (KCS),30/9/2021 00:00:00,253507,43.55,KE0007,KENT COUNTY COUNCIL (KCS),27/9/2021 00:00:00,31/10/2021 00:00:00,P07-2022
,LEE VALLEY VELOPARK,PREMISES RELATED EXPENDITURE,ENERGY COSTS (ELECTRICITY),2332,KENT COUNTY COUNCIL (KCS),31/10/2021 00:00:00,254817,40.68,KE0007,KENT COUNTY COUNCIL (KCS),27/9/2021 00:00:00,31/10/2021 00:00:00,P07-2022
,LEE VALLEY VELOPARK,PREMISES RELATED EXPENDITURE,ENERGY COSTS (ELECTRICITY),2332,KENT COUNTY COUNCIL (KCS),31/10/2021 00:00:00,254819,44.88,KE0007,KENT COUNTY COUNCIL (KCS),27/9/2021 00:00:00,31/10/2021 00:00:00,P07-2022
,LV HOCKEY AND TENNIS CENTRE,PREMISES RELATED EXPENDITURE,ENERGY COSTS (ELECTRICITY),2332,NPOWER LIMITED,27/10/2021 00:00:00,254786,9657.64,NP0123,NPOWER LIMITED,27/9/2021 00:00:00,31/10/2021 00:00:00,P07-2022
,LEE VALLEY RIDING CENTRE,PREMISES RELATED EXPENDITURE,ENERGY COSTS (ELECTRICITY),2332,NPOWER LIMITED,30/9/2021 00:00:00,251905,-460.26,NP0123,NPOWER LIMITED,27/9/2021 00:00:00,31/10/2021 00:00:00,P07-2022
,LEE VALLEY RIDING CENTRE,PREMISES RELATED EXPENDITURE,ENERGY COSTS (ELECTRICITY),2332,EDF ENERGY 1 LIMITED,26/10/2021 00:00:00,254648,62.04,ED0077,EDF ENERGY 1 LIMITED,27/9/2021 00:00:00,31/10/2021 00:00:00,P07-2022
,LEE VALLEY RIDING CENTRE,PREMISES RELATED EXPENDITURE,ENERGY COSTS (ELECTRICITY),2332,NPOWER LIMITED,27/10/2021 00:00:00,254791,703.23,NP0123,NPOWER LIMITED,27/9/2021 00:00:00,31/10/2021 00:00:00,P07-2022
,LEE VALLEY RIDING CENTRE,PREMISES RELATED EXPENDITURE,ENERGY COSTS (ELECTRICITY),2332,NPOWER LIMITED,27/10/2021 00:00:00,254792,167.37,NP0123,NPOWER LIMITED,27/9/2021 00:00:00,31/10/2021 00:00:00,P07-2022
,LV LEISURE CENTRE CAMPSITE,PREMISES RELATED EXPENDITURE,ENERGY COSTS (ELECTRICITY),2332,NPOWER LIMITED,31/10/2021 00:00:00,254782,4647.36,NP0123,NPOWER LIMITED,27/9/2021 00:00:00,31/10/2021 00:00:00,P07-2022
,LEE VALLEY WHITE WATER CENTRE,PREMISES RELATED EXPENDITURE,ENERGY COSTS (ELECTRICITY),2332,NPOWER LIMITED,27/10/2021 00:00:00,254784,24705.74,NP0123,NPOWER LIMITED,27/9/2021 00:00:00,31/10/2021 00:00:00,P07-2022
,LEE VALLEY WHITE WATER CENTRE,PREMISES RELATED EXPENDITURE,ENERGY COSTS (ELECTRICITY),2332,NPOWER LIMITED,27/10/2021 00:00:00,254785,495.44,NP0123,NPOWER LIMITED,27/9/2021 00:00:00,31/10/2021 00:00:00,P07-2022
P&V,MYDDELTON HOUSE,PREMISES RELATED EXPENDITURE,ENERGY COSTS (GAS),2333,KENT COUNTY COUNCIL (KCS),18/10/2021 00:00:00,254405,432.11,KE0007,KENT COUNTY COUNCIL (KCS),27/9/2021 00:00:00,31/10/2021 00:00:00,P07-2022
P&V,MYDDELTON HOUSE,PREMISES RELATED EXPENDITURE,ENERGY COSTS (GAS),2333,KENT COUNTY COUNCIL (KCS),18/10/2021 00:00:00,254406,311.55,KE0007,KENT COUNTY COUNCIL (KCS),27/9/2021 00:00:00,31/10/2021 00:00:00,P07-2022
P&V,MYDDELTON HOUSE,PREMISES RELATED EXPENDITURE,ENERGY COSTS (GAS),2333,KENT COUNTY COUNCIL (KCS),18/10/2021 00:00:00,254407,336.84,KE0007,KENT COUNTY COUNCIL (KCS),27/9/2021 00:00:00,31/10/2021 00:00:00,P07-2022
P&V,MYDDELTON HOUSE,PREMISES RELATED EXPENDITURE,ENERGY COSTS (GAS),2333,KENT COUNTY COUNCIL (KCS),18/10/2021 00:00:00,254408,320.71,KE0007,KENT COUNTY COUNCIL (KCS),27/9/2021 00:00:00,31/10/2021 00:00:00,P07-2022
,LEE VALLEY MARINA SPRINGFIELD,PREMISES RELATED EXPENDITURE,ENERGY COSTS (GAS),2333,KENT COUNTY COUNCIL (KCS),18/10/2021 00:00:00,254233,102.37,KE0007,KENT COUNTY COUNCIL (KCS),27/9/2021 00:00:00,31/10/2021 00:00:00,P07-2022
,LEE VALLEY MARINA STANSTEAD,PREMISES RELATED EXPENDITURE,ENERGY COSTS (GAS),2333,KENT COUNTY COUNCIL (KCS),14/10/2021 00:00:00,254229,93.97,KE0007,KENT COUNTY COUNCIL (KCS),27/9/2021 00:00:00,31/10/2021 00:00:00,P07-2022
,LEE VALLEY MARINA STANSTEAD,PREMISES RELATED EXPENDITURE,ENERGY COSTS (GAS),2333,KENT COUNTY COUNCIL (KCS),14/10/2021 00:00:00,254230,76.68,KE0007,KENT COUNTY COUNCIL (KCS),27/9/2021 00:00:00,31/10/2021 00:00:00,P07-2022
,LEE VALLEY WATERWORKS CENTRE,PREMISES RELATED EXPENDITURE,ENERGY COSTS (GAS),2333,KENT COUNTY COUNCIL (KCS),10/12/2021 00:00,252955,363.84,KE0007,KENT COUNTY COUNCIL (KCS),27/9/2021 00:00:00,31/10/2021 00:00:00,P07-2022
,LEE VALLEY WATERWORKS CENTRE,PREMISES RELATED EXPENDITURE,ENERGY COSTS (GAS),2333,KENT COUNTY COUNCIL (KCS),10/12/2021 00:00,252956,180.06,KE0007,KENT COUNTY COUNCIL (KCS),27/9/2021 00:00:00,31/10/2021 00:00:00,P07-2022
,LEE VALLEY WATERWORKS CENTRE,PREMISES RELATED EXPENDITURE,ENERGY COSTS (GAS),2333,KENT COUNTY COUNCIL (KCS),10/12/2021 00:00,252957,180.86,KE0007,KENT COUNTY COUNCIL (KCS),27/9/2021 00:00:00,31/10/2021 00:00:00,P07-2022
,LEE VALLEY WATERWORKS CENTRE,PREMISES RELATED EXPENDITURE,ENERGY COSTS (GAS),2333,KENT COUNTY COUNCIL (KCS),19/10/2021 00:00:00,254232,222.63,KE0007,KENT COUNTY COUNCIL (KCS),27/9/2021 00:00:00,31/10/2021 00:00:00,P07-2022
,LEE VALLEY CAMPSITE,PREMISES RELATED EXPENDITURE,ENERGY COSTS (GAS),2333,KENT COUNTY COUNCIL (KCS),18/10/2021 00:00:00,254234,288.37,KE0007,KENT COUNTY COUNCIL (KCS),27/9/2021 00:00:00,31/10/2021 00:00:00,P07-2022
,LEE VALLEY CARAVAN PARK,PREMISES RELATED EXPENDITURE,ENERGY COSTS (GAS),2333,P114603-SERVICE-MAIN GAS TOP UP,13/10/2021 00:00:00,253620,2664.15,AV0327,AVANTI GAS LIMITED,27/9/2021 00:00:00,31/10/2021 00:00:00,P07-2022
,LEE VALLEY CARAVAN PARK,PREMISES RELATED EXPENDITURE,ENERGY COSTS (GAS),2333,P114904-SERVICE-Main Gas supply,31/10/2021 00:00:00,254690,3056.84,AV0327,AVANTI GAS LIMITED,27/9/2021 00:00:00,31/10/2021 00:00:00,P07-2022
P&V,GUNPOWDER PARK,PREMISES RELATED EXPENDITURE,ENERGY COSTS (GAS),2333,KENT COUNTY COUNCIL (KCS),14/10/2021 00:00:00,254374,48.21,KE0007,KENT COUNTY COUNCIL (KCS),27/9/2021 00:00:00,31/10/2021 00:00:00,P07-2022
,LEE VALLEY RIDING CENTRE,PREMISES RELATED EXPENDITURE,ENERGY COSTS (GAS),2333,BRITISH GAS BUSINESS,30/9/2021 00:00:00,253551,70.25,BR0029,BRITISH GAS BUSINESS,27/9/2021 00:00:00,31/10/2021 00:00:00,P07-2022
,LEE VALLEY RIDING CENTRE,PREMISES RELATED EXPENDITURE,ENERGY COSTS (GAS),2333,TOTALENERGIES GAS & POWER LIMI,14/10/2021 00:00:00,254202,91.66,TO0168,TOTALENERGIES GAS & POWER LIMITED,27/9/2021 00:00:00,31/10/2021 00:00:00,P07-2022
,LEE VALLEY RIDING CENTRE,PREMISES RELATED EXPENDITURE,ENERGY COSTS (GAS),2333,BRITISH GAS BUSINESS,26/10/2021 00:00:00,254770,86.05,BR0029,BRITISH GAS BUSINESS,27/9/2021 00:00:00,31/10/2021 00:00:00,P07-2022
,LEE VALLEY ICE CENTRE,PREMISES RELATED EXPENDITURE,ENERGY COSTS (GAS),2333,TOTALENERGIES GAS & POWER LIMI,14/10/2021 00:00:00,252933,1781.06,TO0168,TOTALENERGIES GAS & POWER LIMITED,27/9/2021 00:00:00,31/10/2021 00:00:00,P07-2022
,LEE VALLEY ICE CENTRE,PREMISES RELATED EXPENDITURE,ENERGY COSTS (GAS),2333,TOTALENERGIES GAS & POWER LIMI,14/10/2021 00:00:00,252934,706,TO0168,TOTALENERGIES GAS & POWER LIMITED,27/9/2021 00:00:00,31/10/2021 00:00:00,P07-2022
,LEE VALLEY ICE CENTRE,PREMISES RELATED EXPENDITURE,ENERGY COSTS (GAS),2333,TOTALENERGIES GAS & POWER LIMI,14/10/2021 00:00:00,252935,1649.48,TO0168,TOTALENERGIES GAS & POWER LIMITED,27/9/2021 00:00:00,31/10/2021 00:00:00,P07-2022
,LEE VALLEY ICE CENTRE,PREMISES RELATED EXPENDITURE,ENERGY COSTS (GAS),2333,TOTALENERGIES GAS & POWER LIMI,14/10/2021 00:00:00,253092,2158.92,TO0168,TOTALENERGIES GAS & POWER LIMITED,27/9/2021 00:00:00,31/10/2021 00:00:00,P07-2022
,LEE VALLEY ICE CENTRE,PREMISES RELATED EXPENDITURE,ENERGY COSTS (GAS),2333,TOTALENERGIES GAS & POWER LIMI,14/10/2021 00:00:00,253093,2288.19,TO0168,TOTALENERGIES GAS & POWER LIMITED,27/9/2021 00:00:00,31/10/2021 00:00:00,P07-2022
,LEE VALLEY ICE CENTRE,PREMISES RELATED EXPENDITURE,ENERGY COSTS (GAS),2333,TOTALENERGIES GAS & POWER LIMI,14/10/2021 00:00:00,253094,729.15,TO0168,TOTALENERGIES GAS & POWER LIMITED,27/9/2021 00:00:00,31/10/2021 00:00:00,P07-2022
,LEE VALLEY ICE CENTRE,PREMISES RELATED EXPENDITURE,ENERGY COSTS (GAS),2333,TOTALENERGIES GAS & POWER LIMI,14/10/2021 00:00:00,253177,1623.31,TO0168,TOTALENERGIES GAS & POWER LIMITED,27/9/2021 00:00:00,31/10/2021 00:00:00,P07-2022
,LV LEISURE CENTRE CAMPSITE,PREMISES RELATED EXPENDITURE,ENERGY COSTS (GAS),2333,KENT COUNTY COUNCIL (KCS),25/10/2021 00:00:00,254231,435.2,KE0007,KENT COUNTY COUNCIL (KCS),27/9/2021 00:00:00,31/10/2021 00:00:00,P07-2022
P&V,MYDDELTON HOUSE,PREMISES RELATED EXPENDITURE,ENERGY COSTS (BIOMASS FUEL),2334,P114506-SERVICE-Wood Pellets,10/11/2021 00:00,254077,1104.24,BA0631,BALCAS TIMBER LTD/BALCAS ENERGY,27/9/2021 00:00:00,31/10/2021 00:00:00,P07-2022
,LEE VALLEY MARINA SPRINGFIELD,PREMISES RELATED EXPENDITURE,RENT (EXTERNAL),2442,THAMES WATER UTILITIES LIMITED,10/07/2021 00:00,253332,200,TH0020,THAMES WATER UTILITIES LIMITED-  SAVILLS,27/9/2021 00:00:00,31/10/2021 00:00:00,P07-2022
P&V,KING GEORGE RESERVOIR SOUTH,PREMISES RELATED EXPENDITURE,RENT (EXTERNAL),2442,THAMES WATER UTILITIES LIMITED,10/07/2021 00:00,253333,3375,TH0020,THAMES WATER UTILITIES LIMITED-  SAVILLS,27/9/2021 00:00:00,31/10/2021 00:00:00,P07-2022
P&V,YOUTH AND SCHOOLS,PREMISES RELATED EXPENDITURE,RENT (EXTERNAL),2442,P114772-SERVICE-Abbey Farmhouse cupboard space rental,31/10/2021 00:00:00,255112,640,WA0108,WALTHAM ABBEY PAROCHIAL CHURCH COUNCIL,27/9/2021 00:00:00,31/10/2021 00:00:00,P07-2022
,LEE VALLEY MARINA STANSTEAD,PREMISES RELATED EXPENDITURE,BUSINESS RATES,2444,EAST HERTS COUNCIL,18/10/2021 00:00:00,247799,21082.75,EA0086,EAST HERTS COUNCIL,27/9/2021 00:00:00,31/10/2021 00:00:00,P07-2022
,LEE VALLEY MARINA STANSTEAD,PREMISES RELATED EXPENDITURE,BUSINESS RATES,2444,EAST HERTS COUNCIL,18/10/2021 00:00:00,247800,3143.7,EA0086,EAST HERTS COUNCIL,27/9/2021 00:00:00,31/10/2021 00:00:00,P07-2022
CEO,RESIDENTIAL ACCOMMODATION,PREMISES RELATED EXPENDITURE,PROPERTY MANAGEMT/LETTING FEES,2447,P114564-SERVICE-6 Month Management Fee - 2 Bungalow,14/10/2021 00:00:00,254129,897,WA0315,PAUL WALLACE ESTATE AGENTS,27/9/2021 00:00:00,31/10/2021 00:00:00,P07-2022
,LEE VALLEY MARINA STANSTEAD,PREMISES RELATED EXPENDITURE,WATER,2555,CASTLE WATER LIMITED,10/12/2021 00:00,254140,128.8,CA0625,CASTLE WATER LIMITED,27/9/2021 00:00:00,31/10/2021 00:00:00,P07-2022
,LEE VALLEY MARINA STANSTEAD,PREMISES RELATED EXPENDITURE,WATER,2555,CASTLE WATER LIMITED,10/12/2021 00:00,254140,123.17,CA0625,CASTLE WATER LIMITED,27/9/2021 00:00:00,31/10/2021 00:00:00,P07-2022
P&V,LEE VALLEY FARM HOLYFIELDHALL,PREMISES RELATED EXPENDITURE,WATER,2555,ENVIRONMENT AGENCY,10/12/2021 00:00,250750,138.25,EN0024,ENVIRONMENT AGENCY,27/9/2021 00:00:00,31/10/2021 00:00:00,P07-2022
P&V,LEE VALLEY FARM HOLYFIELDHALL,PREMISES RELATED EXPENDITURE,WATER,2555,CASTLE WATER LIMITED,31/10/2021 00:00:00,255072,2312.02,CA0625,CASTLE WATER LIMITED,27/9/2021 00:00:00,31/10/2021 00:00:00,P07-2022
,LEE VALLEY CAMPSITE,PREMISES RELATED EXPENDITURE,WATER,2555,CASTLE WATER LIMITED,14/10/2021 00:00:00,254139,1543.21,CA0625,CASTLE WATER LIMITED,27/9/2021 00:00:00,31/10/2021 00:00:00,P07-2022
P&V,EAST INDIA DOCK AND BOW CREEK,PREMISES RELATED EXPENDITURE,WATER,2555,CASTLE WATER LIMITED,25/10/2021 00:00:00,254683,13.09,CA0625,CASTLE WATER LIMITED,27/9/2021 00:00:00,31/10/2021 00:00:00,P07-2022
P&V,EAST INDIA DOCK AND BOW CREEK,PREMISES RELATED EXPENDITURE,WATER,2555,CASTLE WATER LIMITED,25/10/2021 00:00:00,254684,13.09,CA0625,CASTLE WATER LIMITED,27/9/2021 00:00:00,31/10/2021 00:00:00,P07-2022
P&V,GUNPOWDER PARK,PREMISES RELATED EXPENDITURE,WATER,2555,CASTLE WATER LIMITED,27/10/2021 00:00:00,254771,336.5,CA0625,CASTLE WATER LIMITED,27/9/2021 00:00:00,31/10/2021 00:00:00,P07-2022
P&V,RIVER LEE COUNTRY PARK,PREMISES RELATED EXPENDITURE,WATER,2555,CASTLE WATER LIMITED,18/10/2021 00:00:00,254411,514.98,CA0625,CASTLE WATER LIMITED,27/9/2021 00:00:00,31/10/2021 00:00:00,P07-2022
P&V,RIVER LEE COUNTRY PARK,PREMISES RELATED EXPENDITURE,WATER,2555,CASTLE WATER LIMITED,18/10/2021 00:00:00,254412,1373.06,CA0625,CASTLE WATER LIMITED,27/9/2021 00:00:00,31/10/2021 00:00:00,P07-2022
P&V,RIVER LEE COUNTRY PARK,PREMISES RELATED EXPENDITURE,WATER,2555,CASTLE WATER LIMITED,18/10/2021 00:00:00,254413,1681.43,CA0625,CASTLE WATER LIMITED,27/9/2021 00:00:00,31/10/2021 00:00:00,P07-2022
,LV LEISURE CENTRE CAMPSITE,PREMISES RELATED EXPENDITURE,WATER,2555,CASTLE WATER LIMITED,14/10/2021 00:00:00,254217,418.31,CA0625,CASTLE WATER LIMITED,27/9/2021 00:00:00,31/10/2021 00:00:00,P07-2022
,LV LEISURE CENTRE CAMPSITE,PREMISES RELATED EXPENDITURE,WATER,2555,CASTLE WATER LIMITED,14/10/2021 00:00:00,254217,139.88,CA0625,CASTLE WATER LIMITED,27/9/2021 00:00:00,31/10/2021 00:00:00,P07-2022
,LEE VALLEY WHITE WATER CENTRE,PREMISES RELATED EXPENDITURE,WATER,2555,CASTLE WATER LIMITED,14/10/2021 00:00:00,254375,2082.1,CA0625,CASTLE WATER LIMITED,27/9/2021 00:00:00,31/10/2021 00:00:00,P07-2022
,LEE VALLEY WHITE WATER CENTRE,PREMISES RELATED EXPENDITURE,WATER,2555,CASTLE WATER LIMITED,14/10/2021 00:00:00,254375,2272.46,CA0625,CASTLE WATER LIMITED,27/9/2021 00:00:00,31/10/2021 00:00:00,P07-2022
,LEE VALLEY MARINA SPRINGFIELD,PREMISES RELATED EXPENDITURE,CLEANING & DOMESTIC SUPPLIES,2666,P114767-SERVICE-Sanitary Disposal/Dust Mats ect rental,25/10/2021 00:00:00,253297,179.8,PE0015,PHS GROUP PLC,27/9/2021 00:00:00,31/10/2021 00:00:00,P07-2022
,LEE VALLEY MARINA SPRINGFIELD,PREMISES RELATED EXPENDITURE,CLEANING & DOMESTIC SUPPLIES,2666,"P114471-SERVICE-Site cleaning for Sept,Oct,Nov & Dec 2021",10/06/2021 00:00,253771,912.33,MA0015,MAYFAIR CLEANING COMPANY LIMITED,27/9/2021 00:00:00,31/10/2021 00:00:00,P07-2022
,LEE VALLEY MARINA SPRINGFIELD,PREMISES RELATED EXPENDITURE,CLEANING & DOMESTIC SUPPLIES,2666,P114462-SERVICE-To supply items as requested,25/10/2021 00:00:00,254162,183.28,HY0043,HYGIENE SYSTEMS LTD,27/9/2021 00:00:00,31/10/2021 00:00:00,P07-2022
,LEE VALLEY MARINA STANSTEAD,PREMISES RELATED EXPENDITURE,CLEANING & DOMESTIC SUPPLIES,2666,P114315-SERVICE-cleaning services,10/04/2021 00:00,253622,80,TR0632,TONYA RENNIE T/A TR SERVICES,27/9/2021 00:00:00,31/10/2021 00:00:00,P07-2022
,LEE VALLEY MARINA STANSTEAD,PREMISES RELATED EXPENDITURE,CLEANING & DOMESTIC SUPPLIES,2666,P114284-SERVICE-10 x toilet roll pack,10/04/2021 00:00,253756,177.9,TH0008,JKL SOLUTIONS LTD,27/9/2021 00:00:00,31/10/2021 00:00:00,P07-2022
,LEE VALLEY MARINA STANSTEAD,PREMISES RELATED EXPENDITURE,CLEANING & DOMESTIC SUPPLIES,2666,P114441-SERVICE-cleaning services,10/07/2021 00:00,253889,80,TR0632,TONYA RENNIE T/A TR SERVICES,27/9/2021 00:00:00,31/10/2021 00:00:00,P07-2022
,LEE VALLEY MARINA STANSTEAD,PREMISES RELATED EXPENDITURE,CLEANING & DOMESTIC SUPPLIES,2666,P114773-SERVICE-cleaning services,27/10/2021 00:00:00,254715,160,TR0632,TONYA RENNIE T/A TR SERVICES,27/9/2021 00:00:00,31/10/2021 00:00:00,P07-2022
,LEE VALLEY WATERWORKS CENTRE,PREMISES RELATED EXPENDITURE,CLEANING & DOMESTIC SUPPLIES,2666,P114416-SERVICE-Cleaning WaterWorks Centre - Sep2021,10/04/2021 00:00,253805,475.21,GL0214,GLENDALE GROUNDS MANAGEMENT LIMITED,27/9/2021 00:00:00,31/10/2021 00:00:00,P07-2022
,LEE VALLEY WATERWORKS CENTRE,PREMISES RELATED EXPENDITURE,CLEANING & DOMESTIC SUPPLIES,2666,P114768-SERVICE-Waterworks Cleaning - One off Visit,25/10/2021 00:00:00,254704,63.27,GL0214,GLENDALE GROUNDS MANAGEMENT LIMITED,27/9/2021 00:00:00,31/10/2021 00:00:00,P07-2022
,LEE VALLEY WATERWORKS CENTRE,PREMISES RELATED EXPENDITURE,CLEANING & DOMESTIC SUPPLIES,2666,P114488-SERVICE-Waterworks Cleaning - One off Visit,26/10/2021 00:00:00,254706,126.54,GL0214,GLENDALE GROUNDS MANAGEMENT LIMITED,27/9/2021 00:00:00,31/10/2021 00:00:00,P07-2022
,LEE VALLEY WATERWORKS CENTRE,PREMISES RELATED EXPENDITURE,CLEANING & DOMESTIC SUPPLIES,2666,P114437-SERVICE-Deep Clean Ranger Office at WaterWorks Centre,25/10/2021 00:00:00,254707,637.12,GL0214,GLENDALE GROUNDS MANAGEMENT LIMITED,27/9/2021 00:00:00,31/10/2021 00:00:00,P07-2022
,LEE VALLEY CAMPSITE,PREMISES RELATED EXPENDITURE,CLEANING & DOMESTIC SUPPLIES,2666,P114141-SERVICE-Monthly clean Sept - Oct 21,10/04/2021 00:00,253634,82.09,IN0012,INITIAL WASHROOM HYGIENE,27/9/2021 00:00:00,31/10/2021 00:00:00,P07-2022
,LEE VALLEY CAMPSITE,PREMISES RELATED EXPENDITURE,CLEANING & DOMESTIC SUPPLIES,2666,P113389-SERVICE-VARIOUS,14/10/2021 00:00:00,254051,91.38,HY0043,HYGIENE SYSTEMS LTD,27/9/2021 00:00:00,31/10/2021 00:00:00,P07-2022
,LEE VALLEY CAMPSITE,PREMISES RELATED EXPENDITURE,CLEANING & DOMESTIC SUPPLIES,2666,P113389-SERVICE-various,14/10/2021 00:00:00,254051,19.94,HY0043,HYGIENE SYSTEMS LTD,27/9/2021 00:00:00,31/10/2021 00:00:00,P07-2022
,LEE VALLEY CAMPSITE,PREMISES RELATED EXPENDITURE,CLEANING & DOMESTIC SUPPLIES,2666,P114688-SERVICE- 26/10/21 -25/11/21,20/10/2021 00:00:00,254460,82.09,IN0012,INITIAL WASHROOM HYGIENE,27/9/2021 00:00:00,31/10/2021 00:00:00,P07-2022
,LEE VALLEY CARAVAN PARK,PREMISES RELATED EXPENDITURE,CLEANING & DOMESTIC SUPPLIES,2666,P114290-SERVICE-Cleaning supplies,31/10/2021 00:00:00,253795,491.34,HY0043,HYGIENE SYSTEMS LTD,27/9/2021 00:00:00,31/10/2021 00:00:00,P07-2022
,LEE VALLEY CARAVAN PARK,PREMISES RELATED EXPENDITURE,CLEANING & DOMESTIC SUPPLIES,2666,P114902-SERVICE-Washroom Maintance,31/10/2021 00:00:00,254490,90.39,IN0012,INITIAL WASHROOM HYGIENE,27/9/2021 00:00:00,31/10/2021 00:00:00,P07-2022
,LV HOCKEY AND TENNIS CENTRE,PREMISES RELATED EXPENDITURE,CLEANING & DOMESTIC SUPPLIES,2666,P113781-SERVICE-Hygiene prducts August - Dec 2021,10/07/2021 00:00,253813,364.82,PE0015,PHS GROUP PLC,27/9/2021 00:00:00,31/10/2021 00:00:00,P07-2022
,LV LEISURE CENTRE CAMPSITE,PREMISES RELATED EXPENDITURE,CLEANING & DOMESTIC SUPPLIES,2666,P114409-SERVICE-Cleaning supplie,10/11/2021 00:00,254049,524.65,HY0043,HYGIENE SYSTEMS LTD,27/9/2021 00:00:00,31/10/2021 00:00:00,P07-2022
,LV LEISURE CENTRE CAMPSITE,PREMISES RELATED EXPENDITURE,CLEANING & DOMESTIC SUPPLIES,2666,P113797-SERVICE-Cleaning supplies,25/10/2021 00:00:00,254145,9.87,HY0043,HYGIENE SYSTEMS LTD,27/9/2021 00:00:00,31/10/2021 00:00:00,P07-2022
,LV LEISURE CENTRE CAMPSITE,PREMISES RELATED EXPENDITURE,CLEANING & DOMESTIC SUPPLIES,2666,P114604-SERVICE-Cleaning supplies,25/10/2021 00:00:00,254499,227.45,HY0043,HYGIENE SYSTEMS LTD,27/9/2021 00:00:00,31/10/2021 00:00:00,P07-2022
,LV LEISURE CENTRE CAMPSITE,PREMISES RELATED EXPENDITURE,CLEANING & DOMESTIC SUPPLIES,2666,P114604-SERVICE-Cleaning supplies,31/10/2021 00:00:00,254999,35.01,HY0043,HYGIENE SYSTEMS LTD,27/9/2021 00:00:00,31/10/2021 00:00:00,P07-2022
,LEE VALLEY ATHLETICS CENTRE,PREMISES RELATED EXPENDITURE,CLEANING & DOMESTIC SUPPLIES,2666,P114338-SERVICE-LVAC CLEANING PRODUCTS,14/10/2021 00:00:00,254050,84.25,HY0043,HYGIENE SYSTEMS LTD,27/9/2021 00:00:00,31/10/2021 00:00:00,P07-2022
,LEE VALLEY ATHLETICS CENTRE,PREMISES RELATED EXPENDITURE,CLEANING & DOMESTIC SUPPLIES,2666,P114338-SERVICE-LVAC CLEANING PRODUCTS,25/10/2021 00:00:00,254434,256.36,HY0043,HYGIENE SYSTEMS LTD,27/9/2021 00:00:00,31/10/2021 00:00:00,P07-2022
,LEE VALLEY WHITE WATER CENTRE,PREMISES RELATED EXPENDITURE,CLEANING & DOMESTIC SUPPLIES,2666,P114232-SERVICE-Cleaning supplies,10/05/2021 00:00,253594,321.16,SU0595,SUMMIT HYGIENE LTD,27/9/2021 00:00:00,31/10/2021 00:00:00,P07-2022
,LEE VALLEY WHITE WATER CENTRE,PREMISES RELATED EXPENDITURE,CLEANING & DOMESTIC SUPPLIES,2666,P114287-SERVICE-Hoover bags,10/11/2021 00:00,253598,14.91,AM0406,AMAZON PAYMENTS UK LIMITED,27/9/2021 00:00:00,31/10/2021 00:00:00,P07-2022
,LEE VALLEY WHITE WATER CENTRE,PREMISES RELATED EXPENDITURE,CLEANING & DOMESTIC SUPPLIES,2666,P114328-SERVICE-Cleaning supplies,10/05/2021 00:00,253786,409.86,SU0595,SUMMIT HYGIENE LTD,27/9/2021 00:00:00,31/10/2021 00:00:00,P07-2022
,LEE VALLEY WHITE WATER CENTRE,PREMISES RELATED EXPENDITURE,CLEANING & DOMESTIC SUPPLIES,2666,P114460-SERVICE-Henry Hoover bags,10/11/2021 00:00,254068,30.8,AM0406,AMAZON PAYMENTS UK LIMITED,27/9/2021 00:00:00,31/10/2021 00:00:00,P07-2022
,LEE VALLEY WHITE WATER CENTRE,PREMISES RELATED EXPENDITURE,CLEANING & DOMESTIC SUPPLIES,2666,P113677-SERVICE-10 x boxes Fresh wild lemon,10/11/2021 00:00,254074,263.2,BR0025,BREEZE SOUTHERN LTD,27/9/2021 00:00:00,31/10/2021 00:00:00,P07-2022
,LEE VALLEY WHITE WATER CENTRE,PREMISES RELATED EXPENDITURE,CLEANING & DOMESTIC SUPPLIES,2666,P114287-SERVICE-Hoover bags,10/12/2021 00:00,254116,-14.91,AM0406,AMAZON PAYMENTS UK LIMITED,27/9/2021 00:00:00,31/10/2021 00:00:00,P07-2022
,LEE VALLEY WHITE WATER CENTRE,PREMISES RELATED EXPENDITURE,CLEANING & DOMESTIC SUPPLIES,2666,P114614-SERVICE-Cleaning supplies,27/10/2021 00:00:00,254488,89.44,SU0595,SUMMIT HYGIENE LTD,27/9/2021 00:00:00,31/10/2021 00:00:00,P07-2022
,LEE VALLEY WHITE WATER CENTRE,PREMISES RELATED EXPENDITURE,CLEANING & DOMESTIC SUPPLIES,2666,P114232-SERVICE-Cleaning supplies,27/10/2021 00:00:00,254489,3.54,SU0595,SUMMIT HYGIENE LTD,27/9/2021 00:00:00,31/10/2021 00:00:00,P07-2022
,LEE VALLEY WHITE WATER CENTRE,PREMISES RELATED EXPENDITURE,CLEANING & DOMESTIC SUPPLIES,2666,P114805-SERVICE-Cleaning supplies,31/10/2021 00:00:00,254973,321.57,SU0595,SUMMIT HYGIENE LTD,27/9/2021 00:00:00,31/10/2021 00:00:00,P07-2022
P&V,LEE VALLEY FARM HOLYFIELDHALL,TRANSPORT RELATED EXPENDITURE,TRANSPORT RUNNING EXPENSES,3333,P114935-SERVICE-Parts,31/10/2021 00:00:00,253608,201.38,OL0001,OLIVER AGRICULTURE LTD,27/9/2021 00:00:00,31/10/2021 00:00:00,P07-2022
P&V,LEE VALLEY FARM HOLYFIELDHALL,TRANSPORT RELATED EXPENDITURE,TRANSPORT RUNNING EXPENSES,3333,P113504-SERVICE-Machinery Spares,10/04/2021 00:00,253611,300,BR0070.,J BROCK & SONS,27/9/2021 00:00:00,31/10/2021 00:00:00,P07-2022
P&V,LEE VALLEY FARM HOLYFIELDHALL,TRANSPORT RELATED EXPENDITURE,TRANSPORT RUNNING EXPENSES,3333,P114407-SERVICE-Gas Oil,10/04/2021 00:00,253783,3520,SP0543,SPEEDY FUELS LIMITED,27/9/2021 00:00:00,31/10/2021 00:00:00,P07-2022
P&V,LEE VALLEY FARM HOLYFIELDHALL,TRANSPORT RELATED EXPENDITURE,TRANSPORT RUNNING EXPENSES,3333,P111468-SERVICE-Hose Repair/Sundries,10/12/2021 00:00,254046,118.66,HU0003,ALLIANCE AUTOMOTIVE UK CV LIMITED T/A,27/9/2021 00:00:00,31/10/2021 00:00:00,P07-2022
P&V,LEE VALLEY FARM HOLYFIELDHALL,TRANSPORT RELATED EXPENDITURE,TRANSPORT RUNNING EXPENSES,3333,P113006-SERVICE-Tyres,10/12/2021 00:00,254081,60,KB0006,KB TYRES LTD,27/9/2021 00:00:00,31/10/2021 00:00:00,P07-2022
P&V,LEE VALLEY FARM HOLYFIELDHALL,TRANSPORT RELATED EXPENDITURE,TRANSPORT RUNNING EXPENSES,3333,P114431-SERVICE-Chains & Belts,25/10/2021 00:00:00,254196,48.8,BE0066,BEARINGS AND DRIVES,27/9/2021 00:00:00,31/10/2021 00:00:00,P07-2022
P&V,LEE VALLEY FARM HOLYFIELDHALL,TRANSPORT RELATED EXPENDITURE,TRANSPORT RUNNING EXPENSES,3333,P114205-SERVICE-Parts,31/10/2021 00:00:00,254493,218,RW0257,R. W. CRAWFORD AGRICULTURAL MACHINERY LTD,27/9/2021 00:00:00,31/10/2021 00:00:00,P07-2022
P&V,LEE VALLEY FARM HOLYFIELDHALL,TRANSPORT RELATED EXPENDITURE,TRANSPORT RUNNING EXPENSES,3333,P111469-SERVICE-Tractor Spares,25/10/2021 00:00:00,254714,-218,RW0257,R. W. CRAWFORD AGRICULTURAL MACHINERY LTD,27/9/2021 00:00:00,31/10/2021 00:00:00,P07-2022
P&V,LEE VALLEY FARM HOLYFIELDHALL,TRANSPORT RELATED EXPENDITURE,TRANSPORT RUNNING EXPENSES,3333,P114831-SERVICE-Air Con Service/Tow Adapter,31/10/2021 00:00:00,254815,213.98,AJ0064,A.J.D. OFF ROAD LTD,27/9/2021 00:00:00,31/10/2021 00:00:00,P07-2022
P&V,LEE VALLEY FARM HOLYFIELDHALL,TRANSPORT RELATED EXPENDITURE,TRANSPORT RUNNING EXPENSES,3333,P111473-SERVICE-Tractor Spares,31/10/2021 00:00:00,254823,216.07,OL0001,OLIVER AGRICULTURE LTD,27/9/2021 00:00:00,31/10/2021 00:00:00,P07-2022
,LEE VALLEY CAMPSITE,TRANSPORT RELATED EXPENDITURE,TRANSPORT RUNNING EXPENSES,3333,P114403-SERVICE-Trasnportation and siting of holiday home,19/10/2021 00:00:00,254430,2760,LO0459,LONDON LODGES UK,27/9/2021 00:00:00,31/10/2021 00:00:00,P07-2022
P&V,FISHERIES MANAGEMENT,TRANSPORT RELATED EXPENDITURE,VEHICLE FUEL,3335,ALLSTAR BUSINESS SOLUTIONS LTD,10/11/2021 00:00,253847,139.67,AR0035,ALLSTAR BUSINESS SOLUTIONS LTD,27/9/2021 00:00:00,31/10/2021 00:00:00,P07-2022
,LEE VALLEY MARINA STANSTEAD,TRANSPORT RELATED EXPENDITURE,VEHICLE FUEL,3335,ALLSTAR BUSINESS SOLUTIONS LTD,10/11/2021 00:00,253847,71.24,AR0035,ALLSTAR BUSINESS SOLUTIONS LTD,27/9/2021 00:00:00,31/10/2021 00:00:00,P07-2022
P&V,LEE VALLEY FARM HOLYFIELDHALL,TRANSPORT RELATED EXPENDITURE,VEHICLE FUEL,3335,ALLSTAR BUSINESS SOLUTIONS LTD,10/11/2021 00:00,253847,257.74,AR0035,ALLSTAR BUSINESS SOLUTIONS LTD,27/9/2021 00:00:00,31/10/2021 00:00:00,P07-2022
,LEE VALLEY CAMPSITE,TRANSPORT RELATED EXPENDITURE,VEHICLE FUEL,3335,ALLSTAR BUSINESS SOLUTIONS LTD,10/11/2021 00:00,253847,45.22,AR0035,ALLSTAR BUSINESS SOLUTIONS LTD,27/9/2021 00:00:00,31/10/2021 00:00:00,P07-2022
,LEE VALLEY CARAVAN PARK,TRANSPORT RELATED EXPENDITURE,VEHICLE FUEL,3335,ALLSTAR BUSINESS SOLUTIONS LTD,10/11/2021 00:00,253847,213.96,AR0035,ALLSTAR BUSINESS SOLUTIONS LTD,27/9/2021 00:00:00,31/10/2021 00:00:00,P07-2022
P&V,NORTH AREA RANGERS,TRANSPORT RELATED EXPENDITURE,VEHICLE FUEL,3335,ALLSTAR BUSINESS SOLUTIONS LTD,10/11/2021 00:00,253847,62.47,AR0035,ALLSTAR BUSINESS SOLUTIONS LTD,27/9/2021 00:00:00,31/10/2021 00:00:00,P07-2022
P&V,SOUTH AREA RANGERS,TRANSPORT RELATED EXPENDITURE,VEHICLE FUEL,3335,ALLSTAR BUSINESS SOLUTIONS LTD,10/11/2021 00:00,253847,178.08,AR0035,ALLSTAR BUSINESS SOLUTIONS LTD,27/9/2021 00:00:00,31/10/2021 00:00:00,P07-2022
P&V,RIVER LEE COUNTRY PARK,TRANSPORT RELATED EXPENDITURE,VEHICLE FUEL,3335,ALLSTAR BUSINESS SOLUTIONS LTD,10/11/2021 00:00,253847,79.42,AR0035,ALLSTAR BUSINESS SOLUTIONS LTD,27/9/2021 00:00:00,31/10/2021 00:00:00,P07-2022
P&V,RIVER LEE COUNTRY PARK,TRANSPORT RELATED EXPENDITURE,VEHICLE FUEL,3335,ALLSTAR BUSINESS SOLUTIONS LTD,10/11/2021 00:00,253847,332.77,AR0035,ALLSTAR BUSINESS SOLUTIONS LTD,27/9/2021 00:00:00,31/10/2021 00:00:00,P07-2022
P&V,RIVER LEE COUNTRY PARK,TRANSPORT RELATED EXPENDITURE,VEHICLE FUEL,3335,ALLSTAR BUSINESS SOLUTIONS LTD,10/07/2021 00:00,253848,10.45,AR0035,ALLSTAR BUSINESS SOLUTIONS LTD,27/9/2021 00:00:00,31/10/2021 00:00:00,P07-2022
,LV LEISURE CENTRE GOLF COURSE,TRANSPORT RELATED EXPENDITURE,VEHICLE FUEL,3335,P114356-SERVICE-fuel for golf,19/10/2021 00:00:00,254171,1092,HA0400,WATSON FUELS,27/9/2021 00:00:00,31/10/2021 00:00:00,P07-2022
,LEE VALLEY MARINA SPRINGFIELD,TRANSPORT RELATED EXPENDITURE,VEHICLE REPAIRS & MAINTENANCE,3338,KALSI MOTORS,18/10/2021 00:00:00,254157,116.8,KA0115,KALSI MOTORS LTD,27/9/2021 00:00:00,31/10/2021 00:00:00,P07-2022
,LEE VALLEY MARINA SPRINGFIELD,TRANSPORT RELATED EXPENDITURE,VEHICLE REPAIRS & MAINTENANCE,3338,KALSI MOTORS,18/10/2021 00:00:00,254157,40,KA0115,KALSI MOTORS LTD,27/9/2021 00:00:00,31/10/2021 00:00:00,P07-2022
,LEE VALLEY MARINA SPRINGFIELD,TRANSPORT RELATED EXPENDITURE,VEHICLE REPAIRS & MAINTENANCE,3338,KALSI MOTORS,18/10/2021 00:00:00,254157,-156.8,KA0115,KALSI MOTORS LTD,27/9/2021 00:00:00,31/10/2021 00:00:00,P07-2022
,LEE VALLEY MARINA SPRINGFIELD,TRANSPORT RELATED EXPENDITURE,VEHICLE REPAIRS & MAINTENANCE,3338,P114476-SERVICE-MOT & Repair to pass  MOT on work Truck,18/10/2021 00:00:00,254157,156.8,KA0115,KALSI MOTORS LTD,27/9/2021 00:00:00,31/10/2021 00:00:00,P07-2022
,LV HOCKEY AND TENNIS CENTRE,TRANSPORT RELATED EXPENDITURE,VEHICLE REPAIRS & MAINTENANCE,3338,P114553-SERVICE-golf buggy tire,13/10/2021 00:00:00,254058,90,AP0245,APS LIMITED,27/9/2021 00:00:00,31/10/2021 00:00:00,P07-2022
,LEE VALLEY MARINA SPRINGFIELD,TRANSPORT RELATED EXPENDITURE,CRAFT REPAIRS/MAINTENANCE,3347,P112576-SERVICE-1 x Model B Spurscutter to fit 1.25'' shaft,18/10/2021 00:00:00,254158,358.5,HA0015,HAROLD HAYLES (YARMOUTH I.W.) LTD,27/9/2021 00:00:00,31/10/2021 00:00:00,P07-2022
P&V,MYDDELTON HOUSE,SUPPLIES AND SERVICES,EQUIPMENT & MATERIALS,4111,P114151-SERVICE-Q-Connect Compatible Solution HP 55A,10/06/2021 00:00,253498,101.81,TH0008,JKL SOLUTIONS LTD,27/9/2021 00:00:00,31/10/2021 00:00:00,P07-2022
P&V,MYDDELTON HOUSE,SUPPLIES AND SERVICES,EQUIPMENT & MATERIALS,4111,P114151-SERVICE-Q-Connect Compatible Solution HP 55A,10/06/2021 00:00,253790,-101.81,TH0008,JKL SOLUTIONS LTD,27/9/2021 00:00:00,31/10/2021 00:00:00,P07-2022
P&V,FISHERIES MANAGEMENT,SUPPLIES AND SERVICES,EQUIPMENT & MATERIALS,4111,P114282-SERVICE-Oxyguard Handy Polaris C Meter,10/04/2021 00:00,253755,792,ST0665,STERNER AQUA TECH UK LTD,27/9/2021 00:00:00,31/10/2021 00:00:00,P07-2022
,LEE VALLEY MARINA SPRINGFIELD,SUPPLIES AND SERVICES,EQUIPMENT & MATERIALS,4111,P111829-SERVICE-To supply items as requested,25/10/2021 00:00:00,254400,83.14,SA0008,SAFETEC DIRECT LTD,27/9/2021 00:00:00,31/10/2021 00:00:00,P07-2022
,LEE VALLEY MARINA SPRINGFIELD,SUPPLIES AND SERVICES,EQUIPMENT & MATERIALS,4111,P114613-SERVICE-Repairs to hydraulic boat lift as per Quotati,25/10/2021 00:00:00,254498,7621.34,CO0395,COMPLETELY HYDRAULIC,27/9/2021 00:00:00,31/10/2021 00:00:00,P07-2022
,STANSTEAD RECHARGEABLE WORKS,SUPPLIES AND SERVICES,EQUIPMENT & MATERIALS,4111,P114123-SERVICE-anodes,10/04/2021 00:00,253640,496.25,MI0200,MIDLAND CHANDLERS LIMITED,27/9/2021 00:00:00,31/10/2021 00:00:00,P07-2022
,STANSTEAD RECHARGEABLE WORKS,SUPPLIES AND SERVICES,EQUIPMENT & MATERIALS,4111,P114554-SERVICE-sheet 18mm marine ply,18/10/2021 00:00:00,254261,74.72,TI0068,A10 TIMBER COMPANY,27/9/2021 00:00:00,31/10/2021 00:00:00,P07-2022
,STANSTEAD RECHARGEABLE WORKS,SUPPLIES AND SERVICES,EQUIPMENT & MATERIALS,4111,P114630-SERVICE-parts,27/10/2021 00:00:00,254479,206.75,EN0309,PRH ENGINEERING LIMITED,27/9/2021 00:00:00,31/10/2021 00:00:00,P07-2022
,STANSTEAD RECHARGEABLE WORKS,SUPPLIES AND SERVICES,EQUIPMENT & MATERIALS,4111,P114710-SERVICE-blacking,27/10/2021 00:00:00,254694,2008.33,SM0658,SML PAINTS AND COATINGS,27/9/2021 00:00:00,31/10/2021 00:00:00,P07-2022
,LEE VALLEY CAMPSITE,SUPPLIES AND SERVICES,EQUIPMENT & MATERIALS,4111,P114665-SERVICE-amazon supplies,20/10/2021 00:00:00,252480,31.58,AM0406,AMAZON PAYMENTS UK LIMITED,27/9/2021 00:00:00,31/10/2021 00:00:00,P07-2022
,LEE VALLEY CAMPSITE,SUPPLIES AND SERVICES,EQUIPMENT & MATERIALS,4111,P114112-SERVICE-Lock and bike crank,10/07/2021 00:00,253105,13.65,AM0406,AMAZON PAYMENTS UK LIMITED,27/9/2021 00:00:00,31/10/2021 00:00:00,P07-2022
,LEE VALLEY CAMPSITE,SUPPLIES AND SERVICES,EQUIPMENT & MATERIALS,4111,P114143-SERVICE-Key cabinet and brake fluid,10/07/2021 00:00,253151,43.74,AM0406,AMAZON PAYMENTS UK LIMITED,27/9/2021 00:00:00,31/10/2021 00:00:00,P07-2022
,LEE VALLEY CAMPSITE,SUPPLIES AND SERVICES,EQUIPMENT & MATERIALS,4111,P114143-SERVICE-Key cabinet and brake fluid,10/07/2021 00:00,253286,75.86,AM0406,AMAZON PAYMENTS UK LIMITED,27/9/2021 00:00:00,31/10/2021 00:00:00,P07-2022
,LEE VALLEY CAMPSITE,SUPPLIES AND SERVICES,EQUIPMENT & MATERIALS,4111,P114341-SERVICE-Chairs and padlocks,10/11/2021 00:00,253772,92.46,AM0406,AMAZON PAYMENTS UK LIMITED,27/9/2021 00:00:00,31/10/2021 00:00:00,P07-2022
,LEE VALLEY CAMPSITE,SUPPLIES AND SERVICES,EQUIPMENT & MATERIALS,4111,P114803-SERVICE-battery for radios,31/10/2021 00:00:00,254964,43.26,AM0406,AMAZON PAYMENTS UK LIMITED,27/9/2021 00:00:00,31/10/2021 00:00:00,P07-2022
,LEE VALLEY CARAVAN PARK,SUPPLIES AND SERVICES,EQUIPMENT & MATERIALS,4111,"P114131-SERVICE-Microwave, hairdryer and mattress",10/07/2021 00:00,253186,83.32,AM0406,AMAZON PAYMENTS UK LIMITED,27/9/2021 00:00:00,31/10/2021 00:00:00,P07-2022
,LEE VALLEY CARAVAN PARK,SUPPLIES AND SERVICES,EQUIPMENT & MATERIALS,4111,"P114131-SERVICE-Microwave, hairdryer and mattress",10/07/2021 00:00,253210,48.32,AM0406,AMAZON PAYMENTS UK LIMITED,27/9/2021 00:00:00,31/10/2021 00:00:00,P07-2022
,LEE VALLEY CARAVAN PARK,SUPPLIES AND SERVICES,EQUIPMENT & MATERIALS,4111,"P114131-SERVICE-Microwave, hairdryer and mattress",10/07/2021 00:00,253637,21.66,AM0406,AMAZON PAYMENTS UK LIMITED,27/9/2021 00:00:00,31/10/2021 00:00:00,P07-2022
,LEE VALLEY CARAVAN PARK,SUPPLIES AND SERVICES,EQUIPMENT & MATERIALS,4111,P114337-SERVICE-cash boxes,10/07/2021 00:00,253774,25.82,AM0406,AMAZON PAYMENTS UK LIMITED,27/9/2021 00:00:00,31/10/2021 00:00:00,P07-2022
,LEE VALLEY CARAVAN PARK,SUPPLIES AND SERVICES,EQUIPMENT & MATERIALS,4111,P113942-SERVICE-Cleaning materials,31/10/2021 00:00:00,253782,106.38,HY0043,HYGIENE SYSTEMS LTD,27/9/2021 00:00:00,31/10/2021 00:00:00,P07-2022
,LEE VALLEY CARAVAN PARK,SUPPLIES AND SERVICES,EQUIPMENT & MATERIALS,4111,P114385-SERVICE-Strimmer harness,20/10/2021 00:00:00,253824,16.73,AM0406,AMAZON PAYMENTS UK LIMITED,27/9/2021 00:00:00,31/10/2021 00:00:00,P07-2022
,LEE VALLEY CARAVAN PARK,SUPPLIES AND SERVICES,EQUIPMENT & MATERIALS,4111,P114347-SERVICE-Kubota repair and service,31/10/2021 00:00:00,253907,885,GE0440,GTEC'S,27/9/2021 00:00:00,31/10/2021 00:00:00,P07-2022
,LEE VALLEY CARAVAN PARK,SUPPLIES AND SERVICES,EQUIPMENT & MATERIALS,4111,P114911-SERVICE-tools,31/10/2021 00:00:00,254396,53.32,SC0057,SCREWFIX DIRECT LTD,27/9/2021 00:00:00,31/10/2021 00:00:00,P07-2022
,LEE VALLEY CARAVAN PARK,SUPPLIES AND SERVICES,EQUIPMENT & MATERIALS,4111,P114903-SERVICE-Building Matierals,31/10/2021 00:00:00,254506,36.94,SC0057,SCREWFIX DIRECT LTD,27/9/2021 00:00:00,31/10/2021 00:00:00,P07-2022
,LEE VALLEY CARAVAN PARK,SUPPLIES AND SERVICES,EQUIPMENT & MATERIALS,4111,P114663-SERVICE-Amazon supplies,31/10/2021 00:00:00,254547,191.67,AM0406,AMAZON PAYMENTS UK LIMITED,27/9/2021 00:00:00,31/10/2021 00:00:00,P07-2022
,LEE VALLEY CARAVAN PARK,SUPPLIES AND SERVICES,EQUIPMENT & MATERIALS,4111,P114663-SERVICE-Amazon supplies,31/10/2021 00:00:00,254549,191.67,AM0406,AMAZON PAYMENTS UK LIMITED,27/9/2021 00:00:00,31/10/2021 00:00:00,P07-2022
,LEE VALLEY CARAVAN PARK,SUPPLIES AND SERVICES,EQUIPMENT & MATERIALS,4111,P114663-SERVICE-Amazon supplies,31/10/2021 00:00:00,254550,38.32,AM0406,AMAZON PAYMENTS UK LIMITED,27/9/2021 00:00:00,31/10/2021 00:00:00,P07-2022
,LEE VALLEY CARAVAN PARK,SUPPLIES AND SERVICES,EQUIPMENT & MATERIALS,4111,P114663-SERVICE-Amazon supplies,31/10/2021 00:00:00,254551,38.32,AM0406,AMAZON PAYMENTS UK LIMITED,27/9/2021 00:00:00,31/10/2021 00:00:00,P07-2022
,LEE VALLEY CARAVAN PARK,SUPPLIES AND SERVICES,EQUIPMENT & MATERIALS,4111,P114663-SERVICE-Amazon supplies,31/10/2021 00:00:00,254553,38.32,AM0406,AMAZON PAYMENTS UK LIMITED,27/9/2021 00:00:00,31/10/2021 00:00:00,P07-2022
,LEE VALLEY CARAVAN PARK,SUPPLIES AND SERVICES,EQUIPMENT & MATERIALS,4111,P114715-SERVICE-harness for strimmer,31/10/2021 00:00:00,254663,17.86,AM0406,AMAZON PAYMENTS UK LIMITED,27/9/2021 00:00:00,31/10/2021 00:00:00,P07-2022
,LEE VALLEY CARAVAN PARK,SUPPLIES AND SERVICES,EQUIPMENT & MATERIALS,4111,P114811-SERVICE-buggy lights,31/10/2021 00:00:00,254946,19.78,AM0406,AMAZON PAYMENTS UK LIMITED,27/9/2021 00:00:00,31/10/2021 00:00:00,P07-2022
P&V,MYDDELTON HOUSE GARDENS,SUPPLIES AND SERVICES,EQUIPMENT & MATERIALS,4111,P114394-SERVICE-Labels Angled Head 19cm - Black x 2,25/10/2021 00:00:00,254122,689.32,FA0149,FARGRO LIMITED,27/9/2021 00:00:00,31/10/2021 00:00:00,P07-2022
P&V,MYDDELTON HOUSE GARDENS,SUPPLIES AND SERVICES,EQUIPMENT & MATERIALS,4111,P114394-SERVICE-Labels Angled Head 19cm - Black x 2,25/10/2021 00:00:00,254674,20.34,FA0149,FARGRO LIMITED,27/9/2021 00:00:00,31/10/2021 00:00:00,P07-2022
P&V,MYDDELTON HOUSE GARDENS,SUPPLIES AND SERVICES,EQUIPMENT & MATERIALS,4111,COULTERS LTD,31/10/2021 00:00:00,254972,30,CO0738,COULTERS LTD,27/9/2021 00:00:00,31/10/2021 00:00:00,P07-2022
P&V,MYDDELTON HOUSE GARDENS,SUPPLIES AND SERVICES,EQUIPMENT & MATERIALS,4111,P114443-SERVICE-Pumpkin order October 2021,31/10/2021 00:00:00,254972,440,CO0738,COULTERS LTD,27/9/2021 00:00:00,31/10/2021 00:00:00,P07-2022
P&V,MYDDELTON HOUSE GARDENS,SUPPLIES AND SERVICES,EQUIPMENT & MATERIALS,4111,COULTERS LTD,31/10/2021 00:00:00,254972,-440,CO0738,COULTERS LTD,27/9/2021 00:00:00,31/10/2021 00:00:00,P07-2022
P&V,MYDDELTON HOUSE GARDENS,SUPPLIES AND SERVICES,EQUIPMENT & MATERIALS,4111,COULTERS LTD,31/10/2021 00:00:00,254972,410,CO0738,COULTERS LTD,27/9/2021 00:00:00,31/10/2021 00:00:00,P07-2022
P&V,MYDDELTON HOUSE GARDENS,SUPPLIES AND SERVICES,EQUIPMENT & MATERIALS,4111,OASIS SINGLE BRICK X 8,31/10/2021 00:00:00,255124,5,FI0001,DIRECTOR OF FINANCE - CASH,27/9/2021 00:00:00,31/10/2021 00:00:00,P07-2022
P&V,MYDDELTON HOUSE GARDENS,SUPPLIES AND SERVICES,EQUIPMENT & MATERIALS,4111,SOLAR OUTDOOR LIGHTS FOR EVENTS,31/10/2021 00:00:00,255124,41.47,FI0001,DIRECTOR OF FINANCE - CASH,27/9/2021 00:00:00,31/10/2021 00:00:00,P07-2022
P&V,MYDDELTON HOUSE GARDENS,SUPPLIES AND SERVICES,EQUIPMENT & MATERIALS,4111,MASTERCRETE,31/10/2021 00:00:00,255124,16.33,FI0001,DIRECTOR OF FINANCE - CASH,27/9/2021 00:00:00,31/10/2021 00:00:00,P07-2022
P&V,SOUTH AREA RANGERS,SUPPLIES AND SERVICES,EQUIPMENT & MATERIALS,4111,P114562-SERVICE-1x Trade Extention Pole,18/10/2021 00:00:00,254178,8.33,SC0057,SCREWFIX DIRECT LTD,27/9/2021 00:00:00,31/10/2021 00:00:00,P07-2022
P&V,SOUTH AREA RANGERS,SUPPLIES AND SERVICES,EQUIPMENT & MATERIALS,4111,"P114562-SERVICE-1x Trade 9"" Paint Tray",18/10/2021 00:00:00,254178,4.99,SC0057,SCREWFIX DIRECT LTD,27/9/2021 00:00:00,31/10/2021 00:00:00,P07-2022
P&V,SOUTH AREA RANGERS,SUPPLIES AND SERVICES,EQUIPMENT & MATERIALS,4111,"P114562-SERVICE-1x Trade 9"" Roller Frame",18/10/2021 00:00:00,254178,3.58,SC0057,SCREWFIX DIRECT LTD,27/9/2021 00:00:00,31/10/2021 00:00:00,P07-2022
P&V,SOUTH AREA RANGERS,SUPPLIES AND SERVICES,EQUIPMENT & MATERIALS,4111,P114562-SERVICE-1x Smooth Masonry PBW 10L,18/10/2021 00:00:00,254179,31.66,SC0057,SCREWFIX DIRECT LTD,27/9/2021 00:00:00,31/10/2021 00:00:00,P07-2022
P&V,SOUTH AREA RANGERS,SUPPLIES AND SERVICES,EQUIPMENT & MATERIALS,4111,"P114568-SERVICE-4x Sthil 67 Link 1.6mm 16"" Chain",25/10/2021 00:00:00,254501,93.52,AP0245,APS LIMITED,27/9/2021 00:00:00,31/10/2021 00:00:00,P07-2022
P&V,SOUTH AREA RANGERS,SUPPLIES AND SERVICES,EQUIPMENT & MATERIALS,4111,P114568-SERVICE-4x Silky Gomataro Sheathed Saws,25/10/2021 00:00:00,254501,154.52,AP0245,APS LIMITED,27/9/2021 00:00:00,31/10/2021 00:00:00,P07-2022
,LEE VALLEY VELOPARK,SUPPLIES AND SERVICES,EQUIPMENT & MATERIALS,4111,P113946-SERVICE-Service of Access Control,30/9/2021 00:00:00,253603,987.62,AD0015,ADT FIRE & SECURITY PLC,27/9/2021 00:00:00,31/10/2021 00:00:00,P07-2022
,LEE VALLEY VELOPARK,SUPPLIES AND SERVICES,EQUIPMENT & MATERIALS,4111,P114521-SERVICE-Suremix 60 Size V,10/11/2021 00:00,253844,51.3,BO0015,BOC LTD,27/9/2021 00:00:00,31/10/2021 00:00:00,P07-2022
,LEE VALLEY VELOPARK,SUPPLIES AND SERVICES,EQUIPMENT & MATERIALS,4111,P114539-SERVICE-Copies,18/10/2021 00:00:00,253890,28.88,IN0185,IBS OFFICE SOLUTIONS LTD,27/9/2021 00:00:00,31/10/2021 00:00:00,P07-2022
,LEE VALLEY VELOPARK,SUPPLIES AND SERVICES,EQUIPMENT & MATERIALS,4111,P114527-SERVICE-Chemical Delivery,18/10/2021 00:00:00,254057,609.42,AP0245,APS LIMITED,27/9/2021 00:00:00,31/10/2021 00:00:00,P07-2022
,LEE VALLEY VELOPARK,SUPPLIES AND SERVICES,EQUIPMENT & MATERIALS,4111,P114640-SERVICE-Led Portable Tripod Work Light,25/10/2021 00:00:00,254180,58.47,SC0057,SCREWFIX DIRECT LTD,27/9/2021 00:00:00,31/10/2021 00:00:00,P07-2022
,LEE VALLEY VELOPARK,SUPPLIES AND SERVICES,EQUIPMENT & MATERIALS,4111,P114654-SERVICE-Hose Clips,25/10/2021 00:00:00,254397,15.83,SC0057,SCREWFIX DIRECT LTD,27/9/2021 00:00:00,31/10/2021 00:00:00,P07-2022
,LEE VALLEY VELOPARK,SUPPLIES AND SERVICES,EQUIPMENT & MATERIALS,4111,P114653-SERVICE-Connectors,25/10/2021 00:00:00,254398,10.63,SC0057,SCREWFIX DIRECT LTD,27/9/2021 00:00:00,31/10/2021 00:00:00,P07-2022
,LEE VALLEY VELOPARK,SUPPLIES AND SERVICES,EQUIPMENT & MATERIALS,4111,P114626-SERVICE-100 Lamps,25/10/2021 00:00:00,254445,284,IN0159,INTERNATIONAL LAMPS LTD,27/9/2021 00:00:00,31/10/2021 00:00:00,P07-2022
,LV HOCKEY AND TENNIS CENTRE,SUPPLIES AND SERVICES,EQUIPMENT & MATERIALS,4111,P114585-SERVICE-STRIP DOWN AND BUILD MACHINE,13/10/2021 00:00:00,253769,275,BR0025,BREEZE SOUTHERN LTD,27/9/2021 00:00:00,31/10/2021 00:00:00,P07-2022
,LV HOCKEY AND TENNIS CENTRE,SUPPLIES AND SERVICES,EQUIPMENT & MATERIALS,4111,P114147-SERVICE-suremix,13/10/2021 00:00:00,253846,16.8,BO0015,BOC LTD,27/9/2021 00:00:00,31/10/2021 00:00:00,P07-2022
,LV HOCKEY AND TENNIS CENTRE,SUPPLIES AND SERVICES,EQUIPMENT & MATERIALS,4111,P114530-SERVICE-PLUMBING MATERIALS,18/10/2021 00:00:00,254403,1294.13,RI0234,RICHMONDS OF LONDON LIMITED,27/9/2021 00:00:00,31/10/2021 00:00:00,P07-2022
,LV HOCKEY AND TENNIS CENTRE,SUPPLIES AND SERVICES,EQUIPMENT & MATERIALS,4111,P114823-SERVICE-white hockey pitch dividers x16,27/10/2021 00:00:00,254805,1606.4,HA0330,HARROD UK LIMITED,27/9/2021 00:00:00,31/10/2021 00:00:00,P07-2022
,LV HOCKEY AND TENNIS CENTRE,SUPPLIES AND SERVICES,EQUIPMENT & MATERIALS,4111,P114823-SERVICE-assembly charge,27/10/2021 00:00:00,254805,350,HA0330,HARROD UK LIMITED,27/9/2021 00:00:00,31/10/2021 00:00:00,P07-2022
,LV HOCKEY AND TENNIS CENTRE,SUPPLIES AND SERVICES,EQUIPMENT & MATERIALS,4111,P114823-SERVICE-PET sheet x2,27/10/2021 00:00:00,254805,213.92,HA0330,HARROD UK LIMITED,27/9/2021 00:00:00,31/10/2021 00:00:00,P07-2022
P&V,THREE MILLS,SUPPLIES AND SERVICES,EQUIPMENT & MATERIALS,4111,P113952-SERVICE-Play Area Softwood Bark Chip - Three Mills,31/10/2021 00:00:00,254984,277.77,NA0218,NATIONWIDE BARK & PLAY SURFACING LLP,27/9/2021 00:00:00,31/10/2021 00:00:00,P07-2022
,LEE VALLEY RIDING CENTRE,SUPPLIES AND SERVICES,EQUIPMENT & MATERIALS,4111,P112316-SERVICE-wooden rails,10/07/2021 00:00,253810,324,FA0099,FARM & COUNTRY SUPPLIES LTD,27/9/2021 00:00:00,31/10/2021 00:00:00,P07-2022
,LV LEISURE CENTRE CAMPSITE,SUPPLIES AND SERVICES,EQUIPMENT & MATERIALS,4111,P114427-SERVICE-maintenance supplies,10/12/2021 00:00,253572,91.63,BQ0164,TRADE UK ACCOUNT,27/9/2021 00:00:00,31/10/2021 00:00:00,P07-2022
,LV LEISURE CENTRE CAMPSITE,SUPPLIES AND SERVICES,EQUIPMENT & MATERIALS,4111,P114428-SERVICE-maintenance supplies,10/11/2021 00:00,253797,65.48,BQ0164,TRADE UK ACCOUNT,27/9/2021 00:00:00,31/10/2021 00:00:00,P07-2022
,LV LEISURE CENTRE CAMPSITE,SUPPLIES AND SERVICES,EQUIPMENT & MATERIALS,4111,P114756-SERVICE-B&Q Equipment and Materials,27/10/2021 00:00:00,254181,30.64,BQ0164,TRADE UK ACCOUNT,27/9/2021 00:00:00,31/10/2021 00:00:00,P07-2022
,LV LEISURE CENTRE CAMPSITE,SUPPLIES AND SERVICES,EQUIPMENT & MATERIALS,4111,P114711-SERVICE-mattress and mirror for amazon,31/10/2021 00:00:00,254548,91.66,AM0406,AMAZON PAYMENTS UK LIMITED,27/9/2021 00:00:00,31/10/2021 00:00:00,P07-2022
,LV LEISURE CENTRE CAMPSITE,SUPPLIES AND SERVICES,EQUIPMENT & MATERIALS,4111,P114711-SERVICE-mattress and mirror for amazon,31/10/2021 00:00:00,254552,18.71,AM0406,AMAZON PAYMENTS UK LIMITED,27/9/2021 00:00:00,31/10/2021 00:00:00,P07-2022
,LV LEISURE CENTRE GOLF COURSE,SUPPLIES AND SERVICES,EQUIPMENT & MATERIALS,4111,P114316-SERVICE-x2 motor cutters,10/07/2021 00:00,253787,108.22,LE0279,REESINK TURFCARE UK LIMITED,27/9/2021 00:00:00,31/10/2021 00:00:00,P07-2022
,LV LEISURE CENTRE GOLF COURSE,SUPPLIES AND SERVICES,EQUIPMENT & MATERIALS,4111,P113515-SERVICE-mats for woodlands and cocoons,31/10/2021 00:00:00,254563,127.84,AM0406,AMAZON PAYMENTS UK LIMITED,27/9/2021 00:00:00,31/10/2021 00:00:00,P07-2022
,LEE VALLEY ATHLETICS CENTRE,SUPPLIES AND SERVICES,EQUIPMENT & MATERIALS,4111,P114676-SERVICE-LVAC ORDER NO 378961 MEDALS,20/10/2021 00:00:00,254462,508.97,IM0038,RUNNING IMP INTERNATIONAL SPORTS LTD,27/9/2021 00:00:00,31/10/2021 00:00:00,P07-2022
,LEE VALLEY WHITE WATER CENTRE,SUPPLIES AND SERVICES,EQUIPMENT & MATERIALS,4111,P111825-SERVICE-Mats and Equipment blanket order for MR and J,10/04/2021 00:00,253638,-88.32,AM0406,AMAZON PAYMENTS UK LIMITED,27/9/2021 00:00:00,31/10/2021 00:00:00,P07-2022
,LEE VALLEY WHITE WATER CENTRE,SUPPLIES AND SERVICES,EQUIPMENT & MATERIALS,4111,P111825-SERVICE-Mats and Equipment blanket order for MR and J,10/04/2021 00:00,253775,3.62,AM0406,AMAZON PAYMENTS UK LIMITED,27/9/2021 00:00:00,31/10/2021 00:00:00,P07-2022
,LEE VALLEY WHITE WATER CENTRE,SUPPLIES AND SERVICES,EQUIPMENT & MATERIALS,4111,P111825-SERVICE-Mats and Equipment blanket order for MR and J,18/10/2021 00:00:00,254165,16.67,AM0406,AMAZON PAYMENTS UK LIMITED,27/9/2021 00:00:00,31/10/2021 00:00:00,P07-2022
,LEE VALLEY WHITE WATER CENTRE,SUPPLIES AND SERVICES,EQUIPMENT & MATERIALS,4111,P111825-SERVICE-Mats and Equipment blanket order for MR and J,18/10/2021 00:00:00,254166,16.67,AM0406,AMAZON PAYMENTS UK LIMITED,27/9/2021 00:00:00,31/10/2021 00:00:00,P07-2022
,LEE VALLEY WHITE WATER CENTRE,SUPPLIES AND SERVICES,EQUIPMENT & MATERIALS,4111,P111825-SERVICE-Mats and Equipment blanket order for MR and J,18/10/2021 00:00:00,254167,16.67,AM0406,AMAZON PAYMENTS UK LIMITED,27/9/2021 00:00:00,31/10/2021 00:00:00,P07-2022
,LEE VALLEY WHITE WATER CENTRE,SUPPLIES AND SERVICES,EQUIPMENT & MATERIALS,4111,P111825-SERVICE-Mats and Equipment blanket order for MR and J,18/10/2021 00:00:00,254168,16.67,AM0406,AMAZON PAYMENTS UK LIMITED,27/9/2021 00:00:00,31/10/2021 00:00:00,P07-2022
,LEE VALLEY WHITE WATER CENTRE,SUPPLIES AND SERVICES,EQUIPMENT & MATERIALS,4111,P111825-SERVICE-Mats and Equipment blanket order for MR and J,18/10/2021 00:00:00,254169,16.67,AM0406,AMAZON PAYMENTS UK LIMITED,27/9/2021 00:00:00,31/10/2021 00:00:00,P07-2022
,LEE VALLEY WHITE WATER CENTRE,SUPPLIES AND SERVICES,EQUIPMENT & MATERIALS,4111,P111825-SERVICE-Mats and Equipment blanket order for MR and J,18/10/2021 00:00:00,254170,16.67,AM0406,AMAZON PAYMENTS UK LIMITED,27/9/2021 00:00:00,31/10/2021 00:00:00,P07-2022
,LEE VALLEY WHITE WATER CENTRE,SUPPLIES AND SERVICES,EQUIPMENT & MATERIALS,4111,P111825-SERVICE-Mats and Equipment blanket order for MR and J,18/10/2021 00:00:00,254238,3.38,AM0406,AMAZON PAYMENTS UK LIMITED,27/9/2021 00:00:00,31/10/2021 00:00:00,P07-2022
,LEE VALLEY WHITE WATER CENTRE,SUPPLIES AND SERVICES,EQUIPMENT & MATERIALS,4111,P111825-SERVICE-Mats and Equipment blanket order for MR and J,18/10/2021 00:00:00,254239,17.61,AM0406,AMAZON PAYMENTS UK LIMITED,27/9/2021 00:00:00,31/10/2021 00:00:00,P07-2022
,LEE VALLEY WHITE WATER CENTRE,SUPPLIES AND SERVICES,EQUIPMENT & MATERIALS,4111,P111825-SERVICE-Mats and Equipment blanket order for MR and J,18/10/2021 00:00:00,254240,8.22,AM0406,AMAZON PAYMENTS UK LIMITED,27/9/2021 00:00:00,31/10/2021 00:00:00,P07-2022
,LEE VALLEY WHITE WATER CENTRE,SUPPLIES AND SERVICES,EQUIPMENT & MATERIALS,4111,P114560-SERVICE-Blanket Order for mats and Equipment,19/10/2021 00:00:00,254263,3.99,AM0406,AMAZON PAYMENTS UK LIMITED,27/9/2021 00:00:00,31/10/2021 00:00:00,P07-2022
,LEE VALLEY WHITE WATER CENTRE,SUPPLIES AND SERVICES,EQUIPMENT & MATERIALS,4111,P114560-SERVICE-Blanket Order for mats and Equipment,19/10/2021 00:00:00,254387,12.49,AM0406,AMAZON PAYMENTS UK LIMITED,27/9/2021 00:00:00,31/10/2021 00:00:00,P07-2022
,LEE VALLEY WHITE WATER CENTRE,SUPPLIES AND SERVICES,EQUIPMENT & MATERIALS,4111,P114633-SERVICE-De-icing salt,27/10/2021 00:00:00,254439,166.67,AM0406,AMAZON PAYMENTS UK LIMITED,27/9/2021 00:00:00,31/10/2021 00:00:00,P07-2022
,LEE VALLEY WHITE WATER CENTRE,SUPPLIES AND SERVICES,EQUIPMENT & MATERIALS,4111,P114660-SERVICE-Duct Tape,25/10/2021 00:00:00,254536,8.32,AM0406,AMAZON PAYMENTS UK LIMITED,27/9/2021 00:00:00,31/10/2021 00:00:00,P07-2022
,LEE VALLEY WHITE WATER CENTRE,SUPPLIES AND SERVICES,EQUIPMENT & MATERIALS,4111,P114560-SERVICE-Blanket Order for mats and Equipment,31/10/2021 00:00:00,254738,65,AM0406,AMAZON PAYMENTS UK LIMITED,27/9/2021 00:00:00,31/10/2021 00:00:00,P07-2022
,LEE VALLEY WHITE WATER CENTRE,SUPPLIES AND SERVICES,EQUIPMENT & MATERIALS,4111,P114560-SERVICE-Blanket Order for mats and Equipment,31/10/2021 00:00:00,254739,2.41,AM0406,AMAZON PAYMENTS UK LIMITED,27/9/2021 00:00:00,31/10/2021 00:00:00,P07-2022
,LEE VALLEY WHITE WATER CENTRE,SUPPLIES AND SERVICES,EQUIPMENT & MATERIALS,4111,P114834-SERVICE-Gate chain and padlock,31/10/2021 00:00:00,254991,19.37,AM0406,AMAZON PAYMENTS UK LIMITED,27/9/2021 00:00:00,31/10/2021 00:00:00,P07-2022
,LEE VALLEY WHITE WATER CENTRE,SUPPLIES AND SERVICES,EQUIPMENT & MATERIALS,4111,P114560-SERVICE-Blanket Order for mats and Equipment,31/10/2021 00:00:00,255019,22.91,AM0406,AMAZON PAYMENTS UK LIMITED,27/9/2021 00:00:00,31/10/2021 00:00:00,P07-2022
,LEE VALLEY WHITE WATER CENTRE,SUPPLIES AND SERVICES,EQUIPMENT & MATERIALS,4111,P114220-SERVICE-250 x disc golf frisbees with LV frisbees,31/10/2021 00:00:00,255074,1650,CA0359,CATCH THE SPIRIT LIMITED,27/9/2021 00:00:00,31/10/2021 00:00:00,P07-2022
,LEE VALLEY WHITE WATER CENTRE,SUPPLIES AND SERVICES,EQUIPMENT & MATERIALS,4111,P114220-SERVICE-4 x disk golf sets,31/10/2021 00:00:00,255074,84,CA0359,CATCH THE SPIRIT LIMITED,27/9/2021 00:00:00,31/10/2021 00:00:00,P07-2022
,LEE VALLEY WHITE WATER CENTRE,SUPPLIES AND SERVICES,EQUIPMENT & MATERIALS,4111,P114784-SERVICE-Delivery,31/10/2021 00:00:00,255104,20,BR0378,BROADWATER TECHNOLOGIES LTD,27/9/2021 00:00:00,31/10/2021 00:00:00,P07-2022
,LEE VALLEY WHITE WATER CENTRE,SUPPLIES AND SERVICES,EQUIPMENT & MATERIALS,4111,P114784-SERVICE-1of AAC4807 CL2 Probe,31/10/2021 00:00:00,255104,277.05,BR0378,BROADWATER TECHNOLOGIES LTD,27/9/2021 00:00:00,31/10/2021 00:00:00,P07-2022
,LEE VALLEY CARAVAN PARK,SUPPLIES AND SERVICES,EQUIPMENT MAINTENANCE,4112,P114233-SERVICE-refix 12 gas meter posts,31/10/2021 00:00:00,253573,970,SO0400,SOUTHERN GREEN SERVICES LIMITED,27/9/2021 00:00:00,31/10/2021 00:00:00,P07-2022
,LEE VALLEY CARAVAN PARK,SUPPLIES AND SERVICES,EQUIPMENT MAINTENANCE,4112,P114234-SERVICE-Clear blocked drains,31/10/2021 00:00:00,253574,100,SO0400,SOUTHERN GREEN SERVICES LIMITED,27/9/2021 00:00:00,31/10/2021 00:00:00,P07-2022
,LEE VALLEY CARAVAN PARK,SUPPLIES AND SERVICES,EQUIPMENT MAINTENANCE,4112,P114235-SERVICE-Repair leaking soil pipe,31/10/2021 00:00:00,253575,230,SO0400,SOUTHERN GREEN SERVICES LIMITED,27/9/2021 00:00:00,31/10/2021 00:00:00,P07-2022
,LEE VALLEY CARAVAN PARK,SUPPLIES AND SERVICES,EQUIPMENT MAINTENANCE,4112,P114236-SERVICE-Supply and fit new tap in Button,31/10/2021 00:00:00,253576,175,SO0400,SOUTHERN GREEN SERVICES LIMITED,27/9/2021 00:00:00,31/10/2021 00:00:00,P07-2022
,LEE VALLEY CARAVAN PARK,SUPPLIES AND SERVICES,EQUIPMENT MAINTENANCE,4112,P114895-SERVICE-Laundry Machines Maintance,31/10/2021 00:00:00,254097,296.88,AL0434,ALLSOP & FRANCIS,27/9/2021 00:00:00,31/10/2021 00:00:00,P07-2022
,LEE VALLEY CARAVAN PARK,SUPPLIES AND SERVICES,EQUIPMENT MAINTENANCE,4112,P114897-SERVICE-water testing,31/10/2021 00:00:00,254414,339.71,KI0090,KINGFISHER ENVIRONMENTAL SERVICES LTD,27/9/2021 00:00:00,31/10/2021 00:00:00,P07-2022
,LEE VALLEY CARAVAN PARK,SUPPLIES AND SERVICES,EQUIPMENT MAINTENANCE,4112,P114901-SERVICE-Barrier,31/10/2021 00:00:00,254482,325,AU0245,AUTO-MATE SYSTEMS LIMITED,27/9/2021 00:00:00,31/10/2021 00:00:00,P07-2022
,LEE VALLEY CARAVAN PARK,SUPPLIES AND SERVICES,EQUIPMENT MAINTENANCE,4112,P114908-SERVICE-pump out,31/10/2021 00:00:00,254949,340,CO0550,CONVERT WATER LTD,27/9/2021 00:00:00,31/10/2021 00:00:00,P07-2022
,LEE VALLEY CARAVAN PARK,SUPPLIES AND SERVICES,EQUIPMENT MAINTENANCE,4112,P114900-SERVICE-Barrier,31/10/2021 00:00:00,254977,325,AU0245,AUTO-MATE SYSTEMS LIMITED,27/9/2021 00:00:00,31/10/2021 00:00:00,P07-2022
P&V,RIVER LEE COUNTRY PARK,SUPPLIES AND SERVICES,EQUIPMENT MAINTENANCE,4112,P114185-SERVICE-Delivery to address below,10/12/2021 00:00,254093,7.95,TR0039,TRACMASTER LTD,27/9/2021 00:00:00,31/10/2021 00:00:00,P07-2022
P&V,RIVER LEE COUNTRY PARK,SUPPLIES AND SERVICES,EQUIPMENT MAINTENANCE,4112,"P114185-SERVICE-BCS Parts - 1x Cutter bar 53"" Part No. 590.48",10/12/2021 00:00,254093,116.5,TR0039,TRACMASTER LTD,27/9/2021 00:00:00,31/10/2021 00:00:00,P07-2022
P&V,RIVER LEE COUNTRY PARK,SUPPLIES AND SERVICES,EQUIPMENT MAINTENANCE,4112,P114185-SERVICE-BCS Parts - 1x Quick release lever Part No.F,10/12/2021 00:00,254093,5.75,TR0039,TRACMASTER LTD,27/9/2021 00:00:00,31/10/2021 00:00:00,P07-2022
P&V,RIVER LEE COUNTRY PARK,SUPPLIES AND SERVICES,EQUIPMENT MAINTENANCE,4112,P114185-SERVICE-BCS Parts - 1x Quick release lever Part No.,10/12/2021 00:00,254093,9,TR0039,TRACMASTER LTD,27/9/2021 00:00:00,31/10/2021 00:00:00,P07-2022
P&V,RIVER LEE COUNTRY PARK,SUPPLIES AND SERVICES,EQUIPMENT MAINTENANCE,4112,P114185-SERVICE-BCS Parts - 3x Cutter bar bolts Part No. 311.,10/12/2021 00:00,254093,3,TR0039,TRACMASTER LTD,27/9/2021 00:00:00,31/10/2021 00:00:00,P07-2022
,LV LEISURE CENTRE CAMPSITE,SUPPLIES AND SERVICES,EQUIPMENT MAINTENANCE,4112,P114330-SERVICE-electrics,10/06/2021 00:00,253334,4030,BR0018,BRADSHAW ELECTRICAL LIMITED,27/9/2021 00:00:00,31/10/2021 00:00:00,P07-2022
,LV LEISURE CENTRE CAMPSITE,SUPPLIES AND SERVICES,EQUIPMENT MAINTENANCE,4112,P114331-SERVICE-electrics,10/04/2021 00:00,253337,236,BR0018,BRADSHAW ELECTRICAL LIMITED,27/9/2021 00:00:00,31/10/2021 00:00:00,P07-2022
,LV LEISURE CENTRE CAMPSITE,SUPPLIES AND SERVICES,EQUIPMENT MAINTENANCE,4112,P114332-SERVICE-electrics,10/06/2021 00:00,253340,180,BR0018,BRADSHAW ELECTRICAL LIMITED,27/9/2021 00:00:00,31/10/2021 00:00:00,P07-2022
,LV LEISURE CENTRE CAMPSITE,SUPPLIES AND SERVICES,EQUIPMENT MAINTENANCE,4112,P114430-SERVICE-Washing machine door,25/10/2021 00:00:00,254402,404.09,AL0434,ALLSOP & FRANCIS,27/9/2021 00:00:00,31/10/2021 00:00:00,P07-2022
,LV LEISURE CENTRE GOLF COURSE,SUPPLIES AND SERVICES,EQUIPMENT MAINTENANCE,4112,P113720-SERVICE-fittings,10/07/2021 00:00,252557,49.62,DO0027,ERNEST DOE & SONS LTD,27/9/2021 00:00:00,31/10/2021 00:00:00,P07-2022
R&B,INFORMATION TECHNOLOGY,SUPPLIES AND SERVICES,IT CORE SYSTEMS,4113,P114305-SERVICE-Managed Fee 14 Nov - 13 Dec 21,13/10/2021 00:00:00,253491,1246.24,CE0021,ADVANCED BUSINESS SOLUTIONS,27/9/2021 00:00:00,31/10/2021 00:00:00,P07-2022
R&B,INFORMATION TECHNOLOGY,SUPPLIES AND SERVICES,IT CORE SYSTEMS,4113,P114672-SERVICE-Managed Fee 14 Dec - 13 Jan 22,20/10/2021 00:00:00,254201,1246.24,CE0021,ADVANCED BUSINESS SOLUTIONS,27/9/2021 00:00:00,31/10/2021 00:00:00,P07-2022
R&B,INFORMATION TECHNOLOGY,SUPPLIES AND SERVICES,IT CORE SYSTEMS,4113,P114737-SERVICE-Monthly Service fee's 15 Oct - 14 Nov 21,27/10/2021 00:00:00,254494,351,CO0440,VERIFONE SERVICES UK & IRELAND LTD,27/9/2021 00:00:00,31/10/2021 00:00:00,P07-2022
R&B,INFORMATION TECHNOLOGY,SUPPLIES AND SERVICES,IT CORE SYSTEMS,4113,P111362-SERVICE-Hosted Payroll May 21- March 22,31/10/2021 00:00:00,254710,542.51,PA0453,PAYROLL BUSINESS SOLUTIONS LTD,27/9/2021 00:00:00,31/10/2021 00:00:00,P07-2022
R&B,INFORMATION TECHNOLOGY,SUPPLIES AND SERVICES,IT CORE SYSTEMS,4113,"P114771-SERVICE-Canto Subs renewal fee ( 2-year contract, ann",31/10/2021 00:00:00,254956,4749.13,CA0717,CANTO GMBH,27/9/2021 00:00:00,31/10/2021 00:00:00,P07-2022
,LSC INFORMATION TECHNOLOGY,SUPPLIES AND SERVICES,IT CORE SYSTEMS,4113,P113699-SERVICE-Page Band7 Payment - 12 Months - PAY-BA7-RET/,25/10/2021 00:00:00,254495,375,CO0440,VERIFONE SERVICES UK & IRELAND LTD,27/9/2021 00:00:00,31/10/2021 00:00:00,P07-2022
R&B,INFORMATION TECHNOLOGY,SUPPLIES AND SERVICES,IT NETWORK & TELECOMS COSTS,4114,P111480-SERVICE-Monthly SIP Apr 21-Mar 22,10/06/2021 00:00,253804,145.41,FR0131,VOICEFLEX LTD,27/9/2021 00:00:00,31/10/2021 00:00:00,P07-2022
R&B,INFORMATION TECHNOLOGY,SUPPLIES AND SERVICES,IT NETWORK & TELECOMS COSTS,4114,P114524-SERVICE-MPLS for all sites Oct 21,10/11/2021 00:00,253902,11996.86,PP0200,PPSNET LIMITED,27/9/2021 00:00:00,31/10/2021 00:00:00,P07-2022
R&B,INFORMATION TECHNOLOGY,SUPPLIES AND SERVICES,IT NETWORK & TELECOMS COSTS,4114,P111480-SERVICE-Monthly SIP Apr 21-Mar 22,31/10/2021 00:00:00,255057,147.19,FR0131,VOICEFLEX LTD,27/9/2021 00:00:00,31/10/2021 00:00:00,P07-2022
,LEE VALLEY CARAVAN PARK,SUPPLIES AND SERVICES,IT NETWORK & TELECOMS COSTS,4114,MY O2,10/05/2021 00:00,253592,54,O20134,MY O2,27/9/2021 00:00:00,31/10/2021 00:00:00,P07-2022
,LEE VALLEY CARAVAN PARK,SUPPLIES AND SERVICES,IT NETWORK & TELECOMS COSTS,4114,MY O2,31/10/2021 00:00:00,254948,54,O20134,MY O2,27/9/2021 00:00:00,31/10/2021 00:00:00,P07-2022
P&V,FISHERIES MANAGEMENT,SUPPLIES AND SERVICES,EQUIPMENT HIRE,4115,"P113792-SERVICE-12 weeks hire at Stansted Innings, Marsh Lane",25/10/2021 00:00:00,254486,92,TO0092,TOILETS+ LTD,27/9/2021 00:00:00,31/10/2021 00:00:00,P07-2022
,LV LEISURE CENTRE CAMPSITE,SUPPLIES AND SERVICES,EQUIPMENT HIRE,4115,P114333-SERVICE-Utility vehicles,10/11/2021 00:00,254094,450,CA0698,CAMBRIDGE GOLF COMPANY,27/9/2021 00:00:00,31/10/2021 00:00:00,P07-2022
P&V,MYDDELTON HOUSE,SUPPLIES AND SERVICES,IT HARDWARE & SOFTWARE COSTS,4116,ZEN INTERNET LTD,10/05/2021 00:00,253583,29.5,ZE0007,ZEN INTERNET LTD,27/9/2021 00:00:00,31/10/2021 00:00:00,P07-2022
P&V,MYDDELTON HOUSE,SUPPLIES AND SERVICES,IT HARDWARE & SOFTWARE COSTS,4116,ZEN INTERNET LTD,19/10/2021 00:00:00,254182,42,ZE0007,ZEN INTERNET LTD,27/9/2021 00:00:00,31/10/2021 00:00:00,P07-2022
P&V,MYDDELTON HOUSE,SUPPLIES AND SERVICES,IT HARDWARE & SOFTWARE COSTS,4116,ZEN INTERNET LTD,31/10/2021 00:00:00,254942,29.5,ZE0007,ZEN INTERNET LTD,27/9/2021 00:00:00,31/10/2021 00:00:00,P07-2022
R&B,INFORMATION TECHNOLOGY,SUPPLIES AND SERVICES,IT HARDWARE & SOFTWARE COSTS,4116,P114583-SERVICE-Exclaimer signature for 350 users @0.57 per m,19/10/2021 00:00:00,251463,2394,IQ0022,IQUAL,27/9/2021 00:00:00,31/10/2021 00:00:00,P07-2022
R&B,INFORMATION TECHNOLOGY,SUPPLIES AND SERVICES,IT HARDWARE & SOFTWARE COSTS,4116,P114066-SERVICE-Replacement Dell Enterprise HDD for CRM,10/05/2021 00:00,253294,85,IQ0022,IQUAL,27/9/2021 00:00:00,31/10/2021 00:00:00,P07-2022
R&B,INFORMATION TECHNOLOGY,SUPPLIES AND SERVICES,IT HARDWARE & SOFTWARE COSTS,4116,P114066-SERVICE-Carriage,10/05/2021 00:00,253294,10,IQ0022,IQUAL,27/9/2021 00:00:00,31/10/2021 00:00:00,P07-2022
R&B,INFORMATION TECHNOLOGY,SUPPLIES AND SERVICES,IT HARDWARE & SOFTWARE COSTS,4116,P111692-SERVICE-Email filtering & large Files,19/10/2021 00:00:00,254175,738,IQ0022,IQUAL,27/9/2021 00:00:00,31/10/2021 00:00:00,P07-2022
R&B,INFORMATION TECHNOLOGY,SUPPLIES AND SERVICES,IT HARDWARE & SOFTWARE COSTS,4116,P114583-SERVICE-Exclaimer signature for 350 users @0.57 per m,20/10/2021 00:00:00,254226,-2394,IQ0022,IQUAL,27/9/2021 00:00:00,31/10/2021 00:00:00,P07-2022
,LEE VALLEY MARINA SPRINGFIELD,SUPPLIES AND SERVICES,IT HARDWARE & SOFTWARE COSTS,4116,ZEN INTERNET LTD,19/10/2021 00:00:00,254200,38,ZE0007,ZEN INTERNET LTD,27/9/2021 00:00:00,31/10/2021 00:00:00,P07-2022
,LEE VALLEY MARINA STANSTEAD,SUPPLIES AND SERVICES,IT HARDWARE & SOFTWARE COSTS,4116,ZEN INTERNET LTD,19/10/2021 00:00:00,254246,31.32,ZE0007,ZEN INTERNET LTD,27/9/2021 00:00:00,31/10/2021 00:00:00,P07-2022
,LEE VALLEY CARAVAN PARK,SUPPLIES AND SERVICES,IT HARDWARE & SOFTWARE COSTS,4116,P114517-SERVICE-Fibre Connection Oct  21,10/12/2021 00:00,253901,835,PP0200,PPSNET LIMITED,27/9/2021 00:00:00,31/10/2021 00:00:00,P07-2022
,LEE VALLEY RIDING CENTRE,SUPPLIES AND SERVICES,IT HARDWARE & SOFTWARE COSTS,4116,ZEN INTERNET LTD,18/10/2021 00:00:00,254044,31.32,ZE0007,ZEN INTERNET LTD,27/9/2021 00:00:00,31/10/2021 00:00:00,P07-2022
,LEE VALLEY WHITE WATER CENTRE,SUPPLIES AND SERVICES,IT HARDWARE & SOFTWARE COSTS,4116,ZEN INTERNET LTD,25/10/2021 00:00:00,254539,17.83,ZE0007,ZEN INTERNET LTD,27/9/2021 00:00:00,31/10/2021 00:00:00,P07-2022
,LEE VALLEY WHITE WATER CENTRE,SUPPLIES AND SERVICES,IT HARDWARE & SOFTWARE COSTS,4116,ZEN INTERNET LTD,25/10/2021 00:00:00,254540,13.49,ZE0007,ZEN INTERNET LTD,27/9/2021 00:00:00,31/10/2021 00:00:00,P07-2022
,LEE VALLEY ATHLETICS CENTRE,SUPPLIES AND SERVICES,VENDING AGREEMENTS,4117,RIJO 42 INGREDIENTS LIMITED,10/04/2021 00:00,253647,207.6,RI0176,RIJO 42 INGREDIENTS LIMITED,27/9/2021 00:00:00,31/10/2021 00:00:00,P07-2022
,LEE VALLEY ATHLETICS CENTRE,SUPPLIES AND SERVICES,VENDING AGREEMENTS,4117,RIJO 42 INGREDIENTS LIMITED,10/04/2021 00:00,253647,290.64,RI0176,RIJO 42 INGREDIENTS LIMITED,27/9/2021 00:00:00,31/10/2021 00:00:00,P07-2022
,LEE VALLEY ATHLETICS CENTRE,SUPPLIES AND SERVICES,VENDING AGREEMENTS,4117,RIJO 42 INGREDIENTS LIMITED,10/04/2021 00:00,253647,-498.24,RI0176,RIJO 42 INGREDIENTS LIMITED,27/9/2021 00:00:00,31/10/2021 00:00:00,P07-2022
,LEE VALLEY ATHLETICS CENTRE,SUPPLIES AND SERVICES,VENDING AGREEMENTS,4117,P114372-SERVICE-LVAC INV P948822 VENDING STOCK,10/04/2021 00:00,253647,498.24,RI0176,RIJO 42 INGREDIENTS LIMITED,27/9/2021 00:00:00,31/10/2021 00:00:00,P07-2022
,LEE VALLEY ATHLETICS CENTRE,SUPPLIES AND SERVICES,VENDING AGREEMENTS,4117,P114685-SERVICE-LVAC INVOICE P956642,19/10/2021 00:00:00,254213,350.84,RI0176,RIJO 42 INGREDIENTS LIMITED,27/9/2021 00:00:00,31/10/2021 00:00:00,P07-2022
,LEE VALLEY ATHLETICS CENTRE,SUPPLIES AND SERVICES,VENDING AGREEMENTS,4117,RIJO 42 INGREDIENTS LIMITED,19/10/2021 00:00:00,254213,60.2,RI0176,RIJO 42 INGREDIENTS LIMITED,27/9/2021 00:00:00,31/10/2021 00:00:00,P07-2022
,LEE VALLEY ATHLETICS CENTRE,SUPPLIES AND SERVICES,VENDING AGREEMENTS,4117,RIJO 42 INGREDIENTS LIMITED,19/10/2021 00:00:00,254213,-350.84,RI0176,RIJO 42 INGREDIENTS LIMITED,27/9/2021 00:00:00,31/10/2021 00:00:00,P07-2022
,LEE VALLEY ATHLETICS CENTRE,SUPPLIES AND SERVICES,VENDING AGREEMENTS,4117,RIJO 42 INGREDIENTS LIMITED,19/10/2021 00:00:00,254213,290.64,RI0176,RIJO 42 INGREDIENTS LIMITED,27/9/2021 00:00:00,31/10/2021 00:00:00,P07-2022
,LEE VALLEY ATHLETICS CENTRE,SUPPLIES AND SERVICES,VENDING AGREEMENTS,4117,"P114747-SERVICE- 2021/14469, 14735,17983, 20938, 24246, 27498",31/10/2021 00:00:00,254649,21.19,PA0468,PAYTER BV,27/9/2021 00:00:00,31/10/2021 00:00:00,P07-2022
,LEE VALLEY ATHLETICS CENTRE,SUPPLIES AND SERVICES,VENDING AGREEMENTS,4117,"P114747-SERVICE- 2021/14469, 14735,17983, 20938, 24246, 27498",31/10/2021 00:00:00,254650,9.97,PA0468,PAYTER BV,27/9/2021 00:00:00,31/10/2021 00:00:00,P07-2022
,LEE VALLEY ATHLETICS CENTRE,SUPPLIES AND SERVICES,VENDING AGREEMENTS,4117,"P114747-SERVICE- 2021/14469, 14735,17983, 20938, 24246, 27498",31/10/2021 00:00:00,254651,9.97,PA0468,PAYTER BV,27/9/2021 00:00:00,31/10/2021 00:00:00,P07-2022
,LEE VALLEY ATHLETICS CENTRE,SUPPLIES AND SERVICES,VENDING AGREEMENTS,4117,"P114747-SERVICE- 2021/14469, 14735,17983, 20938, 24246, 27498",31/10/2021 00:00:00,254652,9.97,PA0468,PAYTER BV,27/9/2021 00:00:00,31/10/2021 00:00:00,P07-2022
,LEE VALLEY ATHLETICS CENTRE,SUPPLIES AND SERVICES,VENDING AGREEMENTS,4117,"P114747-SERVICE- 2021/14469, 14735,17983, 20938, 24246, 27498",31/10/2021 00:00:00,254653,9.97,PA0468,PAYTER BV,27/9/2021 00:00:00,31/10/2021 00:00:00,P07-2022
R&B,INFORMATION TECHNOLOGY,SUPPLIES AND SERVICES,IT MAINTENANCE AGREEMENTS,4119,P114582-SERVICE-Data backup & Recovery,19/10/2021 00:00:00,251462,4680,IQ0022,IQUAL,27/9/2021 00:00:00,31/10/2021 00:00:00,P07-2022
R&B,INFORMATION TECHNOLOGY,SUPPLIES AND SERVICES,IT MAINTENANCE AGREEMENTS,4119,P114582-SERVICE-Data backup & Recovery,20/10/2021 00:00:00,254225,-4680,IQ0022,IQUAL,27/9/2021 00:00:00,31/10/2021 00:00:00,P07-2022
,LEE VALLEY MARINA SPRINGFIELD,SUPPLIES AND SERVICES,IT MAINTENANCE AGREEMENTS,4119,P114512-SERVICE-Supply & Data Sept 21,10/11/2021 00:00,253832,75.2,CY0653,CYBERTILL,27/9/2021 00:00:00,31/10/2021 00:00:00,P07-2022
,LEE VALLEY MARINA STANSTEAD,SUPPLIES AND SERVICES,IT MAINTENANCE AGREEMENTS,4119,P114512-SERVICE-Supply & Data Sept 21,10/11/2021 00:00,253832,75.19,CY0653,CYBERTILL,27/9/2021 00:00:00,31/10/2021 00:00:00,P07-2022
,LV LEISURE CENTRE GOLF COURSE,SUPPLIES AND SERVICES,IT MAINTENANCE AGREEMENTS,4119,P114649-SERVICE-Digitickets Services Sept 2021,25/10/2021 00:00:00,254062,559.4,DI0304,DIGITAL TICKETING SYSTEMS LTD (DIGITICKETS),27/9/2021 00:00:00,31/10/2021 00:00:00,P07-2022
P&V,SOUTH AREA RANGERS,EXPENDITURE FROM RENEWALS FUND,EXPENDITURE FROM RENEWALS FUND,4121,P112835-SERVICE-3x Isuzu Vehicles,31/10/2021 00:00:00,254500,46878,OL0059,OLIVER LANDPOWER LIMITED,27/9/2021 00:00:00,31/10/2021 00:00:00,P07-2022
P&V,SOUTH AREA RANGERS,EXPENDITURE FROM RENEWALS FUND,EXPENDITURE FROM RENEWALS FUND,4121,GLYN HOPKIN,21/10/2021 00:00:00,254680,21066.67,GY0442,GLYN HOPKIN,27/9/2021 00:00:00,31/10/2021 00:00:00,P07-2022
P&V,SOUTH AREA RANGERS,EXPENDITURE FROM RENEWALS FUND,EXPENDITURE FROM RENEWALS FUND,4121,GLYN HOPKIN,21/10/2021 00:00:00,254680,320,GY0442,GLYN HOPKIN,27/9/2021 00:00:00,31/10/2021 00:00:00,P07-2022
P&V,SOUTH AREA RANGERS,EXPENDITURE FROM RENEWALS FUND,EXPENDITURE FROM RENEWALS FUND,4121,GLYN HOPKIN,21/10/2021 00:00:00,254680,-20386.67,GY0442,GLYN HOPKIN,27/9/2021 00:00:00,31/10/2021 00:00:00,P07-2022
P&V,SOUTH AREA RANGERS,EXPENDITURE FROM RENEWALS FUND,EXPENDITURE FROM RENEWALS FUND,4121,P111093-SERVICE-New Ranger Vehicle - Nissan Navara Double Cab,21/10/2021 00:00:00,254680,20386.67,GY0442,GLYN HOPKIN,27/9/2021 00:00:00,31/10/2021 00:00:00,P07-2022
P&V,SOUTH AREA RANGERS,EXPENDITURE FROM RENEWALS FUND,EXPENDITURE FROM RENEWALS FUND,4121,GLYN HOPKIN,21/10/2021 00:00:00,254680,-1000,GY0442,GLYN HOPKIN,27/9/2021 00:00:00,31/10/2021 00:00:00,P07-2022
P&V,SOUTH AREA RANGERS,EXPENDITURE FROM RENEWALS FUND,EXPENDITURE FROM RENEWALS FUND,4121,P111093-SERVICE-Nissan Navara Double Cab - 13 Pin Tow Bar,21/10/2021 00:00:00,254681,100,GY0442,GLYN HOPKIN,27/9/2021 00:00:00,31/10/2021 00:00:00,P07-2022
P&V,SOUTH AREA RANGERS,EXPENDITURE FROM RENEWALS FUND,EXPENDITURE FROM RENEWALS FUND,4121,P111093-SERVICE-New Ranger Vehicle - Nissan Navara Double Cab,26/10/2021 00:00:00,254754,1000,GY0442,GLYN HOPKIN,27/9/2021 00:00:00,31/10/2021 00:00:00,P07-2022
,LEE VALLEY VELOPARK,EXPENDITURE FROM RENEWALS FUND,EXPENDITURE FROM RENEWALS FUND,4121,P114303-SERVICE-Velo -Rpl faulty Controllers,31/10/2021 00:00:00,254988,37854.1,IN0197,INTEGRATED BUILDING MANAGEMENT SYSTEMS LTD,27/9/2021 00:00:00,31/10/2021 00:00:00,P07-2022
P&V,RIVER LEE COUNTRY PARK,SUPPLIES AND SERVICES,MATERIALS (LOCKS),4124,P113724-SERVICE-6x ASSA Keys - TXM,10/12/2021 00:00,253884,80.3,LO0020,LOCK AND KEY SERVICES,27/9/2021 00:00:00,31/10/2021 00:00:00,P07-2022
P&V,RIVER LEE COUNTRY PARK,SUPPLIES AND SERVICES,MATERIALS (LOCKS),4124,P113724-SERVICE-10x ASSA Barrels,10/12/2021 00:00,253884,392.08,LO0020,LOCK AND KEY SERVICES,27/9/2021 00:00:00,31/10/2021 00:00:00,P07-2022
P&V,RIVER LEE COUNTRY PARK,SUPPLIES AND SERVICES,MATERIALS (LOCKS),4124,P113724-SERVICE-2x Standard ASSA Lock Bodies,10/12/2021 00:00,253884,67.3,LO0020,LOCK AND KEY SERVICES,27/9/2021 00:00:00,31/10/2021 00:00:00,P07-2022
P&V,RIVER LEE COUNTRY PARK,SUPPLIES AND SERVICES,MATERIALS (LOCKS),4124,P113724-SERVICE-8x ASSA Keys,10/12/2021 00:00,253884,93.31,LO0020,LOCK AND KEY SERVICES,27/9/2021 00:00:00,31/10/2021 00:00:00,P07-2022
P&V,RIVER LEE COUNTRY PARK,SUPPLIES AND SERVICES,MATERIALS (LOCKS),4124,P113724-SERVICE-5x Long Shackle ASSA Lock Bodies,10/12/2021 00:00,253884,197.6,LO0020,LOCK AND KEY SERVICES,27/9/2021 00:00:00,31/10/2021 00:00:00,P07-2022
P&V,RIVER LEE COUNTRY PARK,SUPPLIES AND SERVICES,MATERIALS (LOCKS),4124,P113724-SERVICE-Delivery to address below marked for:-,10/12/2021 00:00,253884,10,LO0020,LOCK AND KEY SERVICES,27/9/2021 00:00:00,31/10/2021 00:00:00,P07-2022
,LEE VALLEY CAMPSITE,SUPPLIES AND SERVICES,MATERIALS (GROUNDS MAINT),4125,P114467-SERVICE-Materials,10/11/2021 00:00,252897,108.25,BQ0164,TRADE UK ACCOUNT,27/9/2021 00:00:00,31/10/2021 00:00:00,P07-2022
,LEE VALLEY CAMPSITE,SUPPLIES AND SERVICES,MATERIALS (GROUNDS MAINT),4125,P114408-SERVICE-HH3 & HH44,10/05/2021 00:00,253339,120,BR0018,BRADSHAW ELECTRICAL LIMITED,27/9/2021 00:00:00,31/10/2021 00:00:00,P07-2022
,LEE VALLEY CAMPSITE,SUPPLIES AND SERVICES,MATERIALS (GROUNDS MAINT),4125,P114408-SERVICE-HH3 & HH44,10/05/2021 00:00,253505,180,BR0018,BRADSHAW ELECTRICAL LIMITED,27/9/2021 00:00:00,31/10/2021 00:00:00,P07-2022
,LEE VALLEY CAMPSITE,SUPPLIES AND SERVICES,MATERIALS (GROUNDS MAINT),4125,P114413-SERVICE-Stock,10/05/2021 00:00,253798,60.49,BQ0164,TRADE UK ACCOUNT,27/9/2021 00:00:00,31/10/2021 00:00:00,P07-2022
P&V,NORTH AREA RANGERS,SUPPLIES AND SERVICES,MATERIALS (GROUNDS MAINT),4125,P114371-SERVICE-Memorial Plaque - Donna Anker,25/10/2021 00:00:00,254380,75,JA0162,JAG'S TROPHIES,27/9/2021 00:00:00,31/10/2021 00:00:00,P07-2022
P&V,NORTH AREA RANGERS,SUPPLIES AND SERVICES,MATERIALS (GROUNDS MAINT),4125,P114414-SERVICE-Supply Soap & Toilet Roll Dispensers for Old,27/10/2021 00:00:00,254705,493.5,GL0214,GLENDALE GROUNDS MANAGEMENT LIMITED,27/9/2021 00:00:00,31/10/2021 00:00:00,P07-2022
,LV LEISURE CENTRE GOLF COURSE,SUPPLIES AND SERVICES,MATERIALS (GROUNDS MAINT),4125,P114798-SERVICE-Reesink supplies for edmonton,31/10/2021 00:00:00,254796,895.43,LE0279,REESINK TURFCARE UK LIMITED,27/9/2021 00:00:00,31/10/2021 00:00:00,P07-2022
,LV LEISURE CENTRE GOLF COURSE,SUPPLIES AND SERVICES,MATERIALS (GROUNDS MAINT),4125,P114821-SERVICE-fungiside,31/10/2021 00:00:00,254993,730,MR0420,MR AMENITY LTD,27/9/2021 00:00:00,31/10/2021 00:00:00,P07-2022
,LEE VALLEY MARINA SPRINGFIELD,SUPPLIES AND SERVICES,MATERIALS (TOOLS & PLANT),4127,P114556-SERVICE-Lee san sight glass x 3,18/10/2021 00:00:00,254389,50.93,LE0059,LEE SANITATION LTD,27/9/2021 00:00:00,31/10/2021 00:00:00,P07-2022
,LEE VALLEY MARINA SPRINGFIELD,SUPPLIES AND SERVICES,MATERIALS (TOOLS & PLANT),4127,P114558-SERVICE-To supply items on quotation No 120598,25/10/2021 00:00:00,254713,208.15,EL0281,ELTHAM WELDING SUPPLIES LIMITED,27/9/2021 00:00:00,31/10/2021 00:00:00,P07-2022
,LEE VALLEY MARINA SPRINGFIELD,SUPPLIES AND SERVICES,MATERIALS (TOOLS & PLANT),4127,P113496-SERVICE-Inspection of hydraulics/Rams on boat lift,31/10/2021 00:00:00,254813,150,CO0395,COMPLETELY HYDRAULIC,27/9/2021 00:00:00,31/10/2021 00:00:00,P07-2022
,LEE VALLEY MARINA SPRINGFIELD,SUPPLIES AND SERVICES,MATERIALS (ENG OTHER),4130,P114285-SERVICE-To supply items as reqeusted,10/06/2021 00:00,253642,51.56,BQ0164,TRADE UK ACCOUNT,27/9/2021 00:00:00,31/10/2021 00:00:00,P07-2022
,LEE VALLEY MARINA SPRINGFIELD,SUPPLIES AND SERVICES,MATERIALS (ENG OTHER),4130,P114285-SERVICE-To supply items as reqeusted,18/10/2021 00:00:00,254245,29.16,BQ0164,TRADE UK ACCOUNT,27/9/2021 00:00:00,31/10/2021 00:00:00,P07-2022
,STANSTEAD RECHARGEABLE WORKS,SUPPLIES AND SERVICES,MATERIALS (ENG OTHER),4130,P114221-SERVICE-plasma,10/04/2021 00:00,253495,350,EN0309,PRH ENGINEERING LIMITED,27/9/2021 00:00:00,31/10/2021 00:00:00,P07-2022
,LEE VALLEY WHITE WATER CENTRE,SUPPLIES AND SERVICES,MATERIALS (CHEMICALS),4131,P113615-SERVICE-Chemicals,10/04/2021 00:00,253779,273.43,AL0074,BRENNTAG UK GROUP LIMITED,27/9/2021 00:00:00,31/10/2021 00:00:00,P07-2022
,LEE VALLEY WHITE WATER CENTRE,SUPPLIES AND SERVICES,MATERIALS (CHEMICALS),4131,P113615-SERVICE-Chemicals,10/11/2021 00:00,253923,273.43,AL0074,BRENNTAG UK GROUP LIMITED,27/9/2021 00:00:00,31/10/2021 00:00:00,P07-2022
,LEE VALLEY WHITE WATER CENTRE,SUPPLIES AND SERVICES,MATERIALS (CHEMICALS),4131,P113615-SERVICE-Chemicals,10/11/2021 00:00,253924,176.2,AL0074,BRENNTAG UK GROUP LIMITED,27/9/2021 00:00:00,31/10/2021 00:00:00,P07-2022
,LEE VALLEY WHITE WATER CENTRE,SUPPLIES AND SERVICES,MATERIALS (CHEMICALS),4131,P113615-SERVICE-Chemicals,18/10/2021 00:00:00,254259,398.93,AL0074,BRENNTAG UK GROUP LIMITED,27/9/2021 00:00:00,31/10/2021 00:00:00,P07-2022
,LEE VALLEY WHITE WATER CENTRE,SUPPLIES AND SERVICES,MATERIALS (CHEMICALS),4131,P113615-SERVICE-Chemicals,27/10/2021 00:00:00,254716,398.93,AL0074,BRENNTAG UK GROUP LIMITED,27/9/2021 00:00:00,31/10/2021 00:00:00,P07-2022
,LEE VALLEY WHITE WATER CENTRE,SUPPLIES AND SERVICES,MATERIALS (CHEMICALS),4131,P113615-SERVICE-Chemicals,27/10/2021 00:00:00,254717,176.2,AL0074,BRENNTAG UK GROUP LIMITED,27/9/2021 00:00:00,31/10/2021 00:00:00,P07-2022
,LEE VALLEY WHITE WATER CENTRE,SUPPLIES AND SERVICES,MATERIALS (CHEMICALS),4131,P113615-SERVICE-Chemicals,31/10/2021 00:00:00,254810,-70,AL0074,BRENNTAG UK GROUP LIMITED,27/9/2021 00:00:00,31/10/2021 00:00:00,P07-2022
,LEE VALLEY WHITE WATER CENTRE,SUPPLIES AND SERVICES,MATERIALS (CHEMICALS),4131,P113615-SERVICE-Chemicals,31/10/2021 00:00:00,254978,398.93,AL0074,BRENNTAG UK GROUP LIMITED,27/9/2021 00:00:00,31/10/2021 00:00:00,P07-2022
,LEE VALLEY WHITE WATER CENTRE,SUPPLIES AND SERVICES,MATERIALS (CHEMICALS),4131,P113615-SERVICE-Chemicals,31/10/2021 00:00:00,254979,663.08,AL0074,BRENNTAG UK GROUP LIMITED,27/9/2021 00:00:00,31/10/2021 00:00:00,P07-2022
,LEE VALLEY WHITE WATER CENTRE,SUPPLIES AND SERVICES,MATERIALS (MEDICAL),4132,P114458-SERVICE-Sterile Gloves,10/11/2021 00:00,254070,14.55,AM0406,AMAZON PAYMENTS UK LIMITED,27/9/2021 00:00:00,31/10/2021 00:00:00,P07-2022
P&V,LEE VALLEY FARM HOLYFIELDHALL,SUPPLIES AND SERVICES,FEED,4133,P114405-SERVICE-Golden Flake,10/04/2021 00:00,253621,1510.8,BO0246,FOR FARMERS UK LTD,27/9/2021 00:00:00,31/10/2021 00:00:00,P07-2022
P&V,LEE VALLEY FARM HOLYFIELDHALL,SUPPLIES AND SERVICES,FEED,4133,P114406-SERVICE-Maxcare Dairy,10/04/2021 00:00,253781,634.8,BO0246,FOR FARMERS UK LTD,27/9/2021 00:00:00,31/10/2021 00:00:00,P07-2022
P&V,LEE VALLEY FARM HOLYFIELDHALL,SUPPLIES AND SERVICES,FEED,4133,P114573-SERVICE-Translac/Optima,10/12/2021 00:00,253849,4047.8,BO0246,FOR FARMERS UK LTD,27/9/2021 00:00:00,31/10/2021 00:00:00,P07-2022
P&V,LEE VALLEY FARM HOLYFIELDHALL,SUPPLIES AND SERVICES,FEED,4133,P114576-SERVICE-Dairy Meal,10/12/2021 00:00,254198,5004,HE0449,HEYGATES COUNTRY FEEDS LTD,27/9/2021 00:00:00,31/10/2021 00:00:00,P07-2022
P&V,LEE VALLEY FARM HOLYFIELDHALL,SUPPLIES AND SERVICES,FEED,4133,P114817-SERVICE-Super Beef,27/10/2021 00:00:00,254769,3087.3,HE0449,HEYGATES COUNTRY FEEDS LTD,27/9/2021 00:00:00,31/10/2021 00:00:00,P07-2022
P&V,LEE VALLEY FARM HOLYFIELDHALL,SUPPLIES AND SERVICES,FEED,4133,P114934-SERVICE-Selco Plus,31/10/2021 00:00:00,254943,3390.87,BO0246,FOR FARMERS UK LTD,27/9/2021 00:00:00,31/10/2021 00:00:00,P07-2022
P&V,LEE VALLEY FARM HOLYFIELDHALL,SUPPLIES AND SERVICES,FEED,4133,P114940-SERVICE-Optima 18,31/10/2021 00:00:00,255107,3492.56,BO0246,FOR FARMERS UK LTD,27/9/2021 00:00:00,31/10/2021 00:00:00,P07-2022
,LEE VALLEY RIDING CENTRE,SUPPLIES AND SERVICES,FEED,4133,P113364-SERVICE-feed,18/10/2021 00:00:00,254206,1409.7,DO0029,M C DOWLING & SONS,27/9/2021 00:00:00,31/10/2021 00:00:00,P07-2022
,LEE VALLEY RIDING CENTRE,SUPPLIES AND SERVICES,FEED,4133,P113364-SERVICE-feed,19/10/2021 00:00:00,254447,909.95,DO0029,M C DOWLING & SONS,27/9/2021 00:00:00,31/10/2021 00:00:00,P07-2022
,LEE VALLEY RIDING CENTRE,SUPPLIES AND SERVICES,FEED,4133,P113364-SERVICE-feed,26/10/2021 00:00:00,254475,1457.8,DO0029,M C DOWLING & SONS,27/9/2021 00:00:00,31/10/2021 00:00:00,P07-2022
,LEE VALLEY RIDING CENTRE,SUPPLIES AND SERVICES,FEED,4133,P113364-SERVICE-feed,31/10/2021 00:00:00,254944,1222.55,DO0029,M C DOWLING & SONS,27/9/2021 00:00:00,31/10/2021 00:00:00,P07-2022
,LEE VALLEY RIDING CENTRE,SUPPLIES AND SERVICES,BEDDING,4134,P113364-SERVICE-bedding,10/12/2021 00:00,253808,245.18,DO0029,M C DOWLING & SONS,27/9/2021 00:00:00,31/10/2021 00:00:00,P07-2022
,LEE VALLEY RIDING CENTRE,SUPPLIES AND SERVICES,BEDDING,4134,P113364-SERVICE-bedding,10/12/2021 00:00,253808,1153.42,DO0029,M C DOWLING & SONS,27/9/2021 00:00:00,31/10/2021 00:00:00,P07-2022
,LEE VALLEY RIDING CENTRE,SUPPLIES AND SERVICES,BEDDING,4134,P113364-SERVICE-bedding,10/07/2021 00:00,253809,137.5,DO0029,M C DOWLING & SONS,27/9/2021 00:00:00,31/10/2021 00:00:00,P07-2022
,LEE VALLEY RIDING CENTRE,SUPPLIES AND SERVICES,BEDDING,4134,P113364-SERVICE-bedding,19/10/2021 00:00:00,254447,1260,DO0029,M C DOWLING & SONS,27/9/2021 00:00:00,31/10/2021 00:00:00,P07-2022
,LEE VALLEY RIDING CENTRE,SUPPLIES AND SERVICES,BEDDING,4134,P113364-SERVICE-bedding,31/10/2021 00:00:00,254944,346.25,DO0029,M C DOWLING & SONS,27/9/2021 00:00:00,31/10/2021 00:00:00,P07-2022
P&V,LEE VALLEY FARM HOLYFIELDHALL,SUPPLIES AND SERVICES,SEEDS,4135,P114575-SERVICE-Winter Wheat,10/12/2021 00:00,254130,3896,HA0013,HARLOW AGRICULTURAL MERCHANTS,27/9/2021 00:00:00,31/10/2021 00:00:00,P07-2022
P&V,LEE VALLEY FARM HOLYFIELDHALL,SUPPLIES AND SERVICES,SPRAYS,4136,P114883-SERVICE-Sprays,31/10/2021 00:00:00,254811,144.8,HA0013,HARLOW AGRICULTURAL MERCHANTS,27/9/2021 00:00:00,31/10/2021 00:00:00,P07-2022
P&V,LEE VALLEY FARM HOLYFIELDHALL,SUPPLIES AND SERVICES,SPRAYS,4136,P114884-SERVICE-Sprays,31/10/2021 00:00:00,254812,2479.25,HA0013,HARLOW AGRICULTURAL MERCHANTS,27/9/2021 00:00:00,31/10/2021 00:00:00,P07-2022
P&V,LEE VALLEY FARM HOLYFIELDHALL,SUPPLIES AND SERVICES,DAIRY SUNDRIES,4138,P113857-SERVICE-Dead Animal Removal,10/04/2021 00:00,252823,225,MA0074,W MARTIN & SON LIMITED,27/9/2021 00:00:00,31/10/2021 00:00:00,P07-2022
P&V,LEE VALLEY FARM HOLYFIELDHALL,SUPPLIES AND SERVICES,DAIRY SUNDRIES,4138,P112366-SERVICE-Liquid Nitrogen,10/04/2021 00:00,253604,54,GE0005,GENUS BREEDING LTD,27/9/2021 00:00:00,31/10/2021 00:00:00,P07-2022
P&V,LEE VALLEY FARM HOLYFIELDHALL,SUPPLIES AND SERVICES,DAIRY SUNDRIES,4138,P113857-SERVICE-Dead Animal Removal,10/04/2021 00:00,253803,90,MA0074,W MARTIN & SON LIMITED,27/9/2021 00:00:00,31/10/2021 00:00:00,P07-2022
P&V,LEE VALLEY FARM HOLYFIELDHALL,SUPPLIES AND SERVICES,DAIRY SUNDRIES,4138,P114432-SERVICE-Dairy Sundries,10/04/2021 00:00,253811,70.64,FA0099,FARM & COUNTRY SUPPLIES LTD,27/9/2021 00:00:00,31/10/2021 00:00:00,P07-2022
P&V,LEE VALLEY FARM HOLYFIELDHALL,SUPPLIES AND SERVICES,DAIRY SUNDRIES,4138,P114776-SERVICE-Formalin,26/10/2021 00:00:00,254150,925,MI0023,MILL DAIRY SERVICES,27/9/2021 00:00:00,31/10/2021 00:00:00,P07-2022
P&V,LEE VALLEY FARM HOLYFIELDHALL,SUPPLIES AND SERVICES,DAIRY SUNDRIES,4138,P114294-SERVICE-Dairy Sundries,25/10/2021 00:00:00,254151,75.06,MI0023,MILL DAIRY SERVICES,27/9/2021 00:00:00,31/10/2021 00:00:00,P07-2022
P&V,LEE VALLEY FARM HOLYFIELDHALL,SUPPLIES AND SERVICES,DAIRY SUNDRIES,4138,P113857-SERVICE-Dead Animal Removal,27/10/2021 00:00:00,254711,140,MA0074,W MARTIN & SON LIMITED,27/9/2021 00:00:00,31/10/2021 00:00:00,P07-2022
P&V,LEE VALLEY FARM HOLYFIELDHALL,SUPPLIES AND SERVICES,DAIRY SUNDRIES,4138,P114806-SERVICE-Haulage to Thame Cattle Market,27/10/2021 00:00:00,254776,550,RF0315,R F STAVELEY LTD,27/9/2021 00:00:00,31/10/2021 00:00:00,P07-2022
P&V,LEE VALLEY FARM HOLYFIELDHALL,SUPPLIES AND SERVICES,DAIRY SUNDRIES,4138,P114936-SERVICE-Pearson Liners/Gloves/Straight Reducer/Teat C,31/10/2021 00:00:00,255046,837.79,MI0023,MILL DAIRY SERVICES,27/9/2021 00:00:00,31/10/2021 00:00:00,P07-2022
P&V,LEE VALLEY FARM HOLYFIELDHALL,SUPPLIES AND SERVICES,DAIRY SUNDRIES,4138,P114294-SERVICE-Dairy Sundries,31/10/2021 00:00:00,255047,75.06,MI0023,MILL DAIRY SERVICES,27/9/2021 00:00:00,31/10/2021 00:00:00,P07-2022
P&V,LEE VALLEY FARM HOLYFIELDHALL,SUPPLIES AND SERVICES,DAIRY SUNDRIES,4138,P114937-SERVICE-Fabdec Agitator,31/10/2021 00:00:00,255048,918.35,MI0023,MILL DAIRY SERVICES,27/9/2021 00:00:00,31/10/2021 00:00:00,P07-2022
,LV HOCKEY AND TENNIS CENTRE,SUPPLIES AND SERVICES,FOOD AND DRINK PURCHASES,4140,TASTEBUDS VENDING LI MITED,27/10/2021 00:00:00,253632,-366,TA0272,TASTEBUDS VENDING LI MITED,27/9/2021 00:00:00,31/10/2021 00:00:00,P07-2022
,LV HOCKEY AND TENNIS CENTRE,SUPPLIES AND SERVICES,FOOD AND DRINK PURCHASES,4140,TASTEBUDS VENDING LI MITED,27/10/2021 00:00:00,253632,15,TA0272,TASTEBUDS VENDING LI MITED,27/9/2021 00:00:00,31/10/2021 00:00:00,P07-2022
,LV HOCKEY AND TENNIS CENTRE,SUPPLIES AND SERVICES,FOOD AND DRINK PURCHASES,4140,P114793-SERVICE-service management charge sept - dec,27/10/2021 00:00:00,253632,366,TA0272,TASTEBUDS VENDING LI MITED,27/9/2021 00:00:00,31/10/2021 00:00:00,P07-2022
,LV HOCKEY AND TENNIS CENTRE,SUPPLIES AND SERVICES,FOOD AND DRINK PURCHASES,4140,TASTEBUDS VENDING LI MITED,27/10/2021 00:00:00,253632,351,TA0272,TASTEBUDS VENDING LI MITED,27/9/2021 00:00:00,31/10/2021 00:00:00,P07-2022
,LEE VALLEY VELOPARK CATERING,SUPPLIES AND SERVICES,FOOD AND DRINK PURCHASES,4140,P114174-SERVICE-Food and Drink Order,29/9/2021 00:00:00,252899,-15.02,360001,BIDFOOD,27/9/2021 00:00:00,31/10/2021 00:00:00,P07-2022
,LEE VALLEY VELOPARK CATERING,SUPPLIES AND SERVICES,FOOD AND DRINK PURCHASES,4140,BIDFOOD,30/9/2021 00:00:00,252950,-195.73,360001,BIDFOOD,27/9/2021 00:00:00,31/10/2021 00:00:00,P07-2022
,LEE VALLEY VELOPARK CATERING,SUPPLIES AND SERVICES,FOOD AND DRINK PURCHASES,4140,BIDFOOD,30/9/2021 00:00:00,252950,32.76,360001,BIDFOOD,27/9/2021 00:00:00,31/10/2021 00:00:00,P07-2022
,LEE VALLEY VELOPARK CATERING,SUPPLIES AND SERVICES,FOOD AND DRINK PURCHASES,4140,BIDFOOD,30/9/2021 00:00:00,252950,162.97,360001,BIDFOOD,27/9/2021 00:00:00,31/10/2021 00:00:00,P07-2022
,LEE VALLEY VELOPARK CATERING,SUPPLIES AND SERVICES,FOOD AND DRINK PURCHASES,4140,P114252-SERVICE-Food and Drinks Order,30/9/2021 00:00:00,252950,195.73,360001,BIDFOOD,27/9/2021 00:00:00,31/10/2021 00:00:00,P07-2022
,LEE VALLEY VELOPARK CATERING,SUPPLIES AND SERVICES,FOOD AND DRINK PURCHASES,4140,P114251-SERVICE-Food and Drink,30/9/2021 00:00:00,253119,724.16,360001,BIDFOOD,27/9/2021 00:00:00,31/10/2021 00:00:00,P07-2022
,LEE VALLEY VELOPARK CATERING,SUPPLIES AND SERVICES,FOOD AND DRINK PURCHASES,4140,BIDFOOD,30/9/2021 00:00:00,253119,-724.16,360001,BIDFOOD,27/9/2021 00:00:00,31/10/2021 00:00:00,P07-2022
,LEE VALLEY VELOPARK CATERING,SUPPLIES AND SERVICES,FOOD AND DRINK PURCHASES,4140,BIDFOOD,30/9/2021 00:00:00,253119,291.92,360001,BIDFOOD,27/9/2021 00:00:00,31/10/2021 00:00:00,P07-2022
,LEE VALLEY VELOPARK CATERING,SUPPLIES AND SERVICES,FOOD AND DRINK PURCHASES,4140,BIDFOOD,30/9/2021 00:00:00,253119,432.24,360001,BIDFOOD,27/9/2021 00:00:00,31/10/2021 00:00:00,P07-2022
,LEE VALLEY VELOPARK CATERING,SUPPLIES AND SERVICES,FOOD AND DRINK PURCHASES,4140,UNNU LTD,30/9/2021 00:00:00,253132,-358.12,UN0081,UNNU LTD,27/9/2021 00:00:00,31/10/2021 00:00:00,P07-2022
,LEE VALLEY VELOPARK CATERING,SUPPLIES AND SERVICES,FOOD AND DRINK PURCHASES,4140,UNNU LTD,30/9/2021 00:00:00,253132,106.12,UN0081,UNNU LTD,27/9/2021 00:00:00,31/10/2021 00:00:00,P07-2022
,LEE VALLEY VELOPARK CATERING,SUPPLIES AND SERVICES,FOOD AND DRINK PURCHASES,4140,UNNU LTD,30/9/2021 00:00:00,253132,252,UN0081,UNNU LTD,27/9/2021 00:00:00,31/10/2021 00:00:00,P07-2022
,LEE VALLEY VELOPARK CATERING,SUPPLIES AND SERVICES,FOOD AND DRINK PURCHASES,4140,P114255-SERVICE-Food and Drinks Order,30/9/2021 00:00:00,253132,358.12,UN0081,UNNU LTD,27/9/2021 00:00:00,31/10/2021 00:00:00,P07-2022
,LEE VALLEY VELOPARK CATERING,SUPPLIES AND SERVICES,FOOD AND DRINK PURCHASES,4140,P114257-SERVICE-Food and Drinks Order,30/9/2021 00:00:00,253166,49.41,SI0589,SIMPLY LUNCH LTD,27/9/2021 00:00:00,31/10/2021 00:00:00,P07-2022
,LEE VALLEY VELOPARK CATERING,SUPPLIES AND SERVICES,FOOD AND DRINK PURCHASES,4140,P114252-SERVICE-Food and Drinks Order,30/9/2021 00:00:00,253182,-32.76,360001,BIDFOOD,27/9/2021 00:00:00,31/10/2021 00:00:00,P07-2022
,LEE VALLEY VELOPARK CATERING,SUPPLIES AND SERVICES,FOOD AND DRINK PURCHASES,4140,BIDFOOD,30/9/2021 00:00:00,253183,344.3,360001,BIDFOOD,27/9/2021 00:00:00,31/10/2021 00:00:00,P07-2022
,LEE VALLEY VELOPARK CATERING,SUPPLIES AND SERVICES,FOOD AND DRINK PURCHASES,4140,P114260-SERVICE-Food and Drinks Order,30/9/2021 00:00:00,253183,495.52,360001,BIDFOOD,27/9/2021 00:00:00,31/10/2021 00:00:00,P07-2022
,LEE VALLEY VELOPARK CATERING,SUPPLIES AND SERVICES,FOOD AND DRINK PURCHASES,4140,BIDFOOD,30/9/2021 00:00:00,253183,151.22,360001,BIDFOOD,27/9/2021 00:00:00,31/10/2021 00:00:00,P07-2022
,LEE VALLEY VELOPARK CATERING,SUPPLIES AND SERVICES,FOOD AND DRINK PURCHASES,4140,BIDFOOD,30/9/2021 00:00:00,253183,-495.52,360001,BIDFOOD,27/9/2021 00:00:00,31/10/2021 00:00:00,P07-2022
,LEE VALLEY VELOPARK CATERING,SUPPLIES AND SERVICES,FOOD AND DRINK PURCHASES,4140,ROMBOUTS COFFEE GB LIMITED,30/9/2021 00:00:00,253224,160.16,RO0216,ROMBOUTS COFFEE GB LIMITED,27/9/2021 00:00:00,31/10/2021 00:00:00,P07-2022
,LEE VALLEY VELOPARK CATERING,SUPPLIES AND SERVICES,FOOD AND DRINK PURCHASES,4140,ROMBOUTS COFFEE GB LIMITED,30/9/2021 00:00:00,253224,-320.16,RO0216,ROMBOUTS COFFEE GB LIMITED,27/9/2021 00:00:00,31/10/2021 00:00:00,P07-2022
,LEE VALLEY VELOPARK CATERING,SUPPLIES AND SERVICES,FOOD AND DRINK PURCHASES,4140,P114262-SERVICE-Coffee Products,30/9/2021 00:00:00,253224,320.16,RO0216,ROMBOUTS COFFEE GB LIMITED,27/9/2021 00:00:00,31/10/2021 00:00:00,P07-2022
,LEE VALLEY VELOPARK CATERING,SUPPLIES AND SERVICES,FOOD AND DRINK PURCHASES,4140,ROMBOUTS COFFEE GB LIMITED,30/9/2021 00:00:00,253224,160,RO0216,ROMBOUTS COFFEE GB LIMITED,27/9/2021 00:00:00,31/10/2021 00:00:00,P07-2022
,LEE VALLEY VELOPARK CATERING,SUPPLIES AND SERVICES,FOOD AND DRINK PURCHASES,4140,P114263-SERVICE-Food and Drinks Order,30/9/2021 00:00:00,253241,478.26,SI0589,SIMPLY LUNCH LTD,27/9/2021 00:00:00,31/10/2021 00:00:00,P07-2022
,LEE VALLEY VELOPARK CATERING,SUPPLIES AND SERVICES,FOOD AND DRINK PURCHASES,4140,BIDFOOD,30/9/2021 00:00:00,253320,715.67,360001,BIDFOOD,27/9/2021 00:00:00,31/10/2021 00:00:00,P07-2022
,LEE VALLEY VELOPARK CATERING,SUPPLIES AND SERVICES,FOOD AND DRINK PURCHASES,4140,BIDFOOD,30/9/2021 00:00:00,253320,374.87,360001,BIDFOOD,27/9/2021 00:00:00,31/10/2021 00:00:00,P07-2022
,LEE VALLEY VELOPARK CATERING,SUPPLIES AND SERVICES,FOOD AND DRINK PURCHASES,4140,BIDFOOD,30/9/2021 00:00:00,253320,-1090.54,360001,BIDFOOD,27/9/2021 00:00:00,31/10/2021 00:00:00,P07-2022
,LEE VALLEY VELOPARK CATERING,SUPPLIES AND SERVICES,FOOD AND DRINK PURCHASES,4140,P114264-SERVICE-Food and Drinks Order,30/9/2021 00:00:00,253320,1090.54,360001,BIDFOOD,27/9/2021 00:00:00,31/10/2021 00:00:00,P07-2022
,LEE VALLEY VELOPARK CATERING,SUPPLIES AND SERVICES,FOOD AND DRINK PURCHASES,4140,P114370-SERVICE-Food and Drinks Order,10/11/2021 00:00,253533,215.94,360001,BIDFOOD,27/9/2021 00:00:00,31/10/2021 00:00:00,P07-2022
,LEE VALLEY VELOPARK CATERING,SUPPLIES AND SERVICES,FOOD AND DRINK PURCHASES,4140,BIDFOOD,10/11/2021 00:00,253533,-215.94,360001,BIDFOOD,27/9/2021 00:00:00,31/10/2021 00:00:00,P07-2022
,LEE VALLEY VELOPARK CATERING,SUPPLIES AND SERVICES,FOOD AND DRINK PURCHASES,4140,BIDFOOD,10/11/2021 00:00,253533,178.2,360001,BIDFOOD,27/9/2021 00:00:00,31/10/2021 00:00:00,P07-2022
,LEE VALLEY VELOPARK CATERING,SUPPLIES AND SERVICES,FOOD AND DRINK PURCHASES,4140,BIDFOOD,10/11/2021 00:00,253533,37.74,360001,BIDFOOD,27/9/2021 00:00:00,31/10/2021 00:00:00,P07-2022
,LEE VALLEY VELOPARK CATERING,SUPPLIES AND SERVICES,FOOD AND DRINK PURCHASES,4140,P114377-SERVICE-Food and Drinks Order,10/11/2021 00:00,253568,111.19,SI0589,SIMPLY LUNCH LTD,27/9/2021 00:00:00,31/10/2021 00:00:00,P07-2022
,LEE VALLEY VELOPARK CATERING,SUPPLIES AND SERVICES,FOOD AND DRINK PURCHASES,4140,P114378-SERVICE-Food and Drinks Order,10/11/2021 00:00,253593,175.86,360001,BIDFOOD,27/9/2021 00:00:00,31/10/2021 00:00:00,P07-2022
,LEE VALLEY VELOPARK CATERING,SUPPLIES AND SERVICES,FOOD AND DRINK PURCHASES,4140,BIDFOOD,10/11/2021 00:00,253593,138.12,360001,BIDFOOD,27/9/2021 00:00:00,31/10/2021 00:00:00,P07-2022
,LEE VALLEY VELOPARK CATERING,SUPPLIES AND SERVICES,FOOD AND DRINK PURCHASES,4140,BIDFOOD,10/11/2021 00:00,253593,-175.86,360001,BIDFOOD,27/9/2021 00:00:00,31/10/2021 00:00:00,P07-2022
,LEE VALLEY VELOPARK CATERING,SUPPLIES AND SERVICES,FOOD AND DRINK PURCHASES,4140,BIDFOOD,10/11/2021 00:00,253593,37.74,360001,BIDFOOD,27/9/2021 00:00:00,31/10/2021 00:00:00,P07-2022
,LEE VALLEY VELOPARK CATERING,SUPPLIES AND SERVICES,FOOD AND DRINK PURCHASES,4140,BIDFOOD,10/11/2021 00:00,253614,-37.74,360001,BIDFOOD,27/9/2021 00:00:00,31/10/2021 00:00:00,P07-2022
,LEE VALLEY VELOPARK CATERING,SUPPLIES AND SERVICES,FOOD AND DRINK PURCHASES,4140,BIDFOOD,10/11/2021 00:00,253614,215.94,360001,BIDFOOD,27/9/2021 00:00:00,31/10/2021 00:00:00,P07-2022
,LEE VALLEY VELOPARK CATERING,SUPPLIES AND SERVICES,FOOD AND DRINK PURCHASES,4140,P114370-SERVICE-Food and Drinks Order,10/11/2021 00:00,253614,-215.94,360001,BIDFOOD,27/9/2021 00:00:00,31/10/2021 00:00:00,P07-2022
,LEE VALLEY VELOPARK CATERING,SUPPLIES AND SERVICES,FOOD AND DRINK PURCHASES,4140,BIDFOOD,10/11/2021 00:00,253614,-178.2,360001,BIDFOOD,27/9/2021 00:00:00,31/10/2021 00:00:00,P07-2022
,LEE VALLEY VELOPARK CATERING,SUPPLIES AND SERVICES,FOOD AND DRINK PURCHASES,4140,BIDFOOD,10/11/2021 00:00,253785,121.64,360001,BIDFOOD,27/9/2021 00:00:00,31/10/2021 00:00:00,P07-2022
,LEE VALLEY VELOPARK CATERING,SUPPLIES AND SERVICES,FOOD AND DRINK PURCHASES,4140,BIDFOOD,10/11/2021 00:00,253785,-167.02,360001,BIDFOOD,27/9/2021 00:00:00,31/10/2021 00:00:00,P07-2022
,LEE VALLEY VELOPARK CATERING,SUPPLIES AND SERVICES,FOOD AND DRINK PURCHASES,4140,BIDFOOD,10/11/2021 00:00,253785,45.38,360001,BIDFOOD,27/9/2021 00:00:00,31/10/2021 00:00:00,P07-2022
,LEE VALLEY VELOPARK CATERING,SUPPLIES AND SERVICES,FOOD AND DRINK PURCHASES,4140,P114500-SERVICE-Food and Drinks Order,10/11/2021 00:00,253785,167.02,360001,BIDFOOD,27/9/2021 00:00:00,31/10/2021 00:00:00,P07-2022
,LEE VALLEY VELOPARK CATERING,SUPPLIES AND SERVICES,FOOD AND DRINK PURCHASES,4140,BIDFOOD,18/10/2021 00:00:00,253825,192.06,360001,BIDFOOD,27/9/2021 00:00:00,31/10/2021 00:00:00,P07-2022
,LEE VALLEY VELOPARK CATERING,SUPPLIES AND SERVICES,FOOD AND DRINK PURCHASES,4140,BIDFOOD,18/10/2021 00:00:00,253825,377.07,360001,BIDFOOD,27/9/2021 00:00:00,31/10/2021 00:00:00,P07-2022
,LEE VALLEY VELOPARK CATERING,SUPPLIES AND SERVICES,FOOD AND DRINK PURCHASES,4140,P114519-SERVICE-Food and Drinks Order,18/10/2021 00:00:00,253825,569.13,360001,BIDFOOD,27/9/2021 00:00:00,31/10/2021 00:00:00,P07-2022
,LEE VALLEY VELOPARK CATERING,SUPPLIES AND SERVICES,FOOD AND DRINK PURCHASES,4140,BIDFOOD,18/10/2021 00:00:00,253825,-569.13,360001,BIDFOOD,27/9/2021 00:00:00,31/10/2021 00:00:00,P07-2022
,LEE VALLEY VELOPARK CATERING,SUPPLIES AND SERVICES,FOOD AND DRINK PURCHASES,4140,P114520-SERVICE-Food and Drinks Order,18/10/2021 00:00:00,253833,56.09,SI0589,SIMPLY LUNCH LTD,27/9/2021 00:00:00,31/10/2021 00:00:00,P07-2022
,LEE VALLEY VELOPARK CATERING,SUPPLIES AND SERVICES,FOOD AND DRINK PURCHASES,4140,BIDFOOD,18/10/2021 00:00:00,254039,-162.78,360001,BIDFOOD,27/9/2021 00:00:00,31/10/2021 00:00:00,P07-2022
,LEE VALLEY VELOPARK CATERING,SUPPLIES AND SERVICES,FOOD AND DRINK PURCHASES,4140,BIDFOOD,18/10/2021 00:00:00,254039,130.6,360001,BIDFOOD,27/9/2021 00:00:00,31/10/2021 00:00:00,P07-2022
,LEE VALLEY VELOPARK CATERING,SUPPLIES AND SERVICES,FOOD AND DRINK PURCHASES,4140,BIDFOOD,18/10/2021 00:00:00,254039,32.18,360001,BIDFOOD,27/9/2021 00:00:00,31/10/2021 00:00:00,P07-2022
,LEE VALLEY VELOPARK CATERING,SUPPLIES AND SERVICES,FOOD AND DRINK PURCHASES,4140,P114526-SERVICE-Food and Drinks Order,18/10/2021 00:00:00,254039,162.78,360001,BIDFOOD,27/9/2021 00:00:00,31/10/2021 00:00:00,P07-2022
,LEE VALLEY VELOPARK CATERING,SUPPLIES AND SERVICES,FOOD AND DRINK PURCHASES,4140,P114540-SERVICE-Food Order,31/10/2021 00:00:00,254138,187.27,SO0412,THE SOHO SANDWICH COMPANY,27/9/2021 00:00:00,31/10/2021 00:00:00,P07-2022
,LEE VALLEY VELOPARK CATERING,SUPPLIES AND SERVICES,FOOD AND DRINK PURCHASES,4140,P114638-SERVICE-Food Order,25/10/2021 00:00:00,254161,358.23,SI0589,SIMPLY LUNCH LTD,27/9/2021 00:00:00,31/10/2021 00:00:00,P07-2022
,LEE VALLEY VELOPARK CATERING,SUPPLIES AND SERVICES,FOOD AND DRINK PURCHASES,4140,ROMBOUTS COFFEE GB LIMITED,18/10/2021 00:00:00,254174,159.18,RO0216,ROMBOUTS COFFEE GB LIMITED,27/9/2021 00:00:00,31/10/2021 00:00:00,P07-2022
,LEE VALLEY VELOPARK CATERING,SUPPLIES AND SERVICES,FOOD AND DRINK PURCHASES,4140,ROMBOUTS COFFEE GB LIMITED,18/10/2021 00:00:00,254174,32.84,RO0216,ROMBOUTS COFFEE GB LIMITED,27/9/2021 00:00:00,31/10/2021 00:00:00,P07-2022
,LEE VALLEY VELOPARK CATERING,SUPPLIES AND SERVICES,FOOD AND DRINK PURCHASES,4140,P114516-SERVICE-Coffee Products,18/10/2021 00:00:00,254174,192.02,RO0216,ROMBOUTS COFFEE GB LIMITED,27/9/2021 00:00:00,31/10/2021 00:00:00,P07-2022
,LEE VALLEY VELOPARK CATERING,SUPPLIES AND SERVICES,FOOD AND DRINK PURCHASES,4140,ROMBOUTS COFFEE GB LIMITED,18/10/2021 00:00:00,254174,-192.02,RO0216,ROMBOUTS COFFEE GB LIMITED,27/9/2021 00:00:00,31/10/2021 00:00:00,P07-2022
,LEE VALLEY VELOPARK CATERING,SUPPLIES AND SERVICES,FOOD AND DRINK PURCHASES,4140,BIDFOOD,18/10/2021 00:00:00,254204,30.99,360001,BIDFOOD,27/9/2021 00:00:00,31/10/2021 00:00:00,P07-2022
,LEE VALLEY VELOPARK CATERING,SUPPLIES AND SERVICES,FOOD AND DRINK PURCHASES,4140,BIDFOOD,18/10/2021 00:00:00,254204,86.96,360001,BIDFOOD,27/9/2021 00:00:00,31/10/2021 00:00:00,P07-2022
,LEE VALLEY VELOPARK CATERING,SUPPLIES AND SERVICES,FOOD AND DRINK PURCHASES,4140,P114643-SERVICE-Food and Drinks Order,18/10/2021 00:00:00,254204,117.95,360001,BIDFOOD,27/9/2021 00:00:00,31/10/2021 00:00:00,P07-2022
,LEE VALLEY VELOPARK CATERING,SUPPLIES AND SERVICES,FOOD AND DRINK PURCHASES,4140,BIDFOOD,18/10/2021 00:00:00,254204,-117.95,360001,BIDFOOD,27/9/2021 00:00:00,31/10/2021 00:00:00,P07-2022
,LEE VALLEY VELOPARK CATERING,SUPPLIES AND SERVICES,FOOD AND DRINK PURCHASES,4140,P114644-SERVICE-Food and Drinks Order,18/10/2021 00:00:00,254205,70.56,360001,BIDFOOD,27/9/2021 00:00:00,31/10/2021 00:00:00,P07-2022
,LEE VALLEY VELOPARK CATERING,SUPPLIES AND SERVICES,FOOD AND DRINK PURCHASES,4140,P114652-SERVICE-Food Order,18/10/2021 00:00:00,254386,633.45,360001,BIDFOOD,27/9/2021 00:00:00,31/10/2021 00:00:00,P07-2022
,LEE VALLEY VELOPARK CATERING,SUPPLIES AND SERVICES,FOOD AND DRINK PURCHASES,4140,BIDFOOD,18/10/2021 00:00:00,254386,226.9,360001,BIDFOOD,27/9/2021 00:00:00,31/10/2021 00:00:00,P07-2022
,LEE VALLEY VELOPARK CATERING,SUPPLIES AND SERVICES,FOOD AND DRINK PURCHASES,4140,BIDFOOD,18/10/2021 00:00:00,254386,-633.45,360001,BIDFOOD,27/9/2021 00:00:00,31/10/2021 00:00:00,P07-2022
,LEE VALLEY VELOPARK CATERING,SUPPLIES AND SERVICES,FOOD AND DRINK PURCHASES,4140,BIDFOOD,18/10/2021 00:00:00,254386,406.55,360001,BIDFOOD,27/9/2021 00:00:00,31/10/2021 00:00:00,P07-2022
,LEE VALLEY VELOPARK CATERING,SUPPLIES AND SERVICES,FOOD AND DRINK PURCHASES,4140,P114516-SERVICE-Coffee Products,18/10/2021 00:00:00,254429,104.76,RO0216,ROMBOUTS COFFEE GB LIMITED,27/9/2021 00:00:00,31/10/2021 00:00:00,P07-2022
,LEE VALLEY VELOPARK CATERING,SUPPLIES AND SERVICES,FOOD AND DRINK PURCHASES,4140,UNNU LTD,18/10/2021 00:00:00,254438,150.36,UN0081,UNNU LTD,27/9/2021 00:00:00,31/10/2021 00:00:00,P07-2022
,LEE VALLEY VELOPARK CATERING,SUPPLIES AND SERVICES,FOOD AND DRINK PURCHASES,4140,UNNU LTD,18/10/2021 00:00:00,254438,180,UN0081,UNNU LTD,27/9/2021 00:00:00,31/10/2021 00:00:00,P07-2022
,LEE VALLEY VELOPARK CATERING,SUPPLIES AND SERVICES,FOOD AND DRINK PURCHASES,4140,UNNU LTD,18/10/2021 00:00:00,254438,-330.36,UN0081,UNNU LTD,27/9/2021 00:00:00,31/10/2021 00:00:00,P07-2022
,LEE VALLEY VELOPARK CATERING,SUPPLIES AND SERVICES,FOOD AND DRINK PURCHASES,4140,P114656-SERVICE-Food Order,18/10/2021 00:00:00,254438,330.36,UN0081,UNNU LTD,27/9/2021 00:00:00,31/10/2021 00:00:00,P07-2022
,LEE VALLEY VELOPARK CATERING,SUPPLIES AND SERVICES,FOOD AND DRINK PURCHASES,4140,P114657-SERVICE-Food Order,25/10/2021 00:00:00,254450,268.8,SI0589,SIMPLY LUNCH LTD,27/9/2021 00:00:00,31/10/2021 00:00:00,P07-2022
,LEE VALLEY VELOPARK CATERING,SUPPLIES AND SERVICES,FOOD AND DRINK PURCHASES,4140,P114652-SERVICE-Food Order,31/10/2021 00:00:00,254507,-1.37,360001,BIDFOOD,27/9/2021 00:00:00,31/10/2021 00:00:00,P07-2022
,LEE VALLEY VELOPARK CATERING,SUPPLIES AND SERVICES,FOOD AND DRINK PURCHASES,4140,BIDFOOD,31/10/2021 00:00:00,254664,725.21,360001,BIDFOOD,27/9/2021 00:00:00,31/10/2021 00:00:00,P07-2022
,LEE VALLEY VELOPARK CATERING,SUPPLIES AND SERVICES,FOOD AND DRINK PURCHASES,4140,BIDFOOD,31/10/2021 00:00:00,254664,110.68,360001,BIDFOOD,27/9/2021 00:00:00,31/10/2021 00:00:00,P07-2022
,LEE VALLEY VELOPARK CATERING,SUPPLIES AND SERVICES,FOOD AND DRINK PURCHASES,4140,BIDFOOD,31/10/2021 00:00:00,254664,-835.89,360001,BIDFOOD,27/9/2021 00:00:00,31/10/2021 00:00:00,P07-2022
,LEE VALLEY VELOPARK CATERING,SUPPLIES AND SERVICES,FOOD AND DRINK PURCHASES,4140,P114752-SERVICE-Food and Drink Order,31/10/2021 00:00:00,254664,835.89,360001,BIDFOOD,27/9/2021 00:00:00,31/10/2021 00:00:00,P07-2022
,LV HOCKEY AND TENNIS CATERING,SUPPLIES AND SERVICES,FOOD AND DRINK PURCHASES,4140,P114249-SERVICE-food and drink purchases,10/11/2021 00:00,253477,9.57,360001,BIDFOOD,27/9/2021 00:00:00,31/10/2021 00:00:00,P07-2022
,LV HOCKEY AND TENNIS CATERING,SUPPLIES AND SERVICES,FOOD AND DRINK PURCHASES,4140,BIDFOOD,10/11/2021 00:00,253524,268.44,360001,BIDFOOD,27/9/2021 00:00:00,31/10/2021 00:00:00,P07-2022
,LV HOCKEY AND TENNIS CATERING,SUPPLIES AND SERVICES,FOOD AND DRINK PURCHASES,4140,BIDFOOD,10/11/2021 00:00,253524,-1123.54,360001,BIDFOOD,27/9/2021 00:00:00,31/10/2021 00:00:00,P07-2022
,LV HOCKEY AND TENNIS CATERING,SUPPLIES AND SERVICES,FOOD AND DRINK PURCHASES,4140,P114249-SERVICE-food and drink purchases,10/11/2021 00:00,253524,1123.54,360001,BIDFOOD,27/9/2021 00:00:00,31/10/2021 00:00:00,P07-2022
,LV HOCKEY AND TENNIS CATERING,SUPPLIES AND SERVICES,FOOD AND DRINK PURCHASES,4140,BIDFOOD,10/11/2021 00:00,253524,855.1,360001,BIDFOOD,27/9/2021 00:00:00,31/10/2021 00:00:00,P07-2022
,LV HOCKEY AND TENNIS CATERING,SUPPLIES AND SERVICES,FOOD AND DRINK PURCHASES,4140,P114249-SERVICE-food and drink purchases,10/11/2021 00:00,253898,228.43,360001,BIDFOOD,27/9/2021 00:00:00,31/10/2021 00:00:00,P07-2022
,LV HOCKEY AND TENNIS CATERING,SUPPLIES AND SERVICES,FOOD AND DRINK PURCHASES,4140,BIDFOOD,10/11/2021 00:00,253898,20.76,360001,BIDFOOD,27/9/2021 00:00:00,31/10/2021 00:00:00,P07-2022
,LV HOCKEY AND TENNIS CATERING,SUPPLIES AND SERVICES,FOOD AND DRINK PURCHASES,4140,BIDFOOD,10/11/2021 00:00,253898,207.67,360001,BIDFOOD,27/9/2021 00:00:00,31/10/2021 00:00:00,P07-2022
,LV HOCKEY AND TENNIS CATERING,SUPPLIES AND SERVICES,FOOD AND DRINK PURCHASES,4140,BIDFOOD,10/11/2021 00:00,253898,-228.43,360001,BIDFOOD,27/9/2021 00:00:00,31/10/2021 00:00:00,P07-2022
,LV HOCKEY AND TENNIS CATERING,SUPPLIES AND SERVICES,FOOD AND DRINK PURCHASES,4140,BIDFOOD,10/11/2021 00:00,253899,-402.84,360001,BIDFOOD,27/9/2021 00:00:00,31/10/2021 00:00:00,P07-2022
,LV HOCKEY AND TENNIS CATERING,SUPPLIES AND SERVICES,FOOD AND DRINK PURCHASES,4140,BIDFOOD,10/11/2021 00:00,253899,45.21,360001,BIDFOOD,27/9/2021 00:00:00,31/10/2021 00:00:00,P07-2022
,LV HOCKEY AND TENNIS CATERING,SUPPLIES AND SERVICES,FOOD AND DRINK PURCHASES,4140,P114249-SERVICE-food and drink orders,10/11/2021 00:00,253899,402.84,360001,BIDFOOD,27/9/2021 00:00:00,31/10/2021 00:00:00,P07-2022
,LV HOCKEY AND TENNIS CATERING,SUPPLIES AND SERVICES,FOOD AND DRINK PURCHASES,4140,P114249-SERVICE-food and drink purchases,10/11/2021 00:00,253899,172.43,360001,BIDFOOD,27/9/2021 00:00:00,31/10/2021 00:00:00,P07-2022
,LV HOCKEY AND TENNIS CATERING,SUPPLIES AND SERVICES,FOOD AND DRINK PURCHASES,4140,BIDFOOD,10/11/2021 00:00,253899,357.63,360001,BIDFOOD,27/9/2021 00:00:00,31/10/2021 00:00:00,P07-2022
,LV HOCKEY AND TENNIS CATERING,SUPPLIES AND SERVICES,FOOD AND DRINK PURCHASES,4140,BIDFOOD,19/10/2021 00:00:00,254149,493.61,360001,BIDFOOD,27/9/2021 00:00:00,31/10/2021 00:00:00,P07-2022
,LV HOCKEY AND TENNIS CATERING,SUPPLIES AND SERVICES,FOOD AND DRINK PURCHASES,4140,P114249-SERVICE-food and drink orders,19/10/2021 00:00:00,254149,515.81,360001,BIDFOOD,27/9/2021 00:00:00,31/10/2021 00:00:00,P07-2022
,LV HOCKEY AND TENNIS CATERING,SUPPLIES AND SERVICES,FOOD AND DRINK PURCHASES,4140,BIDFOOD,19/10/2021 00:00:00,254149,22.2,360001,BIDFOOD,27/9/2021 00:00:00,31/10/2021 00:00:00,P07-2022
,LV HOCKEY AND TENNIS CATERING,SUPPLIES AND SERVICES,FOOD AND DRINK PURCHASES,4140,BIDFOOD,19/10/2021 00:00:00,254149,-515.81,360001,BIDFOOD,27/9/2021 00:00:00,31/10/2021 00:00:00,P07-2022
,LV HOCKEY AND TENNIS CATERING,SUPPLIES AND SERVICES,FOOD AND DRINK PURCHASES,4140,BIDFOOD,27/10/2021 00:00:00,254390,177.01,360001,BIDFOOD,27/9/2021 00:00:00,31/10/2021 00:00:00,P07-2022
,LV HOCKEY AND TENNIS CATERING,SUPPLIES AND SERVICES,FOOD AND DRINK PURCHASES,4140,BIDFOOD,27/10/2021 00:00:00,254390,408,360001,BIDFOOD,27/9/2021 00:00:00,31/10/2021 00:00:00,P07-2022
,LV HOCKEY AND TENNIS CATERING,SUPPLIES AND SERVICES,FOOD AND DRINK PURCHASES,4140,P114249-SERVICE-food and drink orders,27/10/2021 00:00:00,254390,585.01,360001,BIDFOOD,27/9/2021 00:00:00,31/10/2021 00:00:00,P07-2022
,LV HOCKEY AND TENNIS CATERING,SUPPLIES AND SERVICES,FOOD AND DRINK PURCHASES,4140,P114249-SERVICE-food and drink orders,27/10/2021 00:00:00,254390,81.35,360001,BIDFOOD,27/9/2021 00:00:00,31/10/2021 00:00:00,P07-2022
,LV HOCKEY AND TENNIS CATERING,SUPPLIES AND SERVICES,FOOD AND DRINK PURCHASES,4140,BIDFOOD,27/10/2021 00:00:00,254390,-585.01,360001,BIDFOOD,27/9/2021 00:00:00,31/10/2021 00:00:00,P07-2022
,LV HOCKEY AND TENNIS CATERING,SUPPLIES AND SERVICES,FOOD AND DRINK PURCHASES,4140,BIDFOOD,27/10/2021 00:00:00,254425,196.06,360001,BIDFOOD,27/9/2021 00:00:00,31/10/2021 00:00:00,P07-2022
,LV HOCKEY AND TENNIS CATERING,SUPPLIES AND SERVICES,FOOD AND DRINK PURCHASES,4140,BIDFOOD,27/10/2021 00:00:00,254425,-425.09,360001,BIDFOOD,27/9/2021 00:00:00,31/10/2021 00:00:00,P07-2022
,LV HOCKEY AND TENNIS CATERING,SUPPLIES AND SERVICES,FOOD AND DRINK PURCHASES,4140,BIDFOOD,27/10/2021 00:00:00,254425,229.03,360001,BIDFOOD,27/9/2021 00:00:00,31/10/2021 00:00:00,P07-2022
,LV HOCKEY AND TENNIS CATERING,SUPPLIES AND SERVICES,FOOD AND DRINK PURCHASES,4140,P114249-SERVICE-food and drink orders,27/10/2021 00:00:00,254425,425.09,360001,BIDFOOD,27/9/2021 00:00:00,31/10/2021 00:00:00,P07-2022
,LV HOCKEY AND TENNIS CATERING,SUPPLIES AND SERVICES,FOOD AND DRINK PURCHASES,4140,BIDFOOD,27/10/2021 00:00:00,254665,217.32,360001,BIDFOOD,27/9/2021 00:00:00,31/10/2021 00:00:00,P07-2022
,LV HOCKEY AND TENNIS CATERING,SUPPLIES AND SERVICES,FOOD AND DRINK PURCHASES,4140,BIDFOOD,27/10/2021 00:00:00,254665,-644.11,360001,BIDFOOD,27/9/2021 00:00:00,31/10/2021 00:00:00,P07-2022
,LV HOCKEY AND TENNIS CATERING,SUPPLIES AND SERVICES,FOOD AND DRINK PURCHASES,4140,BIDFOOD,27/10/2021 00:00:00,254665,426.79,360001,BIDFOOD,27/9/2021 00:00:00,31/10/2021 00:00:00,P07-2022
,LV HOCKEY AND TENNIS CATERING,SUPPLIES AND SERVICES,FOOD AND DRINK PURCHASES,4140,P114249-SERVICE-food and drink orders,27/10/2021 00:00:00,254665,644.11,360001,BIDFOOD,27/9/2021 00:00:00,31/10/2021 00:00:00,P07-2022
,LV WHITE WATER CATERING,SUPPLIES AND SERVICES,FOOD AND DRINK PURCHASES,4140,P114387-SERVICE-stocktake august,10/04/2021 00:00,252379,532,VE0038,VENNERS LTD,27/9/2021 00:00:00,31/10/2021 00:00:00,P07-2022
,LV WHITE WATER CATERING,SUPPLIES AND SERVICES,FOOD AND DRINK PURCHASES,4140,BIDFOOD,10/12/2021 00:00,253211,633.82,360001,BIDFOOD,27/9/2021 00:00:00,31/10/2021 00:00:00,P07-2022
,LV WHITE WATER CATERING,SUPPLIES AND SERVICES,FOOD AND DRINK PURCHASES,4140,BIDFOOD,10/12/2021 00:00,253211,720.52,360001,BIDFOOD,27/9/2021 00:00:00,31/10/2021 00:00:00,P07-2022
,LV WHITE WATER CATERING,SUPPLIES AND SERVICES,FOOD AND DRINK PURCHASES,4140,P114494-SERVICE-food,10/12/2021 00:00,253211,1354.34,360001,BIDFOOD,27/9/2021 00:00:00,31/10/2021 00:00:00,P07-2022
,LV WHITE WATER CATERING,SUPPLIES AND SERVICES,FOOD AND DRINK PURCHASES,4140,BIDFOOD,10/12/2021 00:00,253211,-1354.34,360001,BIDFOOD,27/9/2021 00:00:00,31/10/2021 00:00:00,P07-2022
,LV WHITE WATER CATERING,SUPPLIES AND SERVICES,FOOD AND DRINK PURCHASES,4140,P114334-SERVICE-food front house,10/04/2021 00:00,253232,113.61,360001,BIDFOOD,27/9/2021 00:00:00,31/10/2021 00:00:00,P07-2022
,LV WHITE WATER CATERING,SUPPLIES AND SERVICES,FOOD AND DRINK PURCHASES,4140,P114490-SERVICE-sandwiches,10/11/2021 00:00,253316,813.61,AN0324,ANCHOR CATERING,27/9/2021 00:00:00,31/10/2021 00:00:00,P07-2022
,LV WHITE WATER CATERING,SUPPLIES AND SERVICES,FOOD AND DRINK PURCHASES,4140,BIDFOOD,10/04/2021 00:00,253522,1100.32,360001,BIDFOOD,27/9/2021 00:00:00,31/10/2021 00:00:00,P07-2022
,LV WHITE WATER CATERING,SUPPLIES AND SERVICES,FOOD AND DRINK PURCHASES,4140,P114201-SERVICE-kitchen food,10/04/2021 00:00,253522,1524.1,360001,BIDFOOD,27/9/2021 00:00:00,31/10/2021 00:00:00,P07-2022
,LV WHITE WATER CATERING,SUPPLIES AND SERVICES,FOOD AND DRINK PURCHASES,4140,BIDFOOD,10/04/2021 00:00,253522,-1524.1,360001,BIDFOOD,27/9/2021 00:00:00,31/10/2021 00:00:00,P07-2022
,LV WHITE WATER CATERING,SUPPLIES AND SERVICES,FOOD AND DRINK PURCHASES,4140,BIDFOOD,10/04/2021 00:00,253522,423.78,360001,BIDFOOD,27/9/2021 00:00:00,31/10/2021 00:00:00,P07-2022
,LV WHITE WATER CATERING,SUPPLIES AND SERVICES,FOOD AND DRINK PURCHASES,4140,P114335-SERVICE-coffee,10/04/2021 00:00,253538,569.88,RO0216,ROMBOUTS COFFEE GB LIMITED,27/9/2021 00:00:00,31/10/2021 00:00:00,P07-2022
,LV WHITE WATER CATERING,SUPPLIES AND SERVICES,FOOD AND DRINK PURCHASES,4140,P114274-SERVICE-drinks,10/06/2021 00:00,253599,318.45,DA0268,DAYLA DRINKS,27/9/2021 00:00:00,31/10/2021 00:00:00,P07-2022
,LV WHITE WATER CATERING,SUPPLIES AND SERVICES,FOOD AND DRINK PURCHASES,4140,ROMBOUTS COFFEE GB LIMITED,10/04/2021 00:00,253643,22,RO0216,ROMBOUTS COFFEE GB LIMITED,27/9/2021 00:00:00,31/10/2021 00:00:00,P07-2022
,LV WHITE WATER CATERING,SUPPLIES AND SERVICES,FOOD AND DRINK PURCHASES,4140,P114320-SERVICE-coffee,10/04/2021 00:00,253643,85.18,RO0216,ROMBOUTS COFFEE GB LIMITED,27/9/2021 00:00:00,31/10/2021 00:00:00,P07-2022
,LV WHITE WATER CATERING,SUPPLIES AND SERVICES,FOOD AND DRINK PURCHASES,4140,ROMBOUTS COFFEE GB LIMITED,10/04/2021 00:00,253643,-85.18,RO0216,ROMBOUTS COFFEE GB LIMITED,27/9/2021 00:00:00,31/10/2021 00:00:00,P07-2022
,LV WHITE WATER CATERING,SUPPLIES AND SERVICES,FOOD AND DRINK PURCHASES,4140,ROMBOUTS COFFEE GB LIMITED,10/04/2021 00:00,253643,63.18,RO0216,ROMBOUTS COFFEE GB LIMITED,27/9/2021 00:00:00,31/10/2021 00:00:00,P07-2022
,LV WHITE WATER CATERING,SUPPLIES AND SERVICES,FOOD AND DRINK PURCHASES,4140,BIDFOOD,10/12/2021 00:00,253826,977.1,360001,BIDFOOD,27/9/2021 00:00:00,31/10/2021 00:00:00,P07-2022
,LV WHITE WATER CATERING,SUPPLIES AND SERVICES,FOOD AND DRINK PURCHASES,4140,P114579-SERVICE-frony hpouse,10/12/2021 00:00,253826,1530.42,360001,BIDFOOD,27/9/2021 00:00:00,31/10/2021 00:00:00,P07-2022
,LV WHITE WATER CATERING,SUPPLIES AND SERVICES,FOOD AND DRINK PURCHASES,4140,BIDFOOD,10/12/2021 00:00,253826,553.32,360001,BIDFOOD,27/9/2021 00:00:00,31/10/2021 00:00:00,P07-2022
,LV WHITE WATER CATERING,SUPPLIES AND SERVICES,FOOD AND DRINK PURCHASES,4140,BIDFOOD,10/12/2021 00:00,253826,-1530.42,360001,BIDFOOD,27/9/2021 00:00:00,31/10/2021 00:00:00,P07-2022
,LV WHITE WATER CATERING,SUPPLIES AND SERVICES,FOOD AND DRINK PURCHASES,4140,P114274-SERVICE-drinks,10/12/2021 00:00,253888,47.75,DA0268,DAYLA DRINKS,27/9/2021 00:00:00,31/10/2021 00:00:00,P07-2022
,LV WHITE WATER CATERING,SUPPLIES AND SERVICES,FOOD AND DRINK PURCHASES,4140,P114424-SERVICE-drinks wc 041021,10/12/2021 00:00,253888,350,DA0268,DAYLA DRINKS,27/9/2021 00:00:00,31/10/2021 00:00:00,P07-2022
,LV WHITE WATER CATERING,SUPPLIES AND SERVICES,FOOD AND DRINK PURCHASES,4140,BIDFOOD,10/11/2021 00:00,253900,438.86,360001,BIDFOOD,27/9/2021 00:00:00,31/10/2021 00:00:00,P07-2022
,LV WHITE WATER CATERING,SUPPLIES AND SERVICES,FOOD AND DRINK PURCHASES,4140,P114307-SERVICE-kitchen food,10/11/2021 00:00,253900,447.42,360001,BIDFOOD,27/9/2021 00:00:00,31/10/2021 00:00:00,P07-2022
,LV WHITE WATER CATERING,SUPPLIES AND SERVICES,FOOD AND DRINK PURCHASES,4140,BIDFOOD,10/11/2021 00:00,253900,-447.42,360001,BIDFOOD,27/9/2021 00:00:00,31/10/2021 00:00:00,P07-2022
,LV WHITE WATER CATERING,SUPPLIES AND SERVICES,FOOD AND DRINK PURCHASES,4140,BIDFOOD,10/11/2021 00:00,253900,8.56,360001,BIDFOOD,27/9/2021 00:00:00,31/10/2021 00:00:00,P07-2022
,LV WHITE WATER CATERING,SUPPLIES AND SERVICES,FOOD AND DRINK PURCHASES,4140,P114200-SERVICE-sandwiches,10/07/2021 00:00,253913,892.27,AN0324,ANCHOR CATERING,27/9/2021 00:00:00,31/10/2021 00:00:00,P07-2022
,LV WHITE WATER CATERING,SUPPLIES AND SERVICES,FOOD AND DRINK PURCHASES,4140,P114425-SERVICE-sandwiches wc 041021,10/12/2021 00:00,253914,716.15,AN0324,ANCHOR CATERING,27/9/2021 00:00:00,31/10/2021 00:00:00,P07-2022
,LV WHITE WATER CATERING,SUPPLIES AND SERVICES,FOOD AND DRINK PURCHASES,4140,P114321-SERVICE-cups,10/07/2021 00:00,253917,140.12,CA0585,CAFE CONNECTIONS,27/9/2021 00:00:00,31/10/2021 00:00:00,P07-2022
,LV WHITE WATER CATERING,SUPPLIES AND SERVICES,FOOD AND DRINK PURCHASES,4140,ROMBOUTS COFFEE GB LIMITED,10/11/2021 00:00,254037,87.9,RO0216,ROMBOUTS COFFEE GB LIMITED,27/9/2021 00:00:00,31/10/2021 00:00:00,P07-2022
,LV WHITE WATER CATERING,SUPPLIES AND SERVICES,FOOD AND DRINK PURCHASES,4140,ROMBOUTS COFFEE GB LIMITED,10/11/2021 00:00,254037,86.98,RO0216,ROMBOUTS COFFEE GB LIMITED,27/9/2021 00:00:00,31/10/2021 00:00:00,P07-2022
,LV WHITE WATER CATERING,SUPPLIES AND SERVICES,FOOD AND DRINK PURCHASES,4140,P114420-SERVICE-coffee,10/11/2021 00:00,254037,174.88,RO0216,ROMBOUTS COFFEE GB LIMITED,27/9/2021 00:00:00,31/10/2021 00:00:00,P07-2022
,LV WHITE WATER CATERING,SUPPLIES AND SERVICES,FOOD AND DRINK PURCHASES,4140,ROMBOUTS COFFEE GB LIMITED,10/11/2021 00:00,254037,-174.88,RO0216,ROMBOUTS COFFEE GB LIMITED,27/9/2021 00:00:00,31/10/2021 00:00:00,P07-2022
,LV WHITE WATER CATERING,SUPPLIES AND SERVICES,FOOD AND DRINK PURCHASES,4140,P114307-SERVICE-kitchen food,10/11/2021 00:00,254041,236.98,360001,BIDFOOD,27/9/2021 00:00:00,31/10/2021 00:00:00,P07-2022
,LV WHITE WATER CATERING,SUPPLIES AND SERVICES,FOOD AND DRINK PURCHASES,4140,P114307-SERVICE-kitchen food,10/11/2021 00:00,254042,-65.28,360001,BIDFOOD,27/9/2021 00:00:00,31/10/2021 00:00:00,P07-2022
,LV WHITE WATER CATERING,SUPPLIES AND SERVICES,FOOD AND DRINK PURCHASES,4140,P114421-SERVICE-cups boxes takeaway,10/11/2021 00:00,254059,266.37,CA0585,CAFE CONNECTIONS,27/9/2021 00:00:00,31/10/2021 00:00:00,P07-2022
,LV WHITE WATER CATERING,SUPPLIES AND SERVICES,FOOD AND DRINK PURCHASES,4140,BIDFOOD,14/10/2021 00:00:00,254142,394.67,360001,BIDFOOD,27/9/2021 00:00:00,31/10/2021 00:00:00,P07-2022
,LV WHITE WATER CATERING,SUPPLIES AND SERVICES,FOOD AND DRINK PURCHASES,4140,BIDFOOD,14/10/2021 00:00:00,254142,-742.84,360001,BIDFOOD,27/9/2021 00:00:00,31/10/2021 00:00:00,P07-2022
,LV WHITE WATER CATERING,SUPPLIES AND SERVICES,FOOD AND DRINK PURCHASES,4140,P114419-SERVICE-w/c 041021 front house,14/10/2021 00:00:00,254142,742.84,360001,BIDFOOD,27/9/2021 00:00:00,31/10/2021 00:00:00,P07-2022
,LV WHITE WATER CATERING,SUPPLIES AND SERVICES,FOOD AND DRINK PURCHASES,4140,BIDFOOD,14/10/2021 00:00:00,254142,348.17,360001,BIDFOOD,27/9/2021 00:00:00,31/10/2021 00:00:00,P07-2022
,LV WHITE WATER CATERING,SUPPLIES AND SERVICES,FOOD AND DRINK PURCHASES,4140,P114426-SERVICE-kitchen food wc 041021,18/10/2021 00:00:00,254148,310.66,360001,BIDFOOD,27/9/2021 00:00:00,31/10/2021 00:00:00,P07-2022
,LV WHITE WATER CATERING,SUPPLIES AND SERVICES,FOOD AND DRINK PURCHASES,4140,P114620-SERVICE-drinks,18/10/2021 00:00:00,254195,158.89,DA0268,DAYLA DRINKS,27/9/2021 00:00:00,31/10/2021 00:00:00,P07-2022
,LV WHITE WATER CATERING,SUPPLIES AND SERVICES,FOOD AND DRINK PURCHASES,4140,P114422-SERVICE-till rolls,18/10/2021 00:00:00,254227,299,TH0008,JKL SOLUTIONS LTD,27/9/2021 00:00:00,31/10/2021 00:00:00,P07-2022
,LV WHITE WATER CATERING,SUPPLIES AND SERVICES,FOOD AND DRINK PURCHASES,4140,P114627-SERVICE-stationary,19/10/2021 00:00:00,254228,16.44,TH0008,JKL SOLUTIONS LTD,27/9/2021 00:00:00,31/10/2021 00:00:00,P07-2022
,LV WHITE WATER CATERING,SUPPLIES AND SERVICES,FOOD AND DRINK PURCHASES,4140,P114419-SERVICE-w/c 041021 front house,18/10/2021 00:00:00,254235,-1.51,360001,BIDFOOD,27/9/2021 00:00:00,31/10/2021 00:00:00,P07-2022
,LV WHITE WATER CATERING,SUPPLIES AND SERVICES,FOOD AND DRINK PURCHASES,4140,P114426-SERVICE-kitchen food wc 041021,18/10/2021 00:00:00,254247,-52.91,360001,BIDFOOD,27/9/2021 00:00:00,31/10/2021 00:00:00,P07-2022
,LV WHITE WATER CATERING,SUPPLIES AND SERVICES,FOOD AND DRINK PURCHASES,4140,P114542-SERVICE-kitchen food,18/10/2021 00:00:00,254248,235.39,360001,BIDFOOD,27/9/2021 00:00:00,31/10/2021 00:00:00,P07-2022
,LV WHITE WATER CATERING,SUPPLIES AND SERVICES,FOOD AND DRINK PURCHASES,4140,P114598-SERVICE-cups lids,18/10/2021 00:00:00,254376,292.4,CA0585,CAFE CONNECTIONS,27/9/2021 00:00:00,31/10/2021 00:00:00,P07-2022
,LV WHITE WATER CATERING,SUPPLIES AND SERVICES,FOOD AND DRINK PURCHASES,4140,P114423-SERVICE-cleaning materials,18/10/2021 00:00:00,254384,149.28,HY0043,HYGIENE SYSTEMS LTD,27/9/2021 00:00:00,31/10/2021 00:00:00,P07-2022
,LV WHITE WATER CATERING,SUPPLIES AND SERVICES,FOOD AND DRINK PURCHASES,4140,BIDFOOD,31/10/2021 00:00:00,254385,121.73,360001,BIDFOOD,27/9/2021 00:00:00,31/10/2021 00:00:00,P07-2022
,LV WHITE WATER CATERING,SUPPLIES AND SERVICES,FOOD AND DRINK PURCHASES,4140,BIDFOOD,31/10/2021 00:00:00,254385,503.92,360001,BIDFOOD,27/9/2021 00:00:00,31/10/2021 00:00:00,P07-2022
,LV WHITE WATER CATERING,SUPPLIES AND SERVICES,FOOD AND DRINK PURCHASES,4140,BIDFOOD,31/10/2021 00:00:00,254385,-625.65,360001,BIDFOOD,27/9/2021 00:00:00,31/10/2021 00:00:00,P07-2022
,LV WHITE WATER CATERING,SUPPLIES AND SERVICES,FOOD AND DRINK PURCHASES,4140,P114389-SERVICE-kitchen food 17/09,31/10/2021 00:00:00,254385,625.65,360001,BIDFOOD,27/9/2021 00:00:00,31/10/2021 00:00:00,P07-2022
,LV WHITE WATER CATERING,SUPPLIES AND SERVICES,FOOD AND DRINK PURCHASES,4140,P114542-SERVICE-kitchen food,31/10/2021 00:00:00,254424,151.49,360001,BIDFOOD,27/9/2021 00:00:00,31/10/2021 00:00:00,P07-2022
,LV WHITE WATER CATERING,SUPPLIES AND SERVICES,FOOD AND DRINK PURCHASES,4140,BIDFOOD,31/10/2021 00:00:00,254424,-151.49,360001,BIDFOOD,27/9/2021 00:00:00,31/10/2021 00:00:00,P07-2022
,LV WHITE WATER CATERING,SUPPLIES AND SERVICES,FOOD AND DRINK PURCHASES,4140,BIDFOOD,31/10/2021 00:00:00,254424,135.26,360001,BIDFOOD,27/9/2021 00:00:00,31/10/2021 00:00:00,P07-2022
,LV WHITE WATER CATERING,SUPPLIES AND SERVICES,FOOD AND DRINK PURCHASES,4140,BIDFOOD,31/10/2021 00:00:00,254424,16.23,360001,BIDFOOD,27/9/2021 00:00:00,31/10/2021 00:00:00,P07-2022
,LV WHITE WATER CATERING,SUPPLIES AND SERVICES,FOOD AND DRINK PURCHASES,4140,P114542-SERVICE-kitchen food,31/10/2021 00:00:00,254426,-6.08,360001,BIDFOOD,27/9/2021 00:00:00,31/10/2021 00:00:00,P07-2022
,LV WHITE WATER CATERING,SUPPLIES AND SERVICES,FOOD AND DRINK PURCHASES,4140,ROMBOUTS COFFEE GB LIMITED,31/10/2021 00:00:00,254428,34.92,RO0216,ROMBOUTS COFFEE GB LIMITED,27/9/2021 00:00:00,31/10/2021 00:00:00,P07-2022
,LV WHITE WATER CATERING,SUPPLIES AND SERVICES,FOOD AND DRINK PURCHASES,4140,P114589-SERVICE-cooffee,31/10/2021 00:00:00,254428,300,RO0216,ROMBOUTS COFFEE GB LIMITED,27/9/2021 00:00:00,31/10/2021 00:00:00,P07-2022
,LV WHITE WATER CATERING,SUPPLIES AND SERVICES,FOOD AND DRINK PURCHASES,4140,ROMBOUTS COFFEE GB LIMITED,31/10/2021 00:00:00,254428,-300,RO0216,ROMBOUTS COFFEE GB LIMITED,27/9/2021 00:00:00,31/10/2021 00:00:00,P07-2022
,LV WHITE WATER CATERING,SUPPLIES AND SERVICES,FOOD AND DRINK PURCHASES,4140,ROMBOUTS COFFEE GB LIMITED,31/10/2021 00:00:00,254428,265.08,RO0216,ROMBOUTS COFFEE GB LIMITED,27/9/2021 00:00:00,31/10/2021 00:00:00,P07-2022
,LV WHITE WATER CATERING,SUPPLIES AND SERVICES,FOOD AND DRINK PURCHASES,4140,P114320-SERVICE-coffee,31/10/2021 00:00:00,254428,30.01,RO0216,ROMBOUTS COFFEE GB LIMITED,27/9/2021 00:00:00,31/10/2021 00:00:00,P07-2022
,LV WHITE WATER CATERING,SUPPLIES AND SERVICES,FOOD AND DRINK PURCHASES,4140,P114621-SERVICE-drins 15/10/21,31/10/2021 00:00:00,254497,196.4,DA0268,DAYLA DRINKS,27/9/2021 00:00:00,31/10/2021 00:00:00,P07-2022
,LV WHITE WATER CATERING,SUPPLIES AND SERVICES,FOOD AND DRINK PURCHASES,4140,P113354-SERVICE-sandwiches,31/10/2021 00:00:00,254671,231.23,AN0324,ANCHOR CATERING,27/9/2021 00:00:00,31/10/2021 00:00:00,P07-2022
,LV WHITE WATER CATERING,SUPPLIES AND SERVICES,FOOD AND DRINK PURCHASES,4140,P113827-SERVICE-sandwiches wc 0609,31/10/2021 00:00:00,254671,211.85,AN0324,ANCHOR CATERING,27/9/2021 00:00:00,31/10/2021 00:00:00,P07-2022
,LV WHITE WATER CATERING,SUPPLIES AND SERVICES,FOOD AND DRINK PURCHASES,4140,P113567-SERVICE-sandwiches,31/10/2021 00:00:00,254672,349.26,AN0324,ANCHOR CATERING,27/9/2021 00:00:00,31/10/2021 00:00:00,P07-2022
,LV WHITE WATER CATERING,SUPPLIES AND SERVICES,FOOD AND DRINK PURCHASES,4140,P113695-SERVICE-sandwiches,31/10/2021 00:00:00,254672,212.21,AN0324,ANCHOR CATERING,27/9/2021 00:00:00,31/10/2021 00:00:00,P07-2022
,LV WHITE WATER CATERING,SUPPLIES AND SERVICES,FOOD AND DRINK PURCHASES,4140,P114426-SERVICE-kitchen food wc 041021,31/10/2021 00:00:00,254686,153.11,360001,BIDFOOD,27/9/2021 00:00:00,31/10/2021 00:00:00,P07-2022
,LV WHITE WATER CATERING,SUPPLIES AND SERVICES,FOOD AND DRINK PURCHASES,4140,BIDFOOD,31/10/2021 00:00:00,254686,288.93,360001,BIDFOOD,27/9/2021 00:00:00,31/10/2021 00:00:00,P07-2022
,LV WHITE WATER CATERING,SUPPLIES AND SERVICES,FOOD AND DRINK PURCHASES,4140,BIDFOOD,31/10/2021 00:00:00,254686,-600,360001,BIDFOOD,27/9/2021 00:00:00,31/10/2021 00:00:00,P07-2022
,LV WHITE WATER CATERING,SUPPLIES AND SERVICES,FOOD AND DRINK PURCHASES,4140,BIDFOOD,31/10/2021 00:00:00,254686,311.07,360001,BIDFOOD,27/9/2021 00:00:00,31/10/2021 00:00:00,P07-2022
,LV WHITE WATER CATERING,SUPPLIES AND SERVICES,FOOD AND DRINK PURCHASES,4140,P114722-SERVICE-fronbt of housed food,31/10/2021 00:00:00,254686,600,360001,BIDFOOD,27/9/2021 00:00:00,31/10/2021 00:00:00,P07-2022
,LV WHITE WATER CATERING,SUPPLIES AND SERVICES,FOOD AND DRINK PURCHASES,4140,P114724-SERVICE-cups,31/10/2021 00:00:00,254688,308.21,CA0585,CAFE CONNECTIONS,27/9/2021 00:00:00,31/10/2021 00:00:00,P07-2022
,LV WHITE WATER CATERING,SUPPLIES AND SERVICES,FOOD AND DRINK PURCHASES,4140,ROMBOUTS COFFEE GB LIMITED,31/10/2021 00:00:00,254699,4,RO0216,ROMBOUTS COFFEE GB LIMITED,27/9/2021 00:00:00,31/10/2021 00:00:00,P07-2022
,LV WHITE WATER CATERING,SUPPLIES AND SERVICES,FOOD AND DRINK PURCHASES,4140,ROMBOUTS COFFEE GB LIMITED,31/10/2021 00:00:00,254699,101.3,RO0216,ROMBOUTS COFFEE GB LIMITED,27/9/2021 00:00:00,31/10/2021 00:00:00,P07-2022
,LV WHITE WATER CATERING,SUPPLIES AND SERVICES,FOOD AND DRINK PURCHASES,4140,P114725-SERVICE-coffeee,31/10/2021 00:00:00,254699,105.3,RO0216,ROMBOUTS COFFEE GB LIMITED,27/9/2021 00:00:00,31/10/2021 00:00:00,P07-2022
,LV WHITE WATER CATERING,SUPPLIES AND SERVICES,FOOD AND DRINK PURCHASES,4140,ROMBOUTS COFFEE GB LIMITED,31/10/2021 00:00:00,254699,-105.3,RO0216,ROMBOUTS COFFEE GB LIMITED,27/9/2021 00:00:00,31/10/2021 00:00:00,P07-2022
,LEE VALLEY MARINA SPRINGFIELD,SUPPLIES AND SERVICES,CLOTHING & UNIFORMS,4225,P114559-SERVICE-To supply the following uniform,25/10/2021 00:00:00,254503,530.61,DI0017,DIRECT BOOT & SHOE SUPPLIES,27/9/2021 00:00:00,31/10/2021 00:00:00,P07-2022
,LEE VALLEY MARINA STANSTEAD,SUPPLIES AND SERVICES,CLOTHING & UNIFORMS,4225,P114738-SERVICE-direct boot - SA Marina Uniform order,31/10/2021 00:00:00,254689,758.27,DI0017,DIRECT BOOT & SHOE SUPPLIES,27/9/2021 00:00:00,31/10/2021 00:00:00,P07-2022
,LEE VALLEY MARINA STANSTEAD,SUPPLIES AND SERVICES,CLOTHING & UNIFORMS,4225,P114738-SERVICE-direct boot - SA Marina Uniform order,31/10/2021 00:00:00,254814,-119,DI0017,DIRECT BOOT & SHOE SUPPLIES,27/9/2021 00:00:00,31/10/2021 00:00:00,P07-2022
P&V,MYDDELTON HOUSE GARDENS,SUPPLIES AND SERVICES,CLOTHING & UNIFORMS,4225,P114447-SERVICE-Uniform order October 2021,25/10/2021 00:00:00,254502,70.55,DI0017,DIRECT BOOT & SHOE SUPPLIES,27/9/2021 00:00:00,31/10/2021 00:00:00,P07-2022
P&V,SOUTH AREA RANGERS,SUPPLIES AND SERVICES,CLOTHING & UNIFORMS,4225,P113758-SERVICE-10x Polo Shirts - 89906 - Navy,10/12/2021 00:00,253557,233.7,EN0283,ENGELBERT STRAUSS LIMITED,27/9/2021 00:00:00,31/10/2021 00:00:00,P07-2022
P&V,SOUTH AREA RANGERS,SUPPLIES AND SERVICES,CLOTHING & UNIFORMS,4225,P113758-SERVICE-2x Polo Shirts Ladies - 22206 - Navy,10/12/2021 00:00,253557,46.74,EN0283,ENGELBERT STRAUSS LIMITED,27/9/2021 00:00:00,31/10/2021 00:00:00,P07-2022
P&V,SOUTH AREA RANGERS,SUPPLIES AND SERVICES,CLOTHING & UNIFORMS,4225,P113758-SERVICE-1x Micro Fleece Black - 89581,10/12/2021 00:00,253557,24.37,EN0283,ENGELBERT STRAUSS LIMITED,27/9/2021 00:00:00,31/10/2021 00:00:00,P07-2022
P&V,SOUTH AREA RANGERS,SUPPLIES AND SERVICES,CLOTHING & UNIFORMS,4225,P113758-SERVICE-2x 3-in-1 Functional Rain Jacket Black -  777,10/12/2021 00:00,253557,278.92,EN0283,ENGELBERT STRAUSS LIMITED,27/9/2021 00:00:00,31/10/2021 00:00:00,P07-2022
P&V,SOUTH AREA RANGERS,SUPPLIES AND SERVICES,CLOTHING & UNIFORMS,4225,P113758-SERVICE-1x Fleece Jacket Black - 77410,10/12/2021 00:00,253557,48.37,EN0283,ENGELBERT STRAUSS LIMITED,27/9/2021 00:00:00,31/10/2021 00:00:00,P07-2022
P&V,SOUTH AREA RANGERS,SUPPLIES AND SERVICES,CLOTHING & UNIFORMS,4225,P112593-SERVICE-3x Ladies Peru Trousers Black Reg S10,10/05/2021 00:00,253792,63.75,IL0177,KEELA INTERNATION LTD,27/9/2021 00:00:00,31/10/2021 00:00:00,P07-2022
P&V,RIVER LEE COUNTRY PARK,SUPPLIES AND SERVICES,CLOTHING & UNIFORMS,4225,P113758-SERVICE-2x 3-in-1 Functional Rain Jacket Black - 7772,10/12/2021 00:00,253557,10,EN0283,ENGELBERT STRAUSS LIMITED,27/9/2021 00:00:00,31/10/2021 00:00:00,P07-2022
P&V,RIVER LEE COUNTRY PARK,SUPPLIES AND SERVICES,CLOTHING & UNIFORMS,4225,P113758-SERVICE-7x Micro Fleece Black - 89581,10/12/2021 00:00,253557,170.59,EN0283,ENGELBERT STRAUSS LIMITED,27/9/2021 00:00:00,31/10/2021 00:00:00,P07-2022
P&V,RIVER LEE COUNTRY PARK,SUPPLIES AND SERVICES,CLOTHING & UNIFORMS,4225,P113758-SERVICE-3x Fleece Jacket Black - 77410,10/12/2021 00:00,253557,145.11,EN0283,ENGELBERT STRAUSS LIMITED,27/9/2021 00:00:00,31/10/2021 00:00:00,P07-2022
P&V,RIVER LEE COUNTRY PARK,SUPPLIES AND SERVICES,CLOTHING & UNIFORMS,4225,P113758-SERVICE-1x Service Charge,10/12/2021 00:00,253557,8.99,EN0283,ENGELBERT STRAUSS LIMITED,27/9/2021 00:00:00,31/10/2021 00:00:00,P07-2022
P&V,RIVER LEE COUNTRY PARK,SUPPLIES AND SERVICES,CLOTHING & UNIFORMS,4225,P113758-SERVICE-20x Polo Shirts - 89906 - Navy,10/12/2021 00:00,253557,467.4,EN0283,ENGELBERT STRAUSS LIMITED,27/9/2021 00:00:00,31/10/2021 00:00:00,P07-2022
P&V,POLICY & PERFORMANCE (L&E),SUPPLIES AND SERVICES,CLOTHING & UNIFORMS,4225,P113849-SERVICE-1 x 77720 3 in 1 multifunctional jacket size,18/10/2021 00:00:00,253191,149.88,EN0283,ENGELBERT STRAUSS LIMITED,27/9/2021 00:00:00,31/10/2021 00:00:00,P07-2022
P&V,POLICY & PERFORMANCE (L&E),SUPPLIES AND SERVICES,CLOTHING & UNIFORMS,4225,P113849-SERVICE-Embrodiery,18/10/2021 00:00:00,253191,10.97,EN0283,ENGELBERT STRAUSS LIMITED,27/9/2021 00:00:00,31/10/2021 00:00:00,P07-2022
P&V,VOLUNTEERS (L&E),SUPPLIES AND SERVICES,CLOTHING & UNIFORMS,4225,P114393-SERVICE-2 x Eagle Premium Poloshirt (1150) with Sewn,31/10/2021 00:00:00,255041,26.48,DI0017,DIRECT BOOT & SHOE SUPPLIES,27/9/2021 00:00:00,31/10/2021 00:00:00,P07-2022
P&V,VOLUNTEERS (L&E),SUPPLIES AND SERVICES,CLOTHING & UNIFORMS,4225,P114393-SERVICE-2 x Eagle Premium Poloshirt (1150) with Sewn,31/10/2021 00:00:00,255041,26.48,DI0017,DIRECT BOOT & SHOE SUPPLIES,27/9/2021 00:00:00,31/10/2021 00:00:00,P07-2022
P&V,VOLUNTEERS (L&E),SUPPLIES AND SERVICES,CLOTHING & UNIFORMS,4225,P114393-SERVICE-2 x Eagle Premium Poloshirt (1150) with Sewn,31/10/2021 00:00:00,255041,26.48,DI0017,DIRECT BOOT & SHOE SUPPLIES,27/9/2021 00:00:00,31/10/2021 00:00:00,P07-2022
P&V,VOLUNTEERS (L&E),SUPPLIES AND SERVICES,CLOTHING & UNIFORMS,4225,P114393-SERVICE-1 x Eagle Premium Poloshirt (1150) with Sewn,31/10/2021 00:00:00,255041,13.24,DI0017,DIRECT BOOT & SHOE SUPPLIES,27/9/2021 00:00:00,31/10/2021 00:00:00,P07-2022
P&V,VOLUNTEERS (L&E),SUPPLIES AND SERVICES,CLOTHING & UNIFORMS,4225,P114393-SERVICE-2 x Eagle Premium Poloshirt (1150) with Sewn,31/10/2021 00:00:00,255041,26.48,DI0017,DIRECT BOOT & SHOE SUPPLIES,27/9/2021 00:00:00,31/10/2021 00:00:00,P07-2022
